{"text_format":"1","workbook":"xlsx","n_sheets":62,"sheets":["HIDDEN - Backend","HIDDEN - Question List","Landing Page","Menu","Future of Industry","Data - Future of Industry","Optimism Factors","Data - Optimism Factors","Main Challenges","Data - Main Challenges","Area of Farm","Data - Area of Farm","Planted Area","Data - Planted Area","Cotton Yields","Data - Cotton Yields","Applications to Crop","Data - Applications to Crop","Quality Discounts","Data - Quality Discounts","Largest Discount","Data - Largest Discount","Widely Used Practices","Data - Widely Used Practices","Weed Control Over Crop","Data - Weed Control Over Crop","Weed Control Over Fallows","Data - Weed Control Over Fallow","Spray Decision Thresholds","Data - Spray Decision Threshold","Reasons for Decisions","Data - Reasons for Decisions","Glyphosate and Insecticide","Data - Glyphosate Insecticide","Irrigation System","Data - Irrigation System","Level of Automation","Data - Level of Automation","Minimise Losses","Data - Minimise Losses","Riparian Area of Farm","Data - Riparian Area of Farm","Ecosystem Services","Data - Ecosystem Services","Riparian Problems","Data - Riparian Problems","Significant Changes","Data - Significant Changes","Accredited Education","Data - Accredited Education","Off-Farm Training","Data - Off-Farm Training","Labour Hire Companies","Data - Labour Hire Companies","Community Contribution","Data - Community Contribution","Membership of Local CGA","Data - Membership of Local CGA","Information Sharing","Data - Information Sharing","Aboriginal Heritage","Data - Aboriginal Heritage"],"not_rendered":{"charts":41,"images":15,"macros":1,"external_links":0,"defined_names":32,"comments":0,"pivot_tables":0},"unopened":[],"bounds":{"document_bytes":16777216,"sheet_cells":100000,"rows_first":2000,"rows_last":500,"rows_between":2000,"halvings":0,"cell_chars":16384,"cell_head_chars":4096},"cells_cut":0,"cells_raw":0,"read":"whole","date_system":"1900"}

{"sheet":"HIDDEN - Backend","index":0,"n_rows":38,"n_cols":18,"rows_kept":38,"cut":false,"hidden":true,"merged":[]}
[null,null,null,null,null,null,null,null,null,null,null,null,null,"Previous Segment",null,null,1]
[]
[null,null,"CONVERSION TO USER VERSION",null,null,null,null,null,null,null,null,null,null,"Segment",null,null,1,{"$f":"VLOOKUP(Q3,Q4:R13,2,0)","v":"All cotton growers"}]
[null,null,null,null,null,null,null,null,null,null,null,null,null,null,null,null,1,"All cotton growers"]
[null,null,"Click button below to create a Client Version of the dashboard,",null,null,null,null,null,null,null,null,null,null,null,null,null,2,"Region - Central Queensland"]
[null,null,"then remove comments in Workbook. Open VBA, then password protect the VBA.",null,null,null,null,null,null,null,null,null,null,null,null,null,3,"Region - Darling Downs"]
[null,null,"USER VERSION ACTIVE",null,null,null,null,null,null,null,null,null,null,null,null,null,4,"Region - Macintyre - Balonne"]
[null,null,null,null,null,null,null,null,null,null,null,null,null,null,null,null,5,"Region - Northern NSW"]
[null,null,null,null,null,null,null,null,null,null,null,null,null,null,null,null,6,"Region - Macquarie"]
[null,null,null,null,null,null,null,null,null,null,null,null,null,null,null,null,7,"Region - Southern NSW"]
[null,null,null,null,null,null,null,null,null,null,null,null,null,null,null,null,8,"Size of Cotton Farm Area - Small farms (< 1,000 ha)"]
[null,null,null,null,null,null,null,null,null,null,null,null,null,null,null,null,9,"Size of Cotton Farm Area - Medium farms (1,000 - 5,000 ha)"]
[null,null,null,null,null,null,null,null,null,null,null,null,null,null,null,null,10,"Size of Cotton Farm Area - Large farms (> 5,000 ha)"]
[]
[]
[null,null,null,null,"Zoom Level:",null,"Previous Zoom Level"]
[null,null,null,11,{"$f":"VLOOKUP($D$17,$D$18:$E$38,2,0)*100","v":100},null,100,null,null,null,null,null,null,"Show Source on Graphs?",null,null,0]
[null,null,null,1,0.5,null,null,null,null,null,null,null,null,null,null,null,0,"No"]
[null,null,null,2,0.55000000000000004,null,null,null,null,null,null,null,null,null,null,null,1,"Yes"]
[null,null,null,3,0.6]
[null,null,null,4,0.65]
[null,null,null,5,0.7]
[null,null,null,6,0.75]
[null,null,null,7,0.8]
[null,null,null,8,0.85]
[null,null,null,9,0.9]
[null,null,null,10,0.95]
[null,null,null,11,1]
[null,null,null,12,1.05]
[null,null,null,13,1.1000000000000001]
[null,null,null,14,1.1499999999999999]
[null,null,null,15,1.2]
[null,null,null,16,1.25]
[null,null,null,17,1.3]
[null,null,null,18,1.35]
[null,null,null,19,1.4]
[null,null,null,20,1.45]
[null,null,null,21,1.5]

{"sheet":"HIDDEN - Question List","index":1,"n_rows":156,"n_cols":43,"rows_kept":156,"cut":false,"hidden":true,"merged":[]}
["Question","Report Page","Done?",null,null,null,"List of Sheets","Need VBA Code to Lock/Zoom?","Need Macro Button? (Count)","Need to Hide? (Count)","VBA Code to hide",null,null,null,null,null,null,null,"VBA Code for Zoom Function",null,null,null,null,null,null,null,null,null,"VBA Code for Locking Sheets",null,null,null,null,null,null,null,null,null,null,null,null,null,"VBA Code for Macro Buttons"]
[1,"n/a","n/a",null,null,null,"HIDDEN - Backend",null,null,1,{"$f":"\"Sheets(\"\"\"&G2&\"\"\").Visible = xlVeryHidden\"","v":"Sheets(\"HIDDEN - Backend\").Visible = xlVeryHidden"},null,null,null,null,null,null,1,{"$f":"\"Sheets(\"\"\"&INDEX($G$2:$H$67,MATCH(R2,$H$2:$H$67,0),1)&\"\"\").Select\"","v":"Sheets(\"Landing Page\").Select"},null,null,null,null,null,null,null,null,1,{"$f":"\"Sheets(\"\"\"&INDEX($G$2:$H$67,MATCH(AB2,$H$2:$H$67,0),1)&\"\"\").Protect Password:=\"\"Intuitive_1\"\", DrawingObjects:=True, Contents:=True, Scenarios:=True\"","v":"Sheets(\"Landing Page\").Protect Password:=\"Intuitive_1\", DrawingObjects:=True, Contents:=True, Scenarios:=True"},null,null,null,null,null,null,null,null,null,null,null,null,1,{"$f":"\"Sub \"&SUBSTITUTE(SUBSTITUTE(INDEX($G$2:$I$67,MATCH(AP2,$I$2:$I$67,0),1),\" \",\"\"),\"-\",\"\")&\"Button()\"","v":"Sub ApplicationstoCropButton()"}]
[2,13,"Area of Farm",null,null,null,"HIDDEN - Question List",null,null,2,{"$f":"\"Sheets(\"\"\"&G3&\"\"\").Visible = xlVeryHidden\"","v":"Sheets(\"HIDDEN - Question List\").Visible = xlVeryHidden"},null,null,null,null,null,null,1,"ActiveWindow.Zoom = Sheets(\"HIDDEN - Backend\").Range(\"E17\").Value",null,null,null,null,null,null,null,null,1,{"$f":"\"Sheets(\"\"\"&INDEX($G$2:$H$67,MATCH(AB3,$H$2:$H$67,0),1)&\"\"\").EnableSelection = xlNoSelection\"","v":"Sheets(\"Landing Page\").EnableSelection = xlNoSelection"},null,null,null,null,null,null,null,null,null,null,null,null,1]
[3,28,"Riparian Area of Farm",null,null,null,"Landing Page",1,null,null,null,null,null,null,null,null,null,1,null,null,null,null,null,null,null,null,null,1,null,null,null,null,null,null,null,null,null,null,null,null,null,1,{"$f":"\"Sheets(\"\"\"&INDEX($G$2:$I$67,MATCH(AP2,$I$2:$I$67,0),1)&\"\"\").Activate\"","v":"Sheets(\"Applications to Crop\").Activate"}]
[4,"n/a","n/a",null,null,null,"Menu",2,null,null,null,null,null,null,null,null,null,{"$f":"R2+1","v":2},{"$f":"\"Sheets(\"\"\"&INDEX($G$2:$H$67,MATCH(R5,$H$2:$H$67,0),1)&\"\"\").Select\"","v":"Sheets(\"Menu\").Select"},null,null,null,null,null,null,null,null,{"$f":"AB2+1","v":2},{"$f":"\"Sheets(\"\"\"&INDEX($G$2:$H$67,MATCH(AB5,$H$2:$H$67,0),1)&\"\"\").Protect Password:=\"\"Intuitive_1\"\", DrawingObjects:=True, Contents:=True, Scenarios:=True\"","v":"Sheets(\"Menu\").Protect Password:=\"Intuitive_1\", DrawingObjects:=True, Contents:=True, Scenarios:=True"},null,null,null,null,null,null,null,null,null,null,null,null,1]
[5,"n/a","n/a",null,null,null,"Applications to Crop",3,1,null,null,null,null,null,null,null,null,{"$f":"R3+1","v":2},"ActiveWindow.Zoom = Sheets(\"HIDDEN - Backend\").Range(\"E17\").Value",null,null,null,null,null,null,null,null,{"$f":"AB3+1","v":2},{"$f":"\"Sheets(\"\"\"&INDEX($G$2:$H$67,MATCH(AB6,$H$2:$H$67,0),1)&\"\"\").EnableSelection = xlNoSelection\"","v":"Sheets(\"Menu\").EnableSelection = xlNoSelection"},null,null,null,null,null,null,null,null,null,null,null,null,1,"End Sub"]
[6,"n/a","n/a",null,null,null,"Data - Applications to Crop",null,null,3,{"$f":"\"Sheets(\"\"\"&G7&\"\"\").Visible = xlVeryHidden\"","v":"Sheets(\"Data - Applications to Crop\").Visible = xlVeryHidden"},null,null,null,null,null,null,{"$f":"R4+1","v":2},null,null,null,null,null,null,null,null,null,{"$f":"AB4+1","v":2},null,null,null,null,null,null,null,null,null,null,null,null,null,{"$f":"AP2+1","v":2},{"$f":"\"Sub \"&SUBSTITUTE(SUBSTITUTE(INDEX($G$2:$I$67,MATCH(AP7,$I$2:$I$67,0),1),\" \",\"\"),\"-\",\"\")&\"Button()\"","v":"Sub QualityDiscountsButton()"}]
[7,14,"Planted Area",null,null,null,"Quality Discounts",{"$f":"H6+1","v":4},2,null,null,null,null,null,null,null,null,{"$f":"R5+1","v":3},{"$f":"\"Sheets(\"\"\"&INDEX($G$2:$H$67,MATCH(R8,$H$2:$H$67,0),1)&\"\"\").Select\"","v":"Sheets(\"Applications to Crop\").Select"},null,null,null,null,null,null,null,null,{"$f":"AB5+1","v":3},{"$f":"\"Sheets(\"\"\"&INDEX($G$2:$H$67,MATCH(AB8,$H$2:$H$67,0),1)&\"\"\").Protect Password:=\"\"Intuitive_1\"\", DrawingObjects:=True, Contents:=True, Scenarios:=True\"","v":"Sheets(\"Applications to Crop\").Protect Password:=\"Intuitive_1\", DrawingObjects:=True, Contents:=True, Scenarios:=True"},null,null,null,null,null,null,null,null,null,null,null,null,{"$f":"AP3+1","v":2}]
[8,15,"Cotton Yields",null,null,null,"Data - Quality Discounts",null,null,4,{"$f":"\"Sheets(\"\"\"&G9&\"\"\").Visible = xlVeryHidden\"","v":"Sheets(\"Data - Quality Discounts\").Visible = xlVeryHidden"},null,null,null,null,null,null,3,"ActiveWindow.Zoom = Sheets(\"HIDDEN - Backend\").Range(\"E17\").Value",null,null,null,null,null,null,null,null,3,{"$f":"\"Sheets(\"\"\"&INDEX($G$2:$H$67,MATCH(AB9,$H$2:$H$67,0),1)&\"\"\").EnableSelection = xlNoSelection\"","v":"Sheets(\"Applications to Crop\").EnableSelection = xlNoSelection"},null,null,null,null,null,null,null,null,null,null,null,null,2,{"$f":"\"Sheets(\"\"\"&INDEX($G$2:$I$67,MATCH(AP7,$I$2:$I$67,0),1)&\"\"\").Activate\"","v":"Sheets(\"Quality Discounts\").Activate"}]
[9,16,"Applications to Crop",null,null,null,"Largest Discount",{"$f":"H8+1","v":5},3,null,null,null,null,null,null,null,null,3,null,null,null,null,null,null,null,null,null,3,null,null,null,null,null,null,null,null,null,null,null,null,null,2]
[10,18,"Quality Discounts and Largest Discount",null,null,null,"Data - Largest Discount",null,null,5,{"$f":"\"Sheets(\"\"\"&G11&\"\"\").Visible = xlVeryHidden\"","v":"Sheets(\"Data - Largest Discount\").Visible = xlVeryHidden"},null,null,null,null,null,null,4,{"$f":"\"Sheets(\"\"\"&INDEX($G$2:$H$67,MATCH(R11,$H$2:$H$67,0),1)&\"\"\").Select\"","v":"Sheets(\"Quality Discounts\").Select"},null,null,null,null,null,null,null,null,4,{"$f":"\"Sheets(\"\"\"&INDEX($G$2:$H$67,MATCH(AB11,$H$2:$H$67,0),1)&\"\"\").Protect Password:=\"\"Intuitive_1\"\", DrawingObjects:=True, Contents:=True, Scenarios:=True\"","v":"Sheets(\"Quality Discounts\").Protect Password:=\"Intuitive_1\", DrawingObjects:=True, Contents:=True, Scenarios:=True"},null,null,null,null,null,null,null,null,null,null,null,null,2,"End Sub"]
[11,20,"Weed Control Over Crop",null,null,null,"Area of Farm",{"$f":"H10+1","v":6},4,null,null,null,null,null,null,null,null,4,"ActiveWindow.Zoom = Sheets(\"HIDDEN - Backend\").Range(\"E17\").Value",null,null,null,null,null,null,null,null,4,{"$f":"\"Sheets(\"\"\"&INDEX($G$2:$H$67,MATCH(AB12,$H$2:$H$67,0),1)&\"\"\").EnableSelection = xlNoSelection\"","v":"Sheets(\"Quality Discounts\").EnableSelection = xlNoSelection"},null,null,null,null,null,null,null,null,null,null,null,null,3,{"$f":"\"Sub \"&SUBSTITUTE(SUBSTITUTE(INDEX($G$2:$I$67,MATCH(AP12,$I$2:$I$67,0),1),\" \",\"\"),\"-\",\"\")&\"Button()\"","v":"Sub LargestDiscountButton()"}]
[12,21,"Weed Control Over Fallows",null,null,null,"Data - Area of Farm",null,null,6,{"$f":"\"Sheets(\"\"\"&G13&\"\"\").Visible = xlVeryHidden\"","v":"Sheets(\"Data - Area of Farm\").Visible = xlVeryHidden"},null,null,null,null,null,null,4,null,null,null,null,null,null,null,null,null,4,null,null,null,null,null,null,null,null,null,null,null,null,null,3]
[13,19,"Widely Used Practices",null,null,null,"Future of Industry",{"$f":"H12+1","v":7},5,null,null,null,null,null,null,null,null,5,{"$f":"\"Sheets(\"\"\"&INDEX($G$2:$H$67,MATCH(R14,$H$2:$H$67,0),1)&\"\"\").Select\"","v":"Sheets(\"Largest Discount\").Select"},null,null,null,null,null,null,null,null,5,{"$f":"\"Sheets(\"\"\"&INDEX($G$2:$H$67,MATCH(AB14,$H$2:$H$67,0),1)&\"\"\").Protect Password:=\"\"Intuitive_1\"\", DrawingObjects:=True, Contents:=True, Scenarios:=True\"","v":"Sheets(\"Largest Discount\").Protect Password:=\"Intuitive_1\", DrawingObjects:=True, Contents:=True, Scenarios:=True"},null,null,null,null,null,null,null,null,null,null,null,null,3,{"$f":"\"Sheets(\"\"\"&INDEX($G$2:$I$67,MATCH(AP12,$I$2:$I$67,0),1)&\"\"\").Activate\"","v":"Sheets(\"Largest Discount\").Activate"}]
[14,22,"Spray Decision Thresholds",null,null,null,"Data - Future of Industry",null,null,7,{"$f":"\"Sheets(\"\"\"&G15&\"\"\").Visible = xlVeryHidden\"","v":"Sheets(\"Data - Future of Industry\").Visible = xlVeryHidden"},null,null,null,null,null,null,5,"ActiveWindow.Zoom = Sheets(\"HIDDEN - Backend\").Range(\"E17\").Value",null,null,null,null,null,null,null,null,5,{"$f":"\"Sheets(\"\"\"&INDEX($G$2:$H$67,MATCH(AB15,$H$2:$H$67,0),1)&\"\"\").EnableSelection = xlNoSelection\"","v":"Sheets(\"Largest Discount\").EnableSelection = xlNoSelection"},null,null,null,null,null,null,null,null,null,null,null,null,3]
[15,23,"Reasons for Decisions",null,null,null,"Spray Decision Thresholds",{"$f":"H14+1","v":8},6,null,null,null,null,null,null,null,null,5,null,null,null,null,null,null,null,null,null,5,null,null,null,null,null,null,null,null,null,null,null,null,null,3,"End Sub"]
[16,24,"Glyphosate and Insecticide",null,null,null,"Data - Spray Decision Threshold",null,null,8,{"$f":"\"Sheets(\"\"\"&G17&\"\"\").Visible = xlVeryHidden\"","v":"Sheets(\"Data - Spray Decision Threshold\").Visible = xlVeryHidden"},null,null,null,null,null,null,6,{"$f":"\"Sheets(\"\"\"&INDEX($G$2:$H$67,MATCH(R17,$H$2:$H$67,0),1)&\"\"\").Select\"","v":"Sheets(\"Area of Farm\").Select"},null,null,null,null,null,null,null,null,6,{"$f":"\"Sheets(\"\"\"&INDEX($G$2:$H$67,MATCH(AB17,$H$2:$H$67,0),1)&\"\"\").Protect Password:=\"\"Intuitive_1\"\", DrawingObjects:=True, Contents:=True, Scenarios:=True\"","v":"Sheets(\"Area of Farm\").Protect Password:=\"Intuitive_1\", DrawingObjects:=True, Contents:=True, Scenarios:=True"},null,null,null,null,null,null,null,null,null,null,null,null,4,{"$f":"\"Sub \"&SUBSTITUTE(SUBSTITUTE(INDEX($G$2:$I$67,MATCH(AP17,$I$2:$I$67,0),1),\" \",\"\"),\"-\",\"\")&\"Button()\"","v":"Sub AreaofFarmButton()"}]
[17,25,"Irrigation System",null,null,null,"Reasons for Decisions",{"$f":"H16+1","v":9},7,null,null,null,null,null,null,null,null,6,"ActiveWindow.Zoom = Sheets(\"HIDDEN - Backend\").Range(\"E17\").Value",null,null,null,null,null,null,null,null,6,{"$f":"\"Sheets(\"\"\"&INDEX($G$2:$H$67,MATCH(AB18,$H$2:$H$67,0),1)&\"\"\").EnableSelection = xlNoSelection\"","v":"Sheets(\"Area of Farm\").EnableSelection = xlNoSelection"},null,null,null,null,null,null,null,null,null,null,null,null,4]
[18,26,"Level of Automation",null,null,null,"Data - Reasons for Decisions",null,null,9,{"$f":"\"Sheets(\"\"\"&G19&\"\"\").Visible = xlVeryHidden\"","v":"Sheets(\"Data - Reasons for Decisions\").Visible = xlVeryHidden"},null,null,null,null,null,null,6,null,null,null,null,null,null,null,null,null,6,null,null,null,null,null,null,null,null,null,null,null,null,null,4,{"$f":"\"Sheets(\"\"\"&INDEX($G$2:$I$67,MATCH(AP17,$I$2:$I$67,0),1)&\"\"\").Activate\"","v":"Sheets(\"Area of Farm\").Activate"}]
[19,27,"Minimise Losses",null,null,null,"Glyphosate and Insecticide",{"$f":"H18+1","v":10},8,null,null,null,null,null,null,null,null,7,{"$f":"\"Sheets(\"\"\"&INDEX($G$2:$H$67,MATCH(R20,$H$2:$H$67,0),1)&\"\"\").Select\"","v":"Sheets(\"Future of Industry\").Select"},null,null,null,null,null,null,null,null,7,{"$f":"\"Sheets(\"\"\"&INDEX($G$2:$H$67,MATCH(AB20,$H$2:$H$67,0),1)&\"\"\").Protect Password:=\"\"Intuitive_1\"\", DrawingObjects:=True, Contents:=True, Scenarios:=True\"","v":"Sheets(\"Future of Industry\").Protect Password:=\"Intuitive_1\", DrawingObjects:=True, Contents:=True, Scenarios:=True"},null,null,null,null,null,null,null,null,null,null,null,null,4]
[20,29,"Ecosystem Services",null,null,null,"Data - Glyphosate Insecticide",null,null,10,{"$f":"\"Sheets(\"\"\"&G21&\"\"\").Visible = xlVeryHidden\"","v":"Sheets(\"Data - Glyphosate Insecticide\").Visible = xlVeryHidden"},null,null,null,null,null,null,7,"ActiveWindow.Zoom = Sheets(\"HIDDEN - Backend\").Range(\"E17\").Value",null,null,null,null,null,null,null,null,7,{"$f":"\"Sheets(\"\"\"&INDEX($G$2:$H$67,MATCH(AB21,$H$2:$H$67,0),1)&\"\"\").EnableSelection = xlNoSelection\"","v":"Sheets(\"Future of Industry\").EnableSelection = xlNoSelection"},null,null,null,null,null,null,null,null,null,null,null,null,4,"End Sub"]
[21,30,"Riparian Problems & Practices",null,null,null,"Irrigation System",{"$f":"H20+1","v":11},9,null,null,null,null,null,null,null,null,7,null,null,null,null,null,null,null,null,null,7,null,null,null,null,null,null,null,null,null,null,null,null,null,5,{"$f":"\"Sub \"&SUBSTITUTE(SUBSTITUTE(INDEX($G$2:$I$67,MATCH(AP22,$I$2:$I$67,0),1),\" \",\"\"),\"-\",\"\")&\"Button()\"","v":"Sub FutureofIndustryButton()"}]
[22,30,"Riparian Problems & Practices",null,null,null,"Data - Irrigation System",null,null,11,{"$f":"\"Sheets(\"\"\"&G23&\"\"\").Visible = xlVeryHidden\"","v":"Sheets(\"Data - Irrigation System\").Visible = xlVeryHidden"},null,null,null,null,null,null,8,{"$f":"\"Sheets(\"\"\"&INDEX($G$2:$H$67,MATCH(R23,$H$2:$H$67,0),1)&\"\"\").Select\"","v":"Sheets(\"Spray Decision Thresholds\").Select"},null,null,null,null,null,null,null,null,8,{"$f":"\"Sheets(\"\"\"&INDEX($G$2:$H$67,MATCH(AB23,$H$2:$H$67,0),1)&\"\"\").Protect Password:=\"\"Intuitive_1\"\", DrawingObjects:=True, Contents:=True, Scenarios:=True\"","v":"Sheets(\"Spray Decision Thresholds\").Protect Password:=\"Intuitive_1\", DrawingObjects:=True, Contents:=True, Scenarios:=True"},null,null,null,null,null,null,null,null,null,null,null,null,5]
[23,31,"Significant Changes",null,null,null,"Level of Automation",{"$f":"H22+1","v":12},10,null,null,null,null,null,null,null,null,8,"ActiveWindow.Zoom = Sheets(\"HIDDEN - Backend\").Range(\"E17\").Value",null,null,null,null,null,null,null,null,8,{"$f":"\"Sheets(\"\"\"&INDEX($G$2:$H$67,MATCH(AB24,$H$2:$H$67,0),1)&\"\"\").EnableSelection = xlNoSelection\"","v":"Sheets(\"Spray Decision Thresholds\").EnableSelection = xlNoSelection"},null,null,null,null,null,null,null,null,null,null,null,null,5,{"$f":"\"Sheets(\"\"\"&INDEX($G$2:$I$67,MATCH(AP22,$I$2:$I$67,0),1)&\"\"\").Activate\"","v":"Sheets(\"Future of Industry\").Activate"}]
[24,32,"Accredited Education",null,null,null,"Data - Level of Automation",null,null,12,{"$f":"\"Sheets(\"\"\"&G25&\"\"\").Visible = xlVeryHidden\"","v":"Sheets(\"Data - Level of Automation\").Visible = xlVeryHidden"},null,null,null,null,null,null,8,null,null,null,null,null,null,null,null,null,8,null,null,null,null,null,null,null,null,null,null,null,null,null,5]
[25,33,"Accredited Education",null,null,null,"Minimise Losses",{"$f":"H24+1","v":13},11,null,null,null,null,null,null,null,null,9,{"$f":"\"Sheets(\"\"\"&INDEX($G$2:$H$67,MATCH(R26,$H$2:$H$67,0),1)&\"\"\").Select\"","v":"Sheets(\"Reasons for Decisions\").Select"},null,null,null,null,null,null,null,null,9,{"$f":"\"Sheets(\"\"\"&INDEX($G$2:$H$67,MATCH(AB26,$H$2:$H$67,0),1)&\"\"\").Protect Password:=\"\"Intuitive_1\"\", DrawingObjects:=True, Contents:=True, Scenarios:=True\"","v":"Sheets(\"Reasons for Decisions\").Protect Password:=\"Intuitive_1\", DrawingObjects:=True, Contents:=True, Scenarios:=True"},null,null,null,null,null,null,null,null,null,null,null,null,5,"End Sub"]
[26,34,"Off-Farm Training",null,null,null,"Data - Minimise Losses",null,null,13,{"$f":"\"Sheets(\"\"\"&G27&\"\"\").Visible = xlVeryHidden\"","v":"Sheets(\"Data - Minimise Losses\").Visible = xlVeryHidden"},null,null,null,null,null,null,9,"ActiveWindow.Zoom = Sheets(\"HIDDEN - Backend\").Range(\"E17\").Value",null,null,null,null,null,null,null,null,9,{"$f":"\"Sheets(\"\"\"&INDEX($G$2:$H$67,MATCH(AB27,$H$2:$H$67,0),1)&\"\"\").EnableSelection = xlNoSelection\"","v":"Sheets(\"Reasons for Decisions\").EnableSelection = xlNoSelection"},null,null,null,null,null,null,null,null,null,null,null,null,6,{"$f":"\"Sub \"&SUBSTITUTE(SUBSTITUTE(INDEX($G$2:$I$67,MATCH(AP27,$I$2:$I$67,0),1),\" \",\"\"),\"-\",\"\")&\"Button()\"","v":"Sub SprayDecisionThresholdsButton()"}]
[27,35,"Labour Hire Companies",null,null,null,"Riparian Area of Farm",{"$f":"H26+1","v":14},12,null,null,null,null,null,null,null,null,9,null,null,null,null,null,null,null,null,null,9,null,null,null,null,null,null,null,null,null,null,null,null,null,6]
[28,35,"Labour Hire Companies",null,null,null,"Data - Riparian Area of Farm",null,null,14,{"$f":"\"Sheets(\"\"\"&G29&\"\"\").Visible = xlVeryHidden\"","v":"Sheets(\"Data - Riparian Area of Farm\").Visible = xlVeryHidden"},null,null,null,null,null,null,10,{"$f":"\"Sheets(\"\"\"&INDEX($G$2:$H$67,MATCH(R29,$H$2:$H$67,0),1)&\"\"\").Select\"","v":"Sheets(\"Glyphosate and Insecticide\").Select"},null,null,null,null,null,null,null,null,10,{"$f":"\"Sheets(\"\"\"&INDEX($G$2:$H$67,MATCH(AB29,$H$2:$H$67,0),1)&\"\"\").Protect Password:=\"\"Intuitive_1\"\", DrawingObjects:=True, Contents:=True, Scenarios:=True\"","v":"Sheets(\"Glyphosate and Insecticide\").Protect Password:=\"Intuitive_1\", DrawingObjects:=True, Contents:=True, Scenarios:=True"},null,null,null,null,null,null,null,null,null,null,null,null,6,{"$f":"\"Sheets(\"\"\"&INDEX($G$2:$I$67,MATCH(AP27,$I$2:$I$67,0),1)&\"\"\").Activate\"","v":"Sheets(\"Spray Decision Thresholds\").Activate"}]
[29,36,"Community Contribution",null,null,null,"Optimism Factors",{"$f":"H28+1","v":15},13,null,null,null,null,null,null,null,null,10,"ActiveWindow.Zoom = Sheets(\"HIDDEN - Backend\").Range(\"E17\").Value",null,null,null,null,null,null,null,null,10,{"$f":"\"Sheets(\"\"\"&INDEX($G$2:$H$67,MATCH(AB30,$H$2:$H$67,0),1)&\"\"\").EnableSelection = xlNoSelection\"","v":"Sheets(\"Glyphosate and Insecticide\").EnableSelection = xlNoSelection"},null,null,null,null,null,null,null,null,null,null,null,null,6]
[30,36,"Community Contribution",null,null,null,"Data - Optimism Factors",null,null,15,{"$f":"\"Sheets(\"\"\"&G31&\"\"\").Visible = xlVeryHidden\"","v":"Sheets(\"Data - Optimism Factors\").Visible = xlVeryHidden"},null,null,null,null,null,null,10,null,null,null,null,null,null,null,null,null,10,null,null,null,null,null,null,null,null,null,null,null,null,null,6,"End Sub"]
[31,37,"Membership of Local CGA",null,null,null,"Main Challenges",{"$f":"H30+1","v":16},14,null,null,null,null,null,null,null,null,11,{"$f":"\"Sheets(\"\"\"&INDEX($G$2:$H$67,MATCH(R32,$H$2:$H$67,0),1)&\"\"\").Select\"","v":"Sheets(\"Irrigation System\").Select"},null,null,null,null,null,null,null,null,11,{"$f":"\"Sheets(\"\"\"&INDEX($G$2:$H$67,MATCH(AB32,$H$2:$H$67,0),1)&\"\"\").Protect Password:=\"\"Intuitive_1\"\", DrawingObjects:=True, Contents:=True, Scenarios:=True\"","v":"Sheets(\"Irrigation System\").Protect Password:=\"Intuitive_1\", DrawingObjects:=True, Contents:=True, Scenarios:=True"},null,null,null,null,null,null,null,null,null,null,null,null,7,{"$f":"\"Sub \"&SUBSTITUTE(SUBSTITUTE(INDEX($G$2:$I$67,MATCH(AP32,$I$2:$I$67,0),1),\" \",\"\"),\"-\",\"\")&\"Button()\"","v":"Sub ReasonsforDecisionsButton()"}]
[32,38,"Benefits and Value",null,null,null,"Data - Main Challenges",null,null,16,{"$f":"\"Sheets(\"\"\"&G33&\"\"\").Visible = xlVeryHidden\"","v":"Sheets(\"Data - Main Challenges\").Visible = xlVeryHidden"},null,null,null,null,null,null,11,"ActiveWindow.Zoom = Sheets(\"HIDDEN - Backend\").Range(\"E17\").Value",null,null,null,null,null,null,null,null,11,{"$f":"\"Sheets(\"\"\"&INDEX($G$2:$H$67,MATCH(AB33,$H$2:$H$67,0),1)&\"\"\").EnableSelection = xlNoSelection\"","v":"Sheets(\"Irrigation System\").EnableSelection = xlNoSelection"},null,null,null,null,null,null,null,null,null,null,null,null,7]
[33,39,"Reasons for Non-Member",null,null,null,"Planted Area",{"$f":"H32+1","v":17},15,null,null,null,null,null,null,null,null,11,null,null,null,null,null,null,null,null,null,11,null,null,null,null,null,null,null,null,null,null,null,null,null,7,{"$f":"\"Sheets(\"\"\"&INDEX($G$2:$I$67,MATCH(AP32,$I$2:$I$67,0),1)&\"\"\").Activate\"","v":"Sheets(\"Reasons for Decisions\").Activate"}]
[34,40,"Information Sharing",null,null,null,"Data - Planted Area",null,null,17,{"$f":"\"Sheets(\"\"\"&G35&\"\"\").Visible = xlVeryHidden\"","v":"Sheets(\"Data - Planted Area\").Visible = xlVeryHidden"},null,null,null,null,null,null,12,{"$f":"\"Sheets(\"\"\"&INDEX($G$2:$H$67,MATCH(R35,$H$2:$H$67,0),1)&\"\"\").Select\"","v":"Sheets(\"Level of Automation\").Select"},null,null,null,null,null,null,null,null,12,{"$f":"\"Sheets(\"\"\"&INDEX($G$2:$H$67,MATCH(AB35,$H$2:$H$67,0),1)&\"\"\").Protect Password:=\"\"Intuitive_1\"\", DrawingObjects:=True, Contents:=True, Scenarios:=True\"","v":"Sheets(\"Level of Automation\").Protect Password:=\"Intuitive_1\", DrawingObjects:=True, Contents:=True, Scenarios:=True"},null,null,null,null,null,null,null,null,null,null,null,null,7]
[35,40,"Information Sharing",null,null,null,"Cotton Yields",{"$f":"H34+1","v":18},16,null,null,null,null,null,null,null,null,12,"ActiveWindow.Zoom = Sheets(\"HIDDEN - Backend\").Range(\"E17\").Value",null,null,null,null,null,null,null,null,12,{"$f":"\"Sheets(\"\"\"&INDEX($G$2:$H$67,MATCH(AB36,$H$2:$H$67,0),1)&\"\"\").EnableSelection = xlNoSelection\"","v":"Sheets(\"Level of Automation\").EnableSelection = xlNoSelection"},null,null,null,null,null,null,null,null,null,null,null,null,7,"End Sub"]
[36,41,"Aboriginal Heritage",null,null,null,"Data - Cotton Yields",null,null,18,{"$f":"\"Sheets(\"\"\"&G37&\"\"\").Visible = xlVeryHidden\"","v":"Sheets(\"Data - Cotton Yields\").Visible = xlVeryHidden"},null,null,null,null,null,null,12,null,null,null,null,null,null,null,null,null,12,null,null,null,null,null,null,null,null,null,null,null,null,null,8,{"$f":"\"Sub \"&SUBSTITUTE(SUBSTITUTE(INDEX($G$2:$I$67,MATCH(AP37,$I$2:$I$67,0),1),\" \",\"\"),\"-\",\"\")&\"Button()\"","v":"Sub GlyphosateandInsecticideButton()"}]
[37,41,"Aboriginal Heritage",null,null,null,"Widely Used Practices",{"$f":"H36+1","v":19},17,null,null,null,null,null,null,null,null,13,{"$f":"\"Sheets(\"\"\"&INDEX($G$2:$H$67,MATCH(R38,$H$2:$H$67,0),1)&\"\"\").Select\"","v":"Sheets(\"Minimise Losses\").Select"},null,null,null,null,null,null,null,null,13,{"$f":"\"Sheets(\"\"\"&INDEX($G$2:$H$67,MATCH(AB38,$H$2:$H$67,0),1)&\"\"\").Protect Password:=\"\"Intuitive_1\"\", DrawingObjects:=True, Contents:=True, Scenarios:=True\"","v":"Sheets(\"Minimise Losses\").Protect Password:=\"Intuitive_1\", DrawingObjects:=True, Contents:=True, Scenarios:=True"},null,null,null,null,null,null,null,null,null,null,null,null,8]
[38,10,"Future of Industry",null,null,null,"Data - Widely Used Practices",null,null,19,{"$f":"\"Sheets(\"\"\"&G39&\"\"\").Visible = xlVeryHidden\"","v":"Sheets(\"Data - Widely Used Practices\").Visible = xlVeryHidden"},null,null,null,null,null,null,13,"ActiveWindow.Zoom = Sheets(\"HIDDEN - Backend\").Range(\"E17\").Value",null,null,null,null,null,null,null,null,13,{"$f":"\"Sheets(\"\"\"&INDEX($G$2:$H$67,MATCH(AB39,$H$2:$H$67,0),1)&\"\"\").EnableSelection = xlNoSelection\"","v":"Sheets(\"Minimise Losses\").EnableSelection = xlNoSelection"},null,null,null,null,null,null,null,null,null,null,null,null,8,{"$f":"\"Sheets(\"\"\"&INDEX($G$2:$I$67,MATCH(AP37,$I$2:$I$67,0),1)&\"\"\").Activate\"","v":"Sheets(\"Glyphosate and Insecticide\").Activate"}]
[39,11,"Optimism Factors",null,null,null,"Weed Control Over Crop",{"$f":"H38+1","v":20},18,null,null,null,null,null,null,null,null,13,null,null,null,null,null,null,null,null,null,13,null,null,null,null,null,null,null,null,null,null,null,null,null,8]
[40,12,"Main Challenges",null,null,null,"Data - Weed Control Over Crop",null,null,20,{"$f":"\"Sheets(\"\"\"&G41&\"\"\").Visible = xlVeryHidden\"","v":"Sheets(\"Data - Weed Control Over Crop\").Visible = xlVeryHidden"},null,null,null,null,null,null,14,{"$f":"\"Sheets(\"\"\"&INDEX($G$2:$H$67,MATCH(R41,$H$2:$H$67,0),1)&\"\"\").Select\"","v":"Sheets(\"Riparian Area of Farm\").Select"},null,null,null,null,null,null,null,null,14,{"$f":"\"Sheets(\"\"\"&INDEX($G$2:$H$67,MATCH(AB41,$H$2:$H$67,0),1)&\"\"\").Protect Password:=\"\"Intuitive_1\"\", DrawingObjects:=True, Contents:=True, Scenarios:=True\"","v":"Sheets(\"Riparian Area of Farm\").Protect Password:=\"Intuitive_1\", DrawingObjects:=True, Contents:=True, Scenarios:=True"},null,null,null,null,null,null,null,null,null,null,null,null,8,"End Sub"]
[41,"n/a","n/a",null,null,null,"Weed Control Over Fallows",{"$f":"H40+1","v":21},19,null,null,null,null,null,null,null,null,14,"ActiveWindow.Zoom = Sheets(\"HIDDEN - Backend\").Range(\"E17\").Value",null,null,null,null,null,null,null,null,14,{"$f":"\"Sheets(\"\"\"&INDEX($G$2:$H$67,MATCH(AB42,$H$2:$H$67,0),1)&\"\"\").EnableSelection = xlNoSelection\"","v":"Sheets(\"Riparian Area of Farm\").EnableSelection = xlNoSelection"},null,null,null,null,null,null,null,null,null,null,null,null,9,{"$f":"\"Sub \"&SUBSTITUTE(SUBSTITUTE(INDEX($G$2:$I$67,MATCH(AP42,$I$2:$I$67,0),1),\" \",\"\"),\"-\",\"\")&\"Button()\"","v":"Sub IrrigationSystemButton()"}]
[null,null,null,null,null,null,"Data - Weed Control Over Fallow",null,null,21,{"$f":"\"Sheets(\"\"\"&G43&\"\"\").Visible = xlVeryHidden\"","v":"Sheets(\"Data - Weed Control Over Fallow\").Visible = xlVeryHidden"},null,null,null,null,null,null,14,null,null,null,null,null,null,null,null,null,14,null,null,null,null,null,null,null,null,null,null,null,null,null,9]
[null,null,null,null,null,null,"Ecosystem Services",{"$f":"H42+1","v":22},20,null,null,null,null,null,null,null,null,15,{"$f":"\"Sheets(\"\"\"&INDEX($G$2:$H$67,MATCH(R44,$H$2:$H$67,0),1)&\"\"\").Select\"","v":"Sheets(\"Optimism Factors\").Select"},null,null,null,null,null,null,null,null,15,{"$f":"\"Sheets(\"\"\"&INDEX($G$2:$H$67,MATCH(AB44,$H$2:$H$67,0),1)&\"\"\").Protect Password:=\"\"Intuitive_1\"\", DrawingObjects:=True, Contents:=True, Scenarios:=True\"","v":"Sheets(\"Optimism Factors\").Protect Password:=\"Intuitive_1\", DrawingObjects:=True, Contents:=True, Scenarios:=True"},null,null,null,null,null,null,null,null,null,null,null,null,9,{"$f":"\"Sheets(\"\"\"&INDEX($G$2:$I$67,MATCH(AP42,$I$2:$I$67,0),1)&\"\"\").Activate\"","v":"Sheets(\"Irrigation System\").Activate"}]
[null,null,null,null,null,null,"Data - Ecosystem Services",null,null,22,{"$f":"\"Sheets(\"\"\"&G45&\"\"\").Visible = xlVeryHidden\"","v":"Sheets(\"Data - Ecosystem Services\").Visible = xlVeryHidden"},null,null,null,null,null,null,15,"ActiveWindow.Zoom = Sheets(\"HIDDEN - Backend\").Range(\"E17\").Value",null,null,null,null,null,null,null,null,15,{"$f":"\"Sheets(\"\"\"&INDEX($G$2:$H$67,MATCH(AB45,$H$2:$H$67,0),1)&\"\"\").EnableSelection = xlNoSelection\"","v":"Sheets(\"Optimism Factors\").EnableSelection = xlNoSelection"},null,null,null,null,null,null,null,null,null,null,null,null,9]
[null,null,null,null,null,null,"Significant Changes",{"$f":"H44+1","v":23},21,null,null,null,null,null,null,null,null,15,null,null,null,null,null,null,null,null,null,15,null,null,null,null,null,null,null,null,null,null,null,null,null,9,"End Sub"]
[null,null,null,null,null,null,"Data - Significant Changes",null,null,23,{"$f":"\"Sheets(\"\"\"&G47&\"\"\").Visible = xlVeryHidden\"","v":"Sheets(\"Data - Significant Changes\").Visible = xlVeryHidden"},null,null,null,null,null,null,16,{"$f":"\"Sheets(\"\"\"&INDEX($G$2:$H$67,MATCH(R47,$H$2:$H$67,0),1)&\"\"\").Select\"","v":"Sheets(\"Main Challenges\").Select"},null,null,null,null,null,null,null,null,16,{"$f":"\"Sheets(\"\"\"&INDEX($G$2:$H$67,MATCH(AB47,$H$2:$H$67,0),1)&\"\"\").Protect Password:=\"\"Intuitive_1\"\", DrawingObjects:=True, Contents:=True, Scenarios:=True\"","v":"Sheets(\"Main Challenges\").Protect Password:=\"Intuitive_1\", DrawingObjects:=True, Contents:=True, Scenarios:=True"},null,null,null,null,null,null,null,null,null,null,null,null,10,{"$f":"\"Sub \"&SUBSTITUTE(SUBSTITUTE(INDEX($G$2:$I$67,MATCH(AP47,$I$2:$I$67,0),1),\" \",\"\"),\"-\",\"\")&\"Button()\"","v":"Sub LevelofAutomationButton()"}]
[null,null,null,null,null,null,"Riparian Problems",{"$f":"H46+1","v":24},22,null,null,null,null,null,null,null,null,16,"ActiveWindow.Zoom = Sheets(\"HIDDEN - Backend\").Range(\"E17\").Value",null,null,null,null,null,null,null,null,16,{"$f":"\"Sheets(\"\"\"&INDEX($G$2:$H$67,MATCH(AB48,$H$2:$H$67,0),1)&\"\"\").EnableSelection = xlNoSelection\"","v":"Sheets(\"Main Challenges\").EnableSelection = xlNoSelection"},null,null,null,null,null,null,null,null,null,null,null,null,10]
[null,null,null,null,null,null,"Data - Riparian Problems",null,null,24,{"$f":"\"Sheets(\"\"\"&G49&\"\"\").Visible = xlVeryHidden\"","v":"Sheets(\"Data - Riparian Problems\").Visible = xlVeryHidden"},null,null,null,null,null,null,16,null,null,null,null,null,null,null,null,null,16,null,null,null,null,null,null,null,null,null,null,null,null,null,10,{"$f":"\"Sheets(\"\"\"&INDEX($G$2:$I$67,MATCH(AP47,$I$2:$I$67,0),1)&\"\"\").Activate\"","v":"Sheets(\"Level of Automation\").Activate"}]
[null,null,null,null,null,null,"Accredited Education",{"$f":"H48+1","v":25},23,null,null,null,null,null,null,null,null,17,{"$f":"\"Sheets(\"\"\"&INDEX($G$2:$H$67,MATCH(R50,$H$2:$H$67,0),1)&\"\"\").Select\"","v":"Sheets(\"Planted Area\").Select"},null,null,null,null,null,null,null,null,17,{"$f":"\"Sheets(\"\"\"&INDEX($G$2:$H$67,MATCH(AB50,$H$2:$H$67,0),1)&\"\"\").Protect Password:=\"\"Intuitive_1\"\", DrawingObjects:=True, Contents:=True, Scenarios:=True\"","v":"Sheets(\"Planted Area\").Protect Password:=\"Intuitive_1\", DrawingObjects:=True, Contents:=True, Scenarios:=True"},null,null,null,null,null,null,null,null,null,null,null,null,10]
[null,null,null,null,null,null,"Data - Accredited Education",null,null,25,{"$f":"\"Sheets(\"\"\"&G51&\"\"\").Visible = xlVeryHidden\"","v":"Sheets(\"Data - Accredited Education\").Visible = xlVeryHidden"},null,null,null,null,null,null,17,"ActiveWindow.Zoom = Sheets(\"HIDDEN - Backend\").Range(\"E17\").Value",null,null,null,null,null,null,null,null,17,{"$f":"\"Sheets(\"\"\"&INDEX($G$2:$H$67,MATCH(AB51,$H$2:$H$67,0),1)&\"\"\").EnableSelection = xlNoSelection\"","v":"Sheets(\"Planted Area\").EnableSelection = xlNoSelection"},null,null,null,null,null,null,null,null,null,null,null,null,10,"End Sub"]
[null,null,null,null,null,null,"Off-Farm Training",{"$f":"H50+1","v":26},24,null,null,null,null,null,null,null,null,17,null,null,null,null,null,null,null,null,null,17,null,null,null,null,null,null,null,null,null,null,null,null,null,11,{"$f":"\"Sub \"&SUBSTITUTE(SUBSTITUTE(INDEX($G$2:$I$67,MATCH(AP52,$I$2:$I$67,0),1),\" \",\"\"),\"-\",\"\")&\"Button()\"","v":"Sub MinimiseLossesButton()"}]
[null,null,null,null,null,null,"Data - Off-Farm Training",null,null,26,{"$f":"\"Sheets(\"\"\"&G53&\"\"\").Visible = xlVeryHidden\"","v":"Sheets(\"Data - Off-Farm Training\").Visible = xlVeryHidden"},null,null,null,null,null,null,18,{"$f":"\"Sheets(\"\"\"&INDEX($G$2:$H$67,MATCH(R53,$H$2:$H$67,0),1)&\"\"\").Select\"","v":"Sheets(\"Cotton Yields\").Select"},null,null,null,null,null,null,null,null,18,{"$f":"\"Sheets(\"\"\"&INDEX($G$2:$H$67,MATCH(AB53,$H$2:$H$67,0),1)&\"\"\").Protect Password:=\"\"Intuitive_1\"\", DrawingObjects:=True, Contents:=True, Scenarios:=True\"","v":"Sheets(\"Cotton Yields\").Protect Password:=\"Intuitive_1\", DrawingObjects:=True, Contents:=True, Scenarios:=True"},null,null,null,null,null,null,null,null,null,null,null,null,11]
[null,null,null,null,null,null,"Labour Hire Companies",{"$f":"H52+1","v":27},25,null,null,null,null,null,null,null,null,18,"ActiveWindow.Zoom = Sheets(\"HIDDEN - Backend\").Range(\"E17\").Value",null,null,null,null,null,null,null,null,18,{"$f":"\"Sheets(\"\"\"&INDEX($G$2:$H$67,MATCH(AB54,$H$2:$H$67,0),1)&\"\"\").EnableSelection = xlNoSelection\"","v":"Sheets(\"Cotton Yields\").EnableSelection = xlNoSelection"},null,null,null,null,null,null,null,null,null,null,null,null,11,{"$f":"\"Sheets(\"\"\"&INDEX($G$2:$I$67,MATCH(AP52,$I$2:$I$67,0),1)&\"\"\").Activate\"","v":"Sheets(\"Minimise Losses\").Activate"}]
[null,null,null,null,null,null,"Data - Labour Hire Companies",null,null,27,{"$f":"\"Sheets(\"\"\"&G55&\"\"\").Visible = xlVeryHidden\"","v":"Sheets(\"Data - Labour Hire Companies\").Visible = xlVeryHidden"},null,null,null,null,null,null,18,null,null,null,null,null,null,null,null,null,18,null,null,null,null,null,null,null,null,null,null,null,null,null,11]
[null,null,null,null,null,null,"Membership of Local CGA",{"$f":"H54+1","v":28},26,null,null,null,null,null,null,null,null,19,{"$f":"\"Sheets(\"\"\"&INDEX($G$2:$H$67,MATCH(R56,$H$2:$H$67,0),1)&\"\"\").Select\"","v":"Sheets(\"Widely Used Practices\").Select"},null,null,null,null,null,null,null,null,19,{"$f":"\"Sheets(\"\"\"&INDEX($G$2:$H$67,MATCH(AB56,$H$2:$H$67,0),1)&\"\"\").Protect Password:=\"\"Intuitive_1\"\", DrawingObjects:=True, Contents:=True, Scenarios:=True\"","v":"Sheets(\"Widely Used Practices\").Protect Password:=\"Intuitive_1\", DrawingObjects:=True, Contents:=True, Scenarios:=True"},null,null,null,null,null,null,null,null,null,null,null,null,11,"End Sub"]
[null,null,null,null,null,null,"Data - Membership of Local CGA",null,null,28,{"$f":"\"Sheets(\"\"\"&G57&\"\"\").Visible = xlVeryHidden\"","v":"Sheets(\"Data - Membership of Local CGA\").Visible = xlVeryHidden"},null,null,null,null,null,null,19,"ActiveWindow.Zoom = Sheets(\"HIDDEN - Backend\").Range(\"E17\").Value",null,null,null,null,null,null,null,null,19,{"$f":"\"Sheets(\"\"\"&INDEX($G$2:$H$67,MATCH(AB57,$H$2:$H$67,0),1)&\"\"\").EnableSelection = xlNoSelection\"","v":"Sheets(\"Widely Used Practices\").EnableSelection = xlNoSelection"},null,null,null,null,null,null,null,null,null,null,null,null,12,{"$f":"\"Sub \"&SUBSTITUTE(SUBSTITUTE(INDEX($G$2:$I$67,MATCH(AP57,$I$2:$I$67,0),1),\" \",\"\"),\"-\",\"\")&\"Button()\"","v":"Sub RiparianAreaofFarmButton()"}]
[null,null,null,null,null,null,"Community Contribution",{"$f":"H56+1","v":29},27,null,null,null,null,null,null,null,null,19,null,null,null,null,null,null,null,null,null,19,null,null,null,null,null,null,null,null,null,null,null,null,null,12]
[null,null,null,null,null,null,"Data - Community Contribution",null,null,29,{"$f":"\"Sheets(\"\"\"&G59&\"\"\").Visible = xlVeryHidden\"","v":"Sheets(\"Data - Community Contribution\").Visible = xlVeryHidden"},null,null,null,null,null,null,20,{"$f":"\"Sheets(\"\"\"&INDEX($G$2:$H$67,MATCH(R59,$H$2:$H$67,0),1)&\"\"\").Select\"","v":"Sheets(\"Weed Control Over Crop\").Select"},null,null,null,null,null,null,null,null,20,{"$f":"\"Sheets(\"\"\"&INDEX($G$2:$H$67,MATCH(AB59,$H$2:$H$67,0),1)&\"\"\").Protect Password:=\"\"Intuitive_1\"\", DrawingObjects:=True, Contents:=True, Scenarios:=True\"","v":"Sheets(\"Weed Control Over Crop\").Protect Password:=\"Intuitive_1\", DrawingObjects:=True, Contents:=True, Scenarios:=True"},null,null,null,null,null,null,null,null,null,null,null,null,12,{"$f":"\"Sheets(\"\"\"&INDEX($G$2:$I$67,MATCH(AP57,$I$2:$I$67,0),1)&\"\"\").Activate\"","v":"Sheets(\"Riparian Area of Farm\").Activate"}]
[null,null,null,null,null,null,"Benefits and Value",{"$f":"H58+1","v":30},28,null,null,null,null,null,null,null,null,20,"ActiveWindow.Zoom = Sheets(\"HIDDEN - Backend\").Range(\"E17\").Value",null,null,null,null,null,null,null,null,20,{"$f":"\"Sheets(\"\"\"&INDEX($G$2:$H$67,MATCH(AB60,$H$2:$H$67,0),1)&\"\"\").EnableSelection = xlNoSelection\"","v":"Sheets(\"Weed Control Over Crop\").EnableSelection = xlNoSelection"},null,null,null,null,null,null,null,null,null,null,null,null,12]
[null,null,null,null,null,null,"Data - Benefits and Value",null,null,30,{"$f":"\"Sheets(\"\"\"&G61&\"\"\").Visible = xlVeryHidden\"","v":"Sheets(\"Data - Benefits and Value\").Visible = xlVeryHidden"},null,null,null,null,null,null,20,null,null,null,null,null,null,null,null,null,20,null,null,null,null,null,null,null,null,null,null,null,null,null,12,"End Sub"]
[null,null,null,null,null,null,"Reasons for Non-Member",{"$f":"H60+1","v":31},29,null,null,null,null,null,null,null,null,21,{"$f":"\"Sheets(\"\"\"&INDEX($G$2:$H$67,MATCH(R62,$H$2:$H$67,0),1)&\"\"\").Select\"","v":"Sheets(\"Weed Control Over Fallows\").Select"},null,null,null,null,null,null,null,null,21,{"$f":"\"Sheets(\"\"\"&INDEX($G$2:$H$67,MATCH(AB62,$H$2:$H$67,0),1)&\"\"\").Protect Password:=\"\"Intuitive_1\"\", DrawingObjects:=True, Contents:=True, Scenarios:=True\"","v":"Sheets(\"Weed Control Over Fallows\").Protect Password:=\"Intuitive_1\", DrawingObjects:=True, Contents:=True, Scenarios:=True"},null,null,null,null,null,null,null,null,null,null,null,null,13,{"$f":"\"Sub \"&SUBSTITUTE(SUBSTITUTE(INDEX($G$2:$I$67,MATCH(AP62,$I$2:$I$67,0),1),\" \",\"\"),\"-\",\"\")&\"Button()\"","v":"Sub OptimismFactorsButton()"}]
[null,null,null,null,null,null,"Data - Reasons for Non-Member",null,null,31,{"$f":"\"Sheets(\"\"\"&G63&\"\"\").Visible = xlVeryHidden\"","v":"Sheets(\"Data - Reasons for Non-Member\").Visible = xlVeryHidden"},null,null,null,null,null,null,21,"ActiveWindow.Zoom = Sheets(\"HIDDEN - Backend\").Range(\"E17\").Value",null,null,null,null,null,null,null,null,21,{"$f":"\"Sheets(\"\"\"&INDEX($G$2:$H$67,MATCH(AB63,$H$2:$H$67,0),1)&\"\"\").EnableSelection = xlNoSelection\"","v":"Sheets(\"Weed Control Over Fallows\").EnableSelection = xlNoSelection"},null,null,null,null,null,null,null,null,null,null,null,null,13]
[null,null,null,null,null,null,"Aboriginal Heritage",{"$f":"H62+1","v":32},30,null,null,null,null,null,null,null,null,21,null,null,null,null,null,null,null,null,null,21,null,null,null,null,null,null,null,null,null,null,null,null,null,13,{"$f":"\"Sheets(\"\"\"&INDEX($G$2:$I$67,MATCH(AP62,$I$2:$I$67,0),1)&\"\"\").Activate\"","v":"Sheets(\"Optimism Factors\").Activate"}]
[null,null,null,null,null,null,"Data - Aboriginal Heritage",null,null,32,{"$f":"\"Sheets(\"\"\"&G65&\"\"\").Visible = xlVeryHidden\"","v":"Sheets(\"Data - Aboriginal Heritage\").Visible = xlVeryHidden"},null,null,null,null,null,null,22,{"$f":"\"Sheets(\"\"\"&INDEX($G$2:$H$67,MATCH(R65,$H$2:$H$67,0),1)&\"\"\").Select\"","v":"Sheets(\"Ecosystem Services\").Select"},null,null,null,null,null,null,null,null,22,{"$f":"\"Sheets(\"\"\"&INDEX($G$2:$H$67,MATCH(AB65,$H$2:$H$67,0),1)&\"\"\").Protect Password:=\"\"Intuitive_1\"\", DrawingObjects:=True, Contents:=True, Scenarios:=True\"","v":"Sheets(\"Ecosystem Services\").Protect Password:=\"Intuitive_1\", DrawingObjects:=True, Contents:=True, Scenarios:=True"},null,null,null,null,null,null,null,null,null,null,null,null,13]
[null,null,null,null,null,null,"Information Sharing",{"$f":"H64+1","v":33},31,null,null,null,null,null,null,null,null,22,"ActiveWindow.Zoom = Sheets(\"HIDDEN - Backend\").Range(\"E17\").Value",null,null,null,null,null,null,null,null,22,{"$f":"\"Sheets(\"\"\"&INDEX($G$2:$H$67,MATCH(AB66,$H$2:$H$67,0),1)&\"\"\").EnableSelection = xlNoSelection\"","v":"Sheets(\"Ecosystem Services\").EnableSelection = xlNoSelection"},null,null,null,null,null,null,null,null,null,null,null,null,13,"End Sub"]
[null,null,null,null,null,null,"Data - Information Sharing",null,null,33,{"$f":"\"Sheets(\"\"\"&G67&\"\"\").Visible = xlVeryHidden\"","v":"Sheets(\"Data - Information Sharing\").Visible = xlVeryHidden"},null,null,null,null,null,null,22,null,null,null,null,null,null,null,null,null,22,null,null,null,null,null,null,null,null,null,null,null,null,null,14,{"$f":"\"Sub \"&SUBSTITUTE(SUBSTITUTE(INDEX($G$2:$I$67,MATCH(AP67,$I$2:$I$67,0),1),\" \",\"\"),\"-\",\"\")&\"Button()\"","v":"Sub MainChallengesButton()"}]
[null,null,null,null,null,null,null,null,null,null,null,null,null,null,null,null,null,23,{"$f":"\"Sheets(\"\"\"&INDEX($G$2:$H$67,MATCH(R68,$H$2:$H$67,0),1)&\"\"\").Select\"","v":"Sheets(\"Significant Changes\").Select"},null,null,null,null,null,null,null,null,23,{"$f":"\"Sheets(\"\"\"&INDEX($G$2:$H$67,MATCH(AB68,$H$2:$H$67,0),1)&\"\"\").Protect Password:=\"\"Intuitive_1\"\", DrawingObjects:=True, Contents:=True, Scenarios:=True\"","v":"Sheets(\"Significant Changes\").Protect Password:=\"Intuitive_1\", DrawingObjects:=True, Contents:=True, Scenarios:=True"},null,null,null,null,null,null,null,null,null,null,null,null,14]
[null,null,null,null,null,null,null,null,null,null,null,null,null,null,null,null,null,23,"ActiveWindow.Zoom = Sheets(\"HIDDEN - Backend\").Range(\"E17\").Value",null,null,null,null,null,null,null,null,23,{"$f":"\"Sheets(\"\"\"&INDEX($G$2:$H$67,MATCH(AB69,$H$2:$H$67,0),1)&\"\"\").EnableSelection = xlNoSelection\"","v":"Sheets(\"Significant Changes\").EnableSelection = xlNoSelection"},null,null,null,null,null,null,null,null,null,null,null,null,14,{"$f":"\"Sheets(\"\"\"&INDEX($G$2:$I$67,MATCH(AP67,$I$2:$I$67,0),1)&\"\"\").Activate\"","v":"Sheets(\"Main Challenges\").Activate"}]
[null,null,null,null,null,null,null,null,null,null,null,null,null,null,null,null,null,23,null,null,null,null,null,null,null,null,null,23,null,null,null,null,null,null,null,null,null,null,null,null,null,14]
[null,null,null,null,null,null,null,null,null,null,null,null,null,null,null,null,null,24,{"$f":"\"Sheets(\"\"\"&INDEX($G$2:$H$67,MATCH(R71,$H$2:$H$67,0),1)&\"\"\").Select\"","v":"Sheets(\"Riparian Problems\").Select"},null,null,null,null,null,null,null,null,24,{"$f":"\"Sheets(\"\"\"&INDEX($G$2:$H$67,MATCH(AB71,$H$2:$H$67,0),1)&\"\"\").Protect Password:=\"\"Intuitive_1\"\", DrawingObjects:=True, Contents:=True, Scenarios:=True\"","v":"Sheets(\"Riparian Problems\").Protect Password:=\"Intuitive_1\", DrawingObjects:=True, Contents:=True, Scenarios:=True"},null,null,null,null,null,null,null,null,null,null,null,null,14,"End Sub"]
[null,null,null,null,null,null,null,null,null,null,null,null,null,null,null,null,null,{"$f":"R69+1","v":24},"ActiveWindow.Zoom = Sheets(\"HIDDEN - Backend\").Range(\"E17\").Value",null,null,null,null,null,null,null,null,{"$f":"AB69+1","v":24},{"$f":"\"Sheets(\"\"\"&INDEX($G$2:$H$67,MATCH(AB72,$H$2:$H$67,0),1)&\"\"\").EnableSelection = xlNoSelection\"","v":"Sheets(\"Riparian Problems\").EnableSelection = xlNoSelection"},null,null,null,null,null,null,null,null,null,null,null,null,{"$f":"AP67+1","v":15},{"$f":"\"Sub \"&SUBSTITUTE(SUBSTITUTE(INDEX($G$2:$I$67,MATCH(AP72,$I$2:$I$67,0),1),\" \",\"\"),\"-\",\"\")&\"Button()\"","v":"Sub PlantedAreaButton()"}]
[null,null,null,null,null,null,null,null,null,null,null,null,null,null,null,null,null,24,null,null,null,null,null,null,null,null,null,24,null,null,null,null,null,null,null,null,null,null,null,null,null,15]
[null,null,null,null,null,null,null,null,null,null,null,null,null,null,null,null,null,25,{"$f":"\"Sheets(\"\"\"&INDEX($G$2:$H$67,MATCH(R74,$H$2:$H$67,0),1)&\"\"\").Select\"","v":"Sheets(\"Accredited Education\").Select"},null,null,null,null,null,null,null,null,25,{"$f":"\"Sheets(\"\"\"&INDEX($G$2:$H$67,MATCH(AB74,$H$2:$H$67,0),1)&\"\"\").Protect Password:=\"\"Intuitive_1\"\", DrawingObjects:=True, Contents:=True, Scenarios:=True\"","v":"Sheets(\"Accredited Education\").Protect Password:=\"Intuitive_1\", DrawingObjects:=True, Contents:=True, Scenarios:=True"},null,null,null,null,null,null,null,null,null,null,null,null,15,{"$f":"\"Sheets(\"\"\"&INDEX($G$2:$I$67,MATCH(AP72,$I$2:$I$67,0),1)&\"\"\").Activate\"","v":"Sheets(\"Planted Area\").Activate"}]
[null,null,null,null,null,null,null,null,null,null,null,null,null,null,null,null,null,25,"ActiveWindow.Zoom = Sheets(\"HIDDEN - Backend\").Range(\"E17\").Value",null,null,null,null,null,null,null,null,25,{"$f":"\"Sheets(\"\"\"&INDEX($G$2:$H$67,MATCH(AB75,$H$2:$H$67,0),1)&\"\"\").EnableSelection = xlNoSelection\"","v":"Sheets(\"Accredited Education\").EnableSelection = xlNoSelection"},null,null,null,null,null,null,null,null,null,null,null,null,15]
[null,null,null,null,null,null,null,null,null,null,null,null,null,null,null,null,null,25,null,null,null,null,null,null,null,null,null,25,null,null,null,null,null,null,null,null,null,null,null,null,null,15,"End Sub"]
[null,null,null,null,null,null,null,null,null,null,null,null,null,null,null,null,null,26,{"$f":"\"Sheets(\"\"\"&INDEX($G$2:$H$67,MATCH(R77,$H$2:$H$67,0),1)&\"\"\").Select\"","v":"Sheets(\"Off-Farm Training\").Select"},null,null,null,null,null,null,null,null,26,{"$f":"\"Sheets(\"\"\"&INDEX($G$2:$H$67,MATCH(AB77,$H$2:$H$67,0),1)&\"\"\").Protect Password:=\"\"Intuitive_1\"\", DrawingObjects:=True, Contents:=True, Scenarios:=True\"","v":"Sheets(\"Off-Farm Training\").Protect Password:=\"Intuitive_1\", DrawingObjects:=True, Contents:=True, Scenarios:=True"},null,null,null,null,null,null,null,null,null,null,null,null,16,{"$f":"\"Sub \"&SUBSTITUTE(SUBSTITUTE(INDEX($G$2:$I$67,MATCH(AP77,$I$2:$I$67,0),1),\" \",\"\"),\"-\",\"\")&\"Button()\"","v":"Sub CottonYieldsButton()"}]
[null,null,null,null,null,null,null,null,null,null,null,null,null,null,null,null,null,26,"ActiveWindow.Zoom = Sheets(\"HIDDEN - Backend\").Range(\"E17\").Value",null,null,null,null,null,null,null,null,26,{"$f":"\"Sheets(\"\"\"&INDEX($G$2:$H$67,MATCH(AB78,$H$2:$H$67,0),1)&\"\"\").EnableSelection = xlNoSelection\"","v":"Sheets(\"Off-Farm Training\").EnableSelection = xlNoSelection"},null,null,null,null,null,null,null,null,null,null,null,null,16]
[null,null,null,null,null,null,null,null,null,null,null,null,null,null,null,null,null,26,null,null,null,null,null,null,null,null,null,26,null,null,null,null,null,null,null,null,null,null,null,null,null,16,{"$f":"\"Sheets(\"\"\"&INDEX($G$2:$I$67,MATCH(AP77,$I$2:$I$67,0),1)&\"\"\").Activate\"","v":"Sheets(\"Cotton Yields\").Activate"}]
[null,null,null,null,null,null,null,null,null,null,null,null,null,null,null,null,null,27,{"$f":"\"Sheets(\"\"\"&INDEX($G$2:$H$67,MATCH(R80,$H$2:$H$67,0),1)&\"\"\").Select\"","v":"Sheets(\"Labour Hire Companies\").Select"},null,null,null,null,null,null,null,null,27,{"$f":"\"Sheets(\"\"\"&INDEX($G$2:$H$67,MATCH(AB80,$H$2:$H$67,0),1)&\"\"\").Protect Password:=\"\"Intuitive_1\"\", DrawingObjects:=True, Contents:=True, Scenarios:=True\"","v":"Sheets(\"Labour Hire Companies\").Protect Password:=\"Intuitive_1\", DrawingObjects:=True, Contents:=True, Scenarios:=True"},null,null,null,null,null,null,null,null,null,null,null,null,16]
[null,null,null,null,null,null,null,null,null,null,null,null,null,null,null,null,null,27,"ActiveWindow.Zoom = Sheets(\"HIDDEN - Backend\").Range(\"E17\").Value",null,null,null,null,null,null,null,null,27,{"$f":"\"Sheets(\"\"\"&INDEX($G$2:$H$67,MATCH(AB81,$H$2:$H$67,0),1)&\"\"\").EnableSelection = xlNoSelection\"","v":"Sheets(\"Labour Hire Companies\").EnableSelection = xlNoSelection"},null,null,null,null,null,null,null,null,null,null,null,null,16,"End Sub"]
[null,null,null,null,null,null,null,null,null,null,null,null,null,null,null,null,null,27,null,null,null,null,null,null,null,null,null,27,null,null,null,null,null,null,null,null,null,null,null,null,null,17,{"$f":"\"Sub \"&SUBSTITUTE(SUBSTITUTE(INDEX($G$2:$I$67,MATCH(AP82,$I$2:$I$67,0),1),\" \",\"\"),\"-\",\"\")&\"Button()\"","v":"Sub WidelyUsedPracticesButton()"}]
[null,null,null,null,null,null,null,null,null,null,null,null,null,null,null,null,null,28,{"$f":"\"Sheets(\"\"\"&INDEX($G$2:$H$67,MATCH(R83,$H$2:$H$67,0),1)&\"\"\").Select\"","v":"Sheets(\"Membership of Local CGA\").Select"},null,null,null,null,null,null,null,null,28,{"$f":"\"Sheets(\"\"\"&INDEX($G$2:$H$67,MATCH(AB83,$H$2:$H$67,0),1)&\"\"\").Protect Password:=\"\"Intuitive_1\"\", DrawingObjects:=True, Contents:=True, Scenarios:=True\"","v":"Sheets(\"Membership of Local CGA\").Protect Password:=\"Intuitive_1\", DrawingObjects:=True, Contents:=True, Scenarios:=True"},null,null,null,null,null,null,null,null,null,null,null,null,17]
[null,null,null,null,null,null,null,null,null,null,null,null,null,null,null,null,null,28,"ActiveWindow.Zoom = Sheets(\"HIDDEN - Backend\").Range(\"E17\").Value",null,null,null,null,null,null,null,null,28,{"$f":"\"Sheets(\"\"\"&INDEX($G$2:$H$67,MATCH(AB84,$H$2:$H$67,0),1)&\"\"\").EnableSelection = xlNoSelection\"","v":"Sheets(\"Membership of Local CGA\").EnableSelection = xlNoSelection"},null,null,null,null,null,null,null,null,null,null,null,null,17,{"$f":"\"Sheets(\"\"\"&INDEX($G$2:$I$67,MATCH(AP82,$I$2:$I$67,0),1)&\"\"\").Activate\"","v":"Sheets(\"Widely Used Practices\").Activate"}]
[null,null,null,null,null,null,null,null,null,null,null,null,null,null,null,null,null,28,null,null,null,null,null,null,null,null,null,28,null,null,null,null,null,null,null,null,null,null,null,null,null,17]
[null,null,null,null,null,null,null,null,null,null,null,null,null,null,null,null,null,29,{"$f":"\"Sheets(\"\"\"&INDEX($G$2:$H$67,MATCH(R86,$H$2:$H$67,0),1)&\"\"\").Select\"","v":"Sheets(\"Community Contribution\").Select"},null,null,null,null,null,null,null,null,29,{"$f":"\"Sheets(\"\"\"&INDEX($G$2:$H$67,MATCH(AB86,$H$2:$H$67,0),1)&\"\"\").Protect Password:=\"\"Intuitive_1\"\", DrawingObjects:=True, Contents:=True, Scenarios:=True\"","v":"Sheets(\"Community Contribution\").Protect Password:=\"Intuitive_1\", DrawingObjects:=True, Contents:=True, Scenarios:=True"},null,null,null,null,null,null,null,null,null,null,null,null,17,"End Sub"]
[null,null,null,null,null,null,null,null,null,null,null,null,null,null,null,null,null,29,"ActiveWindow.Zoom = Sheets(\"HIDDEN - Backend\").Range(\"E17\").Value",null,null,null,null,null,null,null,null,29,{"$f":"\"Sheets(\"\"\"&INDEX($G$2:$H$67,MATCH(AB87,$H$2:$H$67,0),1)&\"\"\").EnableSelection = xlNoSelection\"","v":"Sheets(\"Community Contribution\").EnableSelection = xlNoSelection"},null,null,null,null,null,null,null,null,null,null,null,null,18,{"$f":"\"Sub \"&SUBSTITUTE(SUBSTITUTE(INDEX($G$2:$I$67,MATCH(AP87,$I$2:$I$67,0),1),\" \",\"\"),\"-\",\"\")&\"Button()\"","v":"Sub WeedControlOverCropButton()"}]
[null,null,null,null,null,null,null,null,null,null,null,null,null,null,null,null,null,29,null,null,null,null,null,null,null,null,null,29,null,null,null,null,null,null,null,null,null,null,null,null,null,18]
[null,null,null,null,null,null,null,null,null,null,null,null,null,null,null,null,null,30,{"$f":"\"Sheets(\"\"\"&INDEX($G$2:$H$67,MATCH(R89,$H$2:$H$67,0),1)&\"\"\").Select\"","v":"Sheets(\"Benefits and Value\").Select"},null,null,null,null,null,null,null,null,30,{"$f":"\"Sheets(\"\"\"&INDEX($G$2:$H$67,MATCH(AB89,$H$2:$H$67,0),1)&\"\"\").Protect Password:=\"\"Intuitive_1\"\", DrawingObjects:=True, Contents:=True, Scenarios:=True\"","v":"Sheets(\"Benefits and Value\").Protect Password:=\"Intuitive_1\", DrawingObjects:=True, Contents:=True, Scenarios:=True"},null,null,null,null,null,null,null,null,null,null,null,null,18,{"$f":"\"Sheets(\"\"\"&INDEX($G$2:$I$67,MATCH(AP87,$I$2:$I$67,0),1)&\"\"\").Activate\"","v":"Sheets(\"Weed Control Over Crop\").Activate"}]
[null,null,null,null,null,null,null,null,null,null,null,null,null,null,null,null,null,30,"ActiveWindow.Zoom = Sheets(\"HIDDEN - Backend\").Range(\"E17\").Value",null,null,null,null,null,null,null,null,30,{"$f":"\"Sheets(\"\"\"&INDEX($G$2:$H$67,MATCH(AB90,$H$2:$H$67,0),1)&\"\"\").EnableSelection = xlNoSelection\"","v":"Sheets(\"Benefits and Value\").EnableSelection = xlNoSelection"},null,null,null,null,null,null,null,null,null,null,null,null,18]
[null,null,null,null,null,null,null,null,null,null,null,null,null,null,null,null,null,30,null,null,null,null,null,null,null,null,null,30,null,null,null,null,null,null,null,null,null,null,null,null,null,18,"End Sub"]
[null,null,null,null,null,null,null,null,null,null,null,null,null,null,null,null,null,31,{"$f":"\"Sheets(\"\"\"&INDEX($G$2:$H$67,MATCH(R92,$H$2:$H$67,0),1)&\"\"\").Select\"","v":"Sheets(\"Reasons for Non-Member\").Select"},null,null,null,null,null,null,null,null,31,{"$f":"\"Sheets(\"\"\"&INDEX($G$2:$H$67,MATCH(AB92,$H$2:$H$67,0),1)&\"\"\").Protect Password:=\"\"Intuitive_1\"\", DrawingObjects:=True, Contents:=True, Scenarios:=True\"","v":"Sheets(\"Reasons for Non-Member\").Protect Password:=\"Intuitive_1\", DrawingObjects:=True, Contents:=True, Scenarios:=True"},null,null,null,null,null,null,null,null,null,null,null,null,19,{"$f":"\"Sub \"&SUBSTITUTE(SUBSTITUTE(INDEX($G$2:$I$67,MATCH(AP92,$I$2:$I$67,0),1),\" \",\"\"),\"-\",\"\")&\"Button()\"","v":"Sub WeedControlOverFallowsButton()"}]
[null,null,null,null,null,null,null,null,null,null,null,null,null,null,null,null,null,31,"ActiveWindow.Zoom = Sheets(\"HIDDEN - Backend\").Range(\"E17\").Value",null,null,null,null,null,null,null,null,31,{"$f":"\"Sheets(\"\"\"&INDEX($G$2:$H$67,MATCH(AB93,$H$2:$H$67,0),1)&\"\"\").EnableSelection = xlNoSelection\"","v":"Sheets(\"Reasons for Non-Member\").EnableSelection = xlNoSelection"},null,null,null,null,null,null,null,null,null,null,null,null,19]
[null,null,null,null,null,null,null,null,null,null,null,null,null,null,null,null,null,31,null,null,null,null,null,null,null,null,null,31,null,null,null,null,null,null,null,null,null,null,null,null,null,19,{"$f":"\"Sheets(\"\"\"&INDEX($G$2:$I$67,MATCH(AP92,$I$2:$I$67,0),1)&\"\"\").Activate\"","v":"Sheets(\"Weed Control Over Fallows\").Activate"}]
[null,null,null,null,null,null,null,null,null,null,null,null,null,null,null,null,null,32,{"$f":"\"Sheets(\"\"\"&INDEX($G$2:$H$67,MATCH(R95,$H$2:$H$67,0),1)&\"\"\").Select\"","v":"Sheets(\"Aboriginal Heritage\").Select"},null,null,null,null,null,null,null,null,32,{"$f":"\"Sheets(\"\"\"&INDEX($G$2:$H$67,MATCH(AB95,$H$2:$H$67,0),1)&\"\"\").Protect Password:=\"\"Intuitive_1\"\", DrawingObjects:=True, Contents:=True, Scenarios:=True\"","v":"Sheets(\"Aboriginal Heritage\").Protect Password:=\"Intuitive_1\", DrawingObjects:=True, Contents:=True, Scenarios:=True"},null,null,null,null,null,null,null,null,null,null,null,null,19]
[null,null,null,null,null,null,null,null,null,null,null,null,null,null,null,null,null,32,"ActiveWindow.Zoom = Sheets(\"HIDDEN - Backend\").Range(\"E17\").Value",null,null,null,null,null,null,null,null,32,{"$f":"\"Sheets(\"\"\"&INDEX($G$2:$H$67,MATCH(AB96,$H$2:$H$67,0),1)&\"\"\").EnableSelection = xlNoSelection\"","v":"Sheets(\"Aboriginal Heritage\").EnableSelection = xlNoSelection"},null,null,null,null,null,null,null,null,null,null,null,null,19,"End Sub"]
[null,null,null,null,null,null,null,null,null,null,null,null,null,null,null,null,null,32,null,null,null,null,null,null,null,null,null,32,null,null,null,null,null,null,null,null,null,null,null,null,null,20,{"$f":"\"Sub \"&SUBSTITUTE(SUBSTITUTE(INDEX($G$2:$I$67,MATCH(AP97,$I$2:$I$67,0),1),\" \",\"\"),\"-\",\"\")&\"Button()\"","v":"Sub EcosystemServicesButton()"}]
[null,null,null,null,null,null,null,null,null,null,null,null,null,null,null,null,null,33,{"$f":"\"Sheets(\"\"\"&INDEX($G$2:$H$67,MATCH(R98,$H$2:$H$67,0),1)&\"\"\").Select\"","v":"Sheets(\"Information Sharing\").Select"},null,null,null,null,null,null,null,null,33,{"$f":"\"Sheets(\"\"\"&INDEX($G$2:$H$67,MATCH(AB98,$H$2:$H$67,0),1)&\"\"\").Protect Password:=\"\"Intuitive_1\"\", DrawingObjects:=True, Contents:=True, Scenarios:=True\"","v":"Sheets(\"Information Sharing\").Protect Password:=\"Intuitive_1\", DrawingObjects:=True, Contents:=True, Scenarios:=True"},null,null,null,null,null,null,null,null,null,null,null,null,20]
[null,null,null,null,null,null,null,null,null,null,null,null,null,null,null,null,null,33,"ActiveWindow.Zoom = Sheets(\"HIDDEN - Backend\").Range(\"E17\").Value",null,null,null,null,null,null,null,null,33,{"$f":"\"Sheets(\"\"\"&INDEX($G$2:$H$67,MATCH(AB99,$H$2:$H$67,0),1)&\"\"\").EnableSelection = xlNoSelection\"","v":"Sheets(\"Information Sharing\").EnableSelection = xlNoSelection"},null,null,null,null,null,null,null,null,null,null,null,null,20,{"$f":"\"Sheets(\"\"\"&INDEX($G$2:$I$67,MATCH(AP97,$I$2:$I$67,0),1)&\"\"\").Activate\"","v":"Sheets(\"Ecosystem Services\").Activate"}]
[null,null,null,null,null,null,null,null,null,null,null,null,null,null,null,null,null,33,null,null,null,null,null,null,null,null,null,33,null,null,null,null,null,null,null,null,null,null,null,null,null,20]
[null,null,null,null,null,null,null,null,null,null,null,null,null,null,null,null,null,null,null,null,null,null,null,null,null,null,null,null,null,null,null,null,null,null,null,null,null,null,null,null,null,20,"End Sub"]
[null,null,null,null,null,null,null,null,null,null,null,null,null,null,null,null,null,null,null,null,null,null,null,null,null,null,null,null,null,null,null,null,null,null,null,null,null,null,null,null,null,21,{"$f":"\"Sub \"&SUBSTITUTE(SUBSTITUTE(INDEX($G$2:$I$67,MATCH(AP102,$I$2:$I$67,0),1),\" \",\"\"),\"-\",\"\")&\"Button()\"","v":"Sub SignificantChangesButton()"}]
[null,null,null,null,null,null,null,null,null,null,null,null,null,null,null,null,null,null,null,null,null,null,null,null,null,null,null,null,null,null,null,null,null,null,null,null,null,null,null,null,null,21]
[null,null,null,null,null,null,null,null,null,null,null,null,null,null,null,null,null,null,null,null,null,null,null,null,null,null,null,null,null,null,null,null,null,null,null,null,null,null,null,null,null,21,{"$f":"\"Sheets(\"\"\"&INDEX($G$2:$I$67,MATCH(AP102,$I$2:$I$67,0),1)&\"\"\").Activate\"","v":"Sheets(\"Significant Changes\").Activate"}]
[null,null,null,null,null,null,null,null,null,null,null,null,null,null,null,null,null,null,null,null,null,null,null,null,null,null,null,null,null,null,null,null,null,null,null,null,null,null,null,null,null,21]
[null,null,null,null,null,null,null,null,null,null,null,null,null,null,null,null,null,null,null,null,null,null,null,null,null,null,null,null,null,null,null,null,null,null,null,null,null,null,null,null,null,21,"End Sub"]
[null,null,null,null,null,null,null,null,null,null,null,null,null,null,null,null,null,null,null,null,null,null,null,null,null,null,null,null,null,null,null,null,null,null,null,null,null,null,null,null,null,22,{"$f":"\"Sub \"&SUBSTITUTE(SUBSTITUTE(INDEX($G$2:$I$67,MATCH(AP107,$I$2:$I$67,0),1),\" \",\"\"),\"-\",\"\")&\"Button()\"","v":"Sub RiparianProblemsButton()"}]
[null,null,null,null,null,null,null,null,null,null,null,null,null,null,null,null,null,null,null,null,null,null,null,null,null,null,null,null,null,null,null,null,null,null,null,null,null,null,null,null,null,22]
[null,null,null,null,null,null,null,null,null,null,null,null,null,null,null,null,null,null,null,null,null,null,null,null,null,null,null,null,null,null,null,null,null,null,null,null,null,null,null,null,null,22,{"$f":"\"Sheets(\"\"\"&INDEX($G$2:$I$67,MATCH(AP107,$I$2:$I$67,0),1)&\"\"\").Activate\"","v":"Sheets(\"Riparian Problems\").Activate"}]
[null,null,null,null,null,null,null,null,null,null,null,null,null,null,null,null,null,null,null,null,null,null,null,null,null,null,null,null,null,null,null,null,null,null,null,null,null,null,null,null,null,22]
[null,null,null,null,null,null,null,null,null,null,null,null,null,null,null,null,null,null,null,null,null,null,null,null,null,null,null,null,null,null,null,null,null,null,null,null,null,null,null,null,null,22,"End Sub"]
[null,null,null,null,null,null,null,null,null,null,null,null,null,null,null,null,null,null,null,null,null,null,null,null,null,null,null,null,null,null,null,null,null,null,null,null,null,null,null,null,null,23,{"$f":"\"Sub \"&SUBSTITUTE(SUBSTITUTE(INDEX($G$2:$I$67,MATCH(AP112,$I$2:$I$67,0),1),\" \",\"\"),\"-\",\"\")&\"Button()\"","v":"Sub AccreditedEducationButton()"}]
[null,null,null,null,null,null,null,null,null,null,null,null,null,null,null,null,null,null,null,null,null,null,null,null,null,null,null,null,null,null,null,null,null,null,null,null,null,null,null,null,null,23]
[null,null,null,null,null,null,null,null,null,null,null,null,null,null,null,null,null,null,null,null,null,null,null,null,null,null,null,null,null,null,null,null,null,null,null,null,null,null,null,null,null,23,{"$f":"\"Sheets(\"\"\"&INDEX($G$2:$I$67,MATCH(AP112,$I$2:$I$67,0),1)&\"\"\").Activate\"","v":"Sheets(\"Accredited Education\").Activate"}]
[null,null,null,null,null,null,null,null,null,null,null,null,null,null,null,null,null,null,null,null,null,null,null,null,null,null,null,null,null,null,null,null,null,null,null,null,null,null,null,null,null,23]
[null,null,null,null,null,null,null,null,null,null,null,null,null,null,null,null,null,null,null,null,null,null,null,null,null,null,null,null,null,null,null,null,null,null,null,null,null,null,null,null,null,23,"End Sub"]
[null,null,null,null,null,null,null,null,null,null,null,null,null,null,null,null,null,null,null,null,null,null,null,null,null,null,null,null,null,null,null,null,null,null,null,null,null,null,null,null,null,24,{"$f":"\"Sub \"&SUBSTITUTE(SUBSTITUTE(INDEX($G$2:$I$67,MATCH(AP117,$I$2:$I$67,0),1),\" \",\"\"),\"-\",\"\")&\"Button()\"","v":"Sub OffFarmTrainingButton()"}]
[null,null,null,null,null,null,null,null,null,null,null,null,null,null,null,null,null,null,null,null,null,null,null,null,null,null,null,null,null,null,null,null,null,null,null,null,null,null,null,null,null,24]
[null,null,null,null,null,null,null,null,null,null,null,null,null,null,null,null,null,null,null,null,null,null,null,null,null,null,null,null,null,null,null,null,null,null,null,null,null,null,null,null,null,24,{"$f":"\"Sheets(\"\"\"&INDEX($G$2:$I$67,MATCH(AP117,$I$2:$I$67,0),1)&\"\"\").Activate\"","v":"Sheets(\"Off-Farm Training\").Activate"}]
[null,null,null,null,null,null,null,null,null,null,null,null,null,null,null,null,null,null,null,null,null,null,null,null,null,null,null,null,null,null,null,null,null,null,null,null,null,null,null,null,null,24]
[null,null,null,null,null,null,null,null,null,null,null,null,null,null,null,null,null,null,null,null,null,null,null,null,null,null,null,null,null,null,null,null,null,null,null,null,null,null,null,null,null,24,"End Sub"]
[null,null,null,null,null,null,null,null,null,null,null,null,null,null,null,null,null,null,null,null,null,null,null,null,null,null,null,null,null,null,null,null,null,null,null,null,null,null,null,null,null,25,{"$f":"\"Sub \"&SUBSTITUTE(SUBSTITUTE(INDEX($G$2:$I$67,MATCH(AP122,$I$2:$I$67,0),1),\" \",\"\"),\"-\",\"\")&\"Button()\"","v":"Sub LabourHireCompaniesButton()"}]
[null,null,null,null,null,null,null,null,null,null,null,null,null,null,null,null,null,null,null,null,null,null,null,null,null,null,null,null,null,null,null,null,null,null,null,null,null,null,null,null,null,25]
[null,null,null,null,null,null,null,null,null,null,null,null,null,null,null,null,null,null,null,null,null,null,null,null,null,null,null,null,null,null,null,null,null,null,null,null,null,null,null,null,null,25,{"$f":"\"Sheets(\"\"\"&INDEX($G$2:$I$67,MATCH(AP122,$I$2:$I$67,0),1)&\"\"\").Activate\"","v":"Sheets(\"Labour Hire Companies\").Activate"}]
[null,null,null,null,null,null,null,null,null,null,null,null,null,null,null,null,null,null,null,null,null,null,null,null,null,null,null,null,null,null,null,null,null,null,null,null,null,null,null,null,null,25]
[null,null,null,null,null,null,null,null,null,null,null,null,null,null,null,null,null,null,null,null,null,null,null,null,null,null,null,null,null,null,null,null,null,null,null,null,null,null,null,null,null,25,"End Sub"]
[null,null,null,null,null,null,null,null,null,null,null,null,null,null,null,null,null,null,null,null,null,null,null,null,null,null,null,null,null,null,null,null,null,null,null,null,null,null,null,null,null,26,{"$f":"\"Sub \"&SUBSTITUTE(SUBSTITUTE(INDEX($G$2:$I$67,MATCH(AP127,$I$2:$I$67,0),1),\" \",\"\"),\"-\",\"\")&\"Button()\"","v":"Sub MembershipofLocalCGAButton()"}]
[null,null,null,null,null,null,null,null,null,null,null,null,null,null,null,null,null,null,null,null,null,null,null,null,null,null,null,null,null,null,null,null,null,null,null,null,null,null,null,null,null,26]
[null,null,null,null,null,null,null,null,null,null,null,null,null,null,null,null,null,null,null,null,null,null,null,null,null,null,null,null,null,null,null,null,null,null,null,null,null,null,null,null,null,26,{"$f":"\"Sheets(\"\"\"&INDEX($G$2:$I$67,MATCH(AP127,$I$2:$I$67,0),1)&\"\"\").Activate\"","v":"Sheets(\"Membership of Local CGA\").Activate"}]
[null,null,null,null,null,null,null,null,null,null,null,null,null,null,null,null,null,null,null,null,null,null,null,null,null,null,null,null,null,null,null,null,null,null,null,null,null,null,null,null,null,26]
[null,null,null,null,null,null,null,null,null,null,null,null,null,null,null,null,null,null,null,null,null,null,null,null,null,null,null,null,null,null,null,null,null,null,null,null,null,null,null,null,null,26,"End Sub"]
[null,null,null,null,null,null,null,null,null,null,null,null,null,null,null,null,null,null,null,null,null,null,null,null,null,null,null,null,null,null,null,null,null,null,null,null,null,null,null,null,null,27,{"$f":"\"Sub \"&SUBSTITUTE(SUBSTITUTE(INDEX($G$2:$I$67,MATCH(AP132,$I$2:$I$67,0),1),\" \",\"\"),\"-\",\"\")&\"Button()\"","v":"Sub CommunityContributionButton()"}]
[null,null,null,null,null,null,null,null,null,null,null,null,null,null,null,null,null,null,null,null,null,null,null,null,null,null,null,null,null,null,null,null,null,null,null,null,null,null,null,null,null,27]
[null,null,null,null,null,null,null,null,null,null,null,null,null,null,null,null,null,null,null,null,null,null,null,null,null,null,null,null,null,null,null,null,null,null,null,null,null,null,null,null,null,27,{"$f":"\"Sheets(\"\"\"&INDEX($G$2:$I$67,MATCH(AP132,$I$2:$I$67,0),1)&\"\"\").Activate\"","v":"Sheets(\"Community Contribution\").Activate"}]
[null,null,null,null,null,null,null,null,null,null,null,null,null,null,null,null,null,null,null,null,null,null,null,null,null,null,null,null,null,null,null,null,null,null,null,null,null,null,null,null,null,27]
[null,null,null,null,null,null,null,null,null,null,null,null,null,null,null,null,null,null,null,null,null,null,null,null,null,null,null,null,null,null,null,null,null,null,null,null,null,null,null,null,null,{"$f":"AP131+1","v":27},"End Sub"]
[null,null,null,null,null,null,null,null,null,null,null,null,null,null,null,null,null,null,null,null,null,null,null,null,null,null,null,null,null,null,null,null,null,null,null,null,null,null,null,null,null,28,{"$f":"\"Sub \"&SUBSTITUTE(SUBSTITUTE(INDEX($G$2:$I$67,MATCH(AP137,$I$2:$I$67,0),1),\" \",\"\"),\"-\",\"\")&\"Button()\"","v":"Sub BenefitsandValueButton()"}]
[null,null,null,null,null,null,null,null,null,null,null,null,null,null,null,null,null,null,null,null,null,null,null,null,null,null,null,null,null,null,null,null,null,null,null,null,null,null,null,null,null,28]
[null,null,null,null,null,null,null,null,null,null,null,null,null,null,null,null,null,null,null,null,null,null,null,null,null,null,null,null,null,null,null,null,null,null,null,null,null,null,null,null,null,28,{"$f":"\"Sheets(\"\"\"&INDEX($G$2:$I$67,MATCH(AP137,$I$2:$I$67,0),1)&\"\"\").Activate\"","v":"Sheets(\"Benefits and Value\").Activate"}]
[null,null,null,null,null,null,null,null,null,null,null,null,null,null,null,null,null,null,null,null,null,null,null,null,null,null,null,null,null,null,null,null,null,null,null,null,null,null,null,null,null,28]
[null,null,null,null,null,null,null,null,null,null,null,null,null,null,null,null,null,null,null,null,null,null,null,null,null,null,null,null,null,null,null,null,null,null,null,null,null,null,null,null,null,28,"End Sub"]
[null,null,null,null,null,null,null,null,null,null,null,null,null,null,null,null,null,null,null,null,null,null,null,null,null,null,null,null,null,null,null,null,null,null,null,null,null,null,null,null,null,29,{"$f":"\"Sub \"&SUBSTITUTE(SUBSTITUTE(INDEX($G$2:$I$67,MATCH(AP142,$I$2:$I$67,0),1),\" \",\"\"),\"-\",\"\")&\"Button()\"","v":"Sub ReasonsforNonMemberButton()"}]
[null,null,null,null,null,null,null,null,null,null,null,null,null,null,null,null,null,null,null,null,null,null,null,null,null,null,null,null,null,null,null,null,null,null,null,null,null,null,null,null,null,29]
[null,null,null,null,null,null,null,null,null,null,null,null,null,null,null,null,null,null,null,null,null,null,null,null,null,null,null,null,null,null,null,null,null,null,null,null,null,null,null,null,null,29,{"$f":"\"Sheets(\"\"\"&INDEX($G$2:$I$67,MATCH(AP142,$I$2:$I$67,0),1)&\"\"\").Activate\"","v":"Sheets(\"Reasons for Non-Member\").Activate"}]
[null,null,null,null,null,null,null,null,null,null,null,null,null,null,null,null,null,null,null,null,null,null,null,null,null,null,null,null,null,null,null,null,null,null,null,null,null,null,null,null,null,29]
[null,null,null,null,null,null,null,null,null,null,null,null,null,null,null,null,null,null,null,null,null,null,null,null,null,null,null,null,null,null,null,null,null,null,null,null,null,null,null,null,null,29,"End Sub"]
[null,null,null,null,null,null,null,null,null,null,null,null,null,null,null,null,null,null,null,null,null,null,null,null,null,null,null,null,null,null,null,null,null,null,null,null,null,null,null,null,null,30,{"$f":"\"Sub \"&SUBSTITUTE(SUBSTITUTE(INDEX($G$2:$I$67,MATCH(AP147,$I$2:$I$67,0),1),\" \",\"\"),\"-\",\"\")&\"Button()\"","v":"Sub AboriginalHeritageButton()"}]
[null,null,null,null,null,null,null,null,null,null,null,null,null,null,null,null,null,null,null,null,null,null,null,null,null,null,null,null,null,null,null,null,null,null,null,null,null,null,null,null,null,30]
[null,null,null,null,null,null,null,null,null,null,null,null,null,null,null,null,null,null,null,null,null,null,null,null,null,null,null,null,null,null,null,null,null,null,null,null,null,null,null,null,null,30,{"$f":"\"Sheets(\"\"\"&INDEX($G$2:$I$67,MATCH(AP147,$I$2:$I$67,0),1)&\"\"\").Activate\"","v":"Sheets(\"Aboriginal Heritage\").Activate"}]
[null,null,null,null,null,null,null,null,null,null,null,null,null,null,null,null,null,null,null,null,null,null,null,null,null,null,null,null,null,null,null,null,null,null,null,null,null,null,null,null,null,30]
[null,null,null,null,null,null,null,null,null,null,null,null,null,null,null,null,null,null,null,null,null,null,null,null,null,null,null,null,null,null,null,null,null,null,null,null,null,null,null,null,null,30,"End Sub"]
[null,null,null,null,null,null,null,null,null,null,null,null,null,null,null,null,null,null,null,null,null,null,null,null,null,null,null,null,null,null,null,null,null,null,null,null,null,null,null,null,null,31,{"$f":"\"Sub \"&SUBSTITUTE(SUBSTITUTE(INDEX($G$2:$I$67,MATCH(AP152,$I$2:$I$67,0),1),\" \",\"\"),\"-\",\"\")&\"Button()\"","v":"Sub InformationSharingButton()"}]
[null,null,null,null,null,null,null,null,null,null,null,null,null,null,null,null,null,null,null,null,null,null,null,null,null,null,null,null,null,null,null,null,null,null,null,null,null,null,null,null,null,31]
[null,null,null,null,null,null,null,null,null,null,null,null,null,null,null,null,null,null,null,null,null,null,null,null,null,null,null,null,null,null,null,null,null,null,null,null,null,null,null,null,null,31,{"$f":"\"Sheets(\"\"\"&INDEX($G$2:$I$67,MATCH(AP152,$I$2:$I$67,0),1)&\"\"\").Activate\"","v":"Sheets(\"Information Sharing\").Activate"}]
[null,null,null,null,null,null,null,null,null,null,null,null,null,null,null,null,null,null,null,null,null,null,null,null,null,null,null,null,null,null,null,null,null,null,null,null,null,null,null,null,null,31]
[null,null,null,null,null,null,null,null,null,null,null,null,null,null,null,null,null,null,null,null,null,null,null,null,null,null,null,null,null,null,null,null,null,null,null,null,null,null,null,null,null,31,"End Sub"]

{"sheet":"Landing Page","index":2,"n_rows":14,"n_cols":12,"rows_kept":14,"cut":false,"hidden":false,"merged":[[0,4,3,16],[0,17,3,19],[4,9,5,10],[13,11,19,18]]}
[null,null,null,null,"2017 Grower Survey"]
[]
[]
[]
[]
[]
[]
[]
[]
[]
[]
[]
[]
[null,null,null,null,null,null,null,null,null,null,null,"It is important to note that the responses contained within the CRDC Grower Survey provide a snapshot in time of grower data, but do not tell the full story. The Grower Survey is one of many research projects commissioned by CRDC to gather industry information. The results are not intended to be used in isolation, but rather in consideration of these other projects, such as the CRDC and Cotton Australia Australian Grown Cotton Sustainability Report, and the industry’s best practice program, myBMP, and extension program, CottonInfo. In conjunction with these programs, the Grower Survey helps the industry measure practices and inform continuous improvement. The results are as provided by growers, and have not been independently verified. For any queries regarding the Grower Survey, please contact CRDC."]

{"sheet":"Menu","index":3,"n_rows":30,"n_cols":15,"rows_kept":30,"cut":false,"hidden":false,"merged":[[4,9,5,10],[0,17,3,19],[0,4,3,16],[6,2,7,9],[6,11,7,18]]}
[null,null,null,null,"2017 Grower Survey"]
[]
[]
[]
[null,null,null,null,null,null,null,null,null,"Adjust Zoom Level:"]
[]
[null,null,"Cotton Crop & On-Farm Practices",null,null,null,null,null,null,null,null,"Grower Attitudes and Behaviours"]
[]
[null,null,null,null,"Industry Sentiment","Future of Industry",null,null,null,null,null,null,null,"On-Farm Training and Labour Needs","Accredited Education & Impact"]
[null,null,null,null,null,"Optimism Factors",null,null,null,null,null,null,null,null,"Suitable Off-Farm Training"]
[null,null,null,null,null,"Main Challenges",null,null,null,null,null,null,null,null,"Use of Labour Hire Companies"]
[null,null,null,null,"Cotton Crop Details","Area of Farm",null,null,null,null,null,null,null,"Community Contribution","Community Contribution"]
[null,null,null,null,null,"Planted Area",null,null,null,null,null,null,null,"Cotton Grower Association","Membership of Local CGA"]
[null,null,null,null,null,"Cotton Yields",null,null,null,null,null,null,null,"Information Sharing","Information Sharing"]
[null,null,null,null,null,"Applications to Crop",null,null,null,null,null,null,null,"Aboriginal Heritage Site","Aboriginal Heritage Site"]
[null,null,null,null,null,"Quality Discounts"]
[null,null,null,null,null,"Largest Discount"]
[null,null,null,null,"Weeds, Pests and Disease Control","Widely Used Practices"]
[null,null,null,null,null,"Weed Control Over Crop"]
[null,null,null,null,null,"Weed Control Over Fallows"]
[null,null,null,null,"Pesticide Management","Spray Decision Thresholds"]
[null,null,null,null,null,"Reasons for Decisions"]
[null,null,null,null,null,"Glyphosate and Insecticide"]
[null,null,null,null,"Irrigation Technologies","Irrigation System"]
[null,null,null,null,null,"Level of Automation"]
[null,null,null,null,null,"Practices to Minimise Losses"]
[null,null,null,null,"Natural Resource Management","Riparian Area of Farm"]
[null,null,null,null,null,"Ecosystem Services"]
[null,null,null,null,null,"Riparian Problems & Practices"]
[null,null,null,null,null,"Significant Changes"]

{"sheet":"Future of Industry","index":4,"n_rows":29,"n_cols":19,"rows_kept":29,"cut":false,"hidden":false,"merged":[[28,2,29,18],[0,4,3,16],[0,17,1,19],[4,4,5,16],[6,2,7,9],[6,11,7,18]]}
[null,null,null,null,"2017 Grower Survey",null,null,null,null,null,null,null,null,null,null,null,null,"Data in Focus:"]
[]
[]
[]
[null,null,null,null,"Industry Sentiment - Future of Industry"]
[]
[null,null,"How growers feel about the future of the cotton industry",null,null,null,null,null,null,null,null,{"$f":"\"Results - \"&'Data - Future of Industry'!F1&\" growers\"","v":"Results - All cotton growers"}]
[]
[]
[]
[]
[]
[]
[]
[]
[]
[]
[]
[]
[]
[]
[]
[]
[]
[]
[]
[null,null,{"$f":"\"Base: all cotton growers; n = \"&'Data - Future of Industry'!F5&\".\"","v":"Base: all cotton growers; n = 203."},null,null,null,null,null,null,{"$f":"IF('HIDDEN - Backend'!Q17=1,\"Source: 2017 Grower Survey, CRDC\",\"\")","v":""},null,{"$f":"IF('Data - Future of Industry'!A1=1,\"\",\"Base: \"&'Data - Future of Industry'!F1&\" growers; n = \"&'Data - Future of Industry'!F16&\".\")","v":""},null,null,null,null,null,null,{"$f":"IF(AND('HIDDEN - Backend'!Q17=1,'HIDDEN - Backend'!Q3>1),\"Source: 2017 Grower Survey, CRDC\",\"\")","v":""}]
[]
[null,null,"Question: Overall, how do you feel about the future of the cotton industry. Would you say you feel…?"]

{"sheet":"Data - Future of Industry","index":5,"n_rows":21,"n_cols":28,"rows_kept":21,"cut":false,"hidden":true,"merged":[]}
[{"$f":"'HIDDEN - Backend'!Q3","v":1},null,null,null,"Segment",{"$f":"INDEX($S1:$AB1,1,$A$1)","v":"All cotton"},null,null,null,null,null,null,null," ",null,null,null,null,"All cotton","Central Queensland","Darling Downs","Macintyre - Balonne","Northern NSW","Macquarie","Southern NSW","Small farm","Medium farm","Large farm"]
[null,null,"CHARTS",null,null,null,null,null,null,null,null,null,null," ",null,null,"DATA"]
[null,null,null,null,null,null,null,null,null,null,null,null,null," "]
[null,null,"Focus - Overall",null,null,null,"Label",null,null,null,null,null,null," ",null,null,null,null,"Overall","Central Queensland","Darling Downs","Macintyre - Balonne","Northern NSW","Macquarie","Southern NSW","Small (< 1,000 ha)","Medium (1,000 - 5,000 ha)","Large (> 5,000 ha)"]
[null,null,null,null,"Base",{"$f":"INDEX($S5:$AB5,1,1)","v":203},null,null,null,null,null,null,null," ",null,null,null,"Base",203,25,47,28,49,23,31,79,96,24]
[null,null,null,null,"Very positive",{"$f":"INDEX($S6:$AB6,1,1)","v":0.40886699507389163},{"$f":"IF(AND(F6>0,F6<0.005),\"<1%\",TEXT(F6,\"0%\"))","v":"41%"},null,{"$f":"TEXT(ROUND(F6,2)+ROUND(F7,2),\"0%\")","v":"92%"},null,null,null,null," ",null,null,null,"Very positive",0.40886699507389163,0.32,0.36170212765957449,0.42857142857142855,0.36734693877551022,0.43478260869565216,0.58064516129032262,0.36708860759493672,0.40625,0.58333333333333337]
[null,null,null,null,"Fairly positive",0.51231527093596063,"51%",null,null,null,null,null,null," ",null,null,null,"Fairly positive",0.51231527093596063,0.4,0.55319148936170215,0.5357142857142857,0.59183673469387754,0.47826086956521741,0.41935483870967744,0.54430379746835444,0.52083333333333337,0.375]
[null,null,null,null,{"$f":"REPT(\" \",INDEX($S13:$AB13,1,1))&\"Neutral\"","v":"           Neutral"},5.9113300492610835E-2,"6%",null,null,null,null,null,null,null,null,null,null,"Neutral (neither positive or negative)",5.9113300492610835E-2,0.2,8.5106382978723402E-2,3.5714285714285712E-2,2.0408163265306121E-2,4.3478260869565216E-2,0,6.3291139240506333E-2,6.25E-2,4.1666666666666664E-2]
[null,null,null,null,{"$f":"REPT(\" \",INDEX($S14:$AB14,1,1))&\"Fairly negative\"","v":"    Fairly negative"},1.4778325123152709E-2,"1%",null,null,null,null,null,null,null,null,null,null,"Fairly negative",1.4778325123152709E-2,0.04,0,0,2.0408163265306121E-2,4.3478260869565216E-2,0,1.2658227848101266E-2,1.0416666666666666E-2,0]
[null,null,null,null,{"$f":"REPT(\" \",INDEX($S15:$AB15,1,1))&\"Very negative\"","v":"  Very negative"},4.9261083743842365E-3,"<1%",null,null,null,null,null,null,null,null,null,null,"Very negative",4.9261083743842365E-3,0.04,0,0,0,0,0,1.2658227848101266E-2,0,0]
[]
[null,null,null,null,null,null,null,null,null,null,null,null,null,null,null,null,null,"Spaces for accurate labels"]
[null,null,null,null,null,null,null,null,null,null,null,null,null,null,null,null,null,"Neutral (neither positive or negative)",11,39,15,7,5,8,0,11,11,7]
[null,null,null,null,null,null,null,null,null,null,null,null,null,null,null,null,null,"Fairly negative",4,9,0,0,5,8,0,3,3,0]
[null,null,"Focus - Segment",null,null,null,"Label",null,null,null,null,null,null," ",null,null,null,"Very negative",2,9,0,0,0,0,0,3,0,0]
[null,null,null,null,"Base",{"$f":"INDEX($S5:$AB5,1,$A$1)","v":203},null,null,null,null,null,null,null," "]
[null,null,null,null,"Very positive",{"$f":"INDEX($S6:$AB6,1,$A$1)","v":0.40886699507389163},{"$f":"IF(AND(F17>0,F17<0.005),\"<1%\",TEXT(F17,\"0%\"))","v":"41%"},null,{"$f":"TEXT(ROUND(F17,2)+ROUND(F18,2),\"0%\")","v":"92%"},null,null,null,null," "]
[null,null,null,null,"Fairly positive",0.51231527093596063,"51%",null,null,null,null,null,null," "]
[null,null,null,null,{"$f":"REPT(\" \",INDEX($S13:$AB13,1,$A$1))&\"Neutral\"","v":"           Neutral"},{"$f":"INDEX($S8:$AB8,1,$A$1)","v":5.9113300492610835E-2},"6%"]
[null,null,null,null,{"$f":"REPT(\" \",INDEX($S14:$AB14,1,$A$1))&\"Fairly negative\"","v":"    Fairly negative"},{"$f":"INDEX($S9:$AB9,1,$A$1)","v":1.4778325123152709E-2},"1%"]
[null,null,null,null,{"$f":"REPT(\" \",INDEX($S15:$AB15,1,$A$1))&\"Very negative\"","v":"  Very negative"},4.9261083743842365E-3,"<1%"]

{"sheet":"Optimism Factors","index":6,"n_rows":29,"n_cols":19,"rows_kept":29,"cut":false,"hidden":false,"merged":[[0,4,3,16],[0,17,1,19],[4,4,5,16],[28,2,29,18],[6,2,7,18]]}
[null,null,null,null,"2017 Grower Survey"]
[]
[]
[]
[null,null,null,null,"Industry Sentiment - Optimism Factors"]
[]
[null,null,"What are the factors that make you optimistic about being involved in the cotton industry in Australia?"]
[]
[]
[]
[]
[]
[]
[]
[]
[]
[]
[]
[]
[]
[]
[]
[]
[]
[]
[]
[null,null,{"$f":"\"Base: all cotton growers who are positive about the future of the industry and provided a response; n = \"&'Data - Optimism Factors'!F5&\".\"","v":"Base: all cotton growers who are positive about the future of the industry and provided a response; n = 181."},null,null,null,null,null,null,null,null,null,null,null,null,null,null,null,{"$f":"IF('HIDDEN - Backend'!Q17=1,\"Source: 2017 Grower Survey, CRDC\",\"\")","v":""}]
[]
[null,null,"Question: What are the factors that make you optimistic about being involved in the cotton industry in Australia?"]

{"sheet":"Data - Optimism Factors","index":7,"n_rows":10,"n_cols":28,"rows_kept":10,"cut":false,"hidden":true,"merged":[]}
[{"$f":"'HIDDEN - Backend'!Q3","v":1},null,null,null,"Segment",{"$f":"INDEX($S1:$AB1,1,$A$1)","v":"All cotton"},null,null,null,null,null,null,null," ",null,null,null,null,"All cotton","Central Queensland","Darling Downs","Macintyre - Balonne","Northern NSW","Macquarie","Southern NSW","Small farm","Medium farm","Large farm"]
[null,null,"CHARTS",null,null,null,null,null,null,null,null,null,null," ",null,null,"DATA"]
[null,null,null,null,null,null,null,null,null,null,null,null,null," "]
[null,null,"Focus - Overall",null,null,null,null,null,null,null,null,null,null," ",null,null,null,null,"Overall","Central Queensland","Darling Downs","Macintyre - Balonne","Northern NSW","Macquarie","Southern NSW","Small (< 1,000 ha)","Medium (1,000 - 5,000 ha)","Large (> 5,000 ha)"]
[null,null,null,null,"Base",{"$f":"INDEX($S5:$AB5,1,1)","v":181},null,null,null,null,null,null,null," ",null,null,null,"Base:",181]
[null,null,null,null,"It is an innovative business/there is always new R&D for improving crop yields, pest control, water use etc.",{"$f":"INDEX($S6:$AB6,1,1)","v":0.59116022099447518},{"$f":"IF(AND(F6>0,F6<0.005),\"<1%\",TEXT(F6,\"0%\"))","v":"59%"},null,null,null,null,null,null," ",null,null,null,"It is an innovative business/there is always new R&D for improving crop yields, pest control, water use etc.",0.59116022099447518]
[null,null,null,null,"It is a profitable business/there is market demand for cotton",0.31491712707182318,{"$f":"IF(AND(F7>0,F7<0.005),\"<1%\",TEXT(F7,\"0%\"))","v":"31%"},null,null,null,null,null,null," ",null,null,null,"It is a profitable business/there is market demand for cotton",0.31491712707182318]
[null,null,null,null,"Industry bodies and cotton farmers support each other/exchange of information (to learn from each other)/the cotton industry is like a community",0.23204419889502761,"23%",null,null,null,null,null,null,null,null,null,null,"Industry bodies and cotton farmers support each other/exchange of information (to learn from each other)/the cotton industry is like a community",0.23204419889502761]
[null,null,null,null,"The cotton growing leadership/community is cohesive and effective at representing grower interests (i.e. quick to react to changes and new developments/has good government representation)",0.15469613259668508,"15%",null,null,null,null,null,null,null,null,null,null,"The cotton growing leadership/community is cohesive and effective at representing grower interests (i.e. quick to react to changes and new developments/has good government representation)",0.15469613259668508]
[null,null,null,null,"We have great cotton yields",9.9447513812154692E-2,"10%",null,null,null,null,null,null,null,null,null,null,"We have great cotton yields",9.9447513812154692E-2]

{"sheet":"Main Challenges","index":8,"n_rows":29,"n_cols":19,"rows_kept":29,"cut":false,"hidden":false,"merged":[[0,4,3,16],[0,17,1,19],[4,4,5,16],[6,2,7,18],[28,2,29,18]]}
[null,null,null,null,"2017 Grower Survey"]
[]
[]
[]
[null,null,null,null,"Industry Sentiment - Main Challenges"]
[]
[null,null,"What are the main challenges facing your business and the cotton industry in Australia right now?"]
[]
[]
[]
[]
[]
[]
[]
[]
[]
[]
[]
[]
[]
[]
[]
[]
[]
[]
[]
[null,null,{"$f":"\"Base: all cotton growers who provided a response; n = \"&'Data - Main Challenges'!F5&\".\"","v":"Base: all cotton growers who provided a response; n = 196."},null,null,null,null,null,null,null,null,null,null,null,null,null,null,null,{"$f":"IF('HIDDEN - Backend'!Q17=1,\"Source: 2017 Grower Survey, CRDC\",\"\")","v":""}]
[]
[null,null,"Question: What are the main challenges facing your business and the cotton industry in Australia right now?"]

{"sheet":"Data - Main Challenges","index":9,"n_rows":11,"n_cols":28,"rows_kept":11,"cut":false,"hidden":true,"merged":[]}
[{"$f":"'HIDDEN - Backend'!Q3","v":1},null,null,null,"Segment",{"$f":"INDEX($S1:$AB1,1,$A$1)","v":"All cotton"},null,null,null,null,null,null,null," ",null,null,null,null,"All cotton","Central Queensland","Darling Downs","Macintyre - Balonne","Northern NSW","Macquarie","Southern NSW","Small farm","Medium farm","Large farm"]
[null,null,"CHARTS",null,null,null,null,null,null,null,null,null,null," ",null,null,"DATA"]
[null,null,null,null,null,null,null,null,null,null,null,null,null," "]
[null,null,"Focus - Overall",null,null,null,null,null,null,null,null,null,null," ",null,null,null,null,"Overall","Central Queensland","Darling Downs","Macintyre - Balonne","Northern NSW","Macquarie","Southern NSW","Small (< 1,000 ha)","Medium (1,000 - 5,000 ha)","Large (> 5,000 ha)"]
[null,null,null,null,"Base",{"$f":"INDEX($S5:$AB5,1,1)","v":196},null,null,null,null,null,null,null," ",null,null,null,"Base:",196]
[null,null,null,null,"Lack of water (due to environmental conditions)",{"$f":"INDEX($S6:$AB6,1,1)","v":0.44387755102040816},{"$f":"IF(AND(F6>0,F6<0.005),\"<1%\",TEXT(F6,\"0%\"))","v":"44%"},null,null,null,null,null,null," ",null,null,null,"Lack of water (due to environmental conditions)",0.44387755102040816]
[null,null,null,null,"Increasing overheads (i.e. electricity, water, machinery, trait provider fees)",0.25,{"$f":"IF(AND(F7>0,F7<0.005),\"<1%\",TEXT(F7,\"0%\"))","v":"25%"},null,null,null,null,null,null," ",null,null,null,"Increasing overheads (i.e. electricity, water, machinery, trait provider fees)",0.25]
[null,null,null,null,"Lack of water (due to government interference)/other loss of productivity due to government interference",0.21938775510204081,"22%",null,null,null,null,null,null,null,null,null,null,"Lack of water (due to government interference)/other loss of productivity due to government interference",0.21938775510204081]
[null,null,null,null,"Cotton plant diseases/pests and diseases growing resistant to current control measures",0.14285714285714285,"14%",null,null,null,null,null,null,null,null,null,null,"Cotton plant diseases/pests and diseases growing resistant to current control measures",0.14285714285714285]
[null,null,null,null,"Climate change/severe seasonal changes",0.14285714285714285,"14%",null,null,null,null,null,null,null,null,null,null,"Climate change/severe seasonal changes",0.14285714285714285]
[null,null,null,null,"Maintainging enough staff/keeping hardworking dedicated staff in my employment",0.13775510204081631,"14%",null,null,null,null,null,null,null,null,null,null,"Maintainging enough staff/keeping hardworking dedicated staff in my employment",0.13775510204081631]

{"sheet":"Area of Farm","index":10,"n_rows":29,"n_cols":19,"rows_kept":29,"cut":false,"hidden":false,"merged":[[28,2,29,18],[0,4,3,16],[0,17,1,19],[4,4,5,16],[6,2,7,9],[6,11,7,18]]}
[null,null,null,null,"2017 Grower Survey",null,null,null,null,null,null,null,null,null,null,null,null,"Data in Focus:"]
[]
[]
[]
[null,null,null,null,"Cotton Crop Details - Area of Farm"]
[]
[null,null,"Average distribution of land on their farm",null,null,null,null,null,null,null,null,{"$f":"\"Results - \"&'Data - Area of Farm'!F1&\" growers\"","v":"Results - All cotton growers"}]
[]
[]
[]
[]
[]
[]
[]
[]
[]
[]
[]
[]
[]
[]
[]
[]
[]
[]
[]
[null,null,{"$f":"\"Base: all cotton growers; n = \"&'Data - Area of Farm'!F5&\".\"","v":"Base: all cotton growers; n = 248."},null,null,null,null,null,null,{"$f":"IF('HIDDEN - Backend'!Q17=1,\"Source: 2017 Grower Survey, CRDC\",\"\")","v":""},null,{"$f":"IF('Data - Area of Farm'!A1=1,\"\",\"Base: \"&'Data - Area of Farm'!F1&\" growers; n = \"&'Data - Area of Farm'!F18&\".\")","v":""},null,null,null,null,null,null,{"$f":"IF(AND('HIDDEN - Backend'!Q17=1,'HIDDEN - Backend'!Q3>1),\"Source: 2017 Grower Survey, CRDC\",\"\")","v":""}]
[]
[null,null,"Question: On your farm, what was the total area (in hectares) for the following?"]

{"sheet":"Data - Area of Farm","index":11,"n_rows":25,"n_cols":28,"rows_kept":25,"cut":false,"hidden":true,"merged":[]}
[{"$f":"'HIDDEN - Backend'!Q3","v":1},null,null,null,"Segment",{"$f":"INDEX($S1:$AB1,1,$A$1)","v":"All cotton"},null,null,null,null,null,null,null," ",null,null,null,null,"All cotton","Central Queensland","Darling Downs","Macintyre - Balonne","Northern NSW","Macquarie","Southern NSW","Small farm","Medium farm","Large farm"]
[null,null,"CHARTS",null,null,null,null,null,null,null,null,null,null," ",null,null,"DATA"]
[null,null,null,null,null,null,null,null,null,null,null,null,null," "]
[null,null,"Focus - Overall",null,null,null,"Label",null,null,null,null,null,null," ",null,null,null,null,"Overall","Central Queensland","Darling Downs","Macintyre - Balonne","Northern NSW","Macquarie","Southern NSW","Small (< 1,000 ha)","Medium (1,000 - 5,000 ha)","Large (> 5,000 ha)"]
[null,null,null,null,"Base",{"$f":"INDEX($S5:$AB5,1,1)","v":248},null,null,null,null,null,null,null," ",null,null,null,"Base:",248,29,54,36,64,29,34,90,109,33]
[null,null,null,null,"What is the total area of your farm (in hectares)?",{"$f":"INDEX($S6:$AB6,1,1)","v":8020.28629},{"$f":"TEXT(F6,\"###,##0\")&\"ha\"","v":"8,020ha"},null,null,null,null,null,null," ",null,null,null,"What is the total area of your farm (in hectares)?",8020.28629,1702.1724139999999,1728.2222220000001,30082.75,6505.421875,3728.724138,5817.2058820000002,1184.7222220000001,4424.9816510000001,41000.030303]
[null,null,null,null,null,null,null,null,null,null,null,null,null," "]
[null,null,null,null,"Area developed that received full irrigation",0.38670900000000002,{"$f":"IF(AND(F8>0,F8<0.005),\"<1%\",TEXT(F8,\"0%\"))","v":"39%"},null,null,null,null,null,null,null,null,null,null,"Area developed that received full irrigation",0.38670900000000002,0.5953790000000001,0.28189300000000006,0.29523629523629519,0.33357666642333356,0.30585230585230583,0.626083626083626,0.51724751724751727,0.322766,0.24190200000000003]
[null,null,null,null,"Area developed that received partial irrigation",2.5451999999999999E-2,"3%",null,null,null,null,null,null,null,null,null,null,"Area developed that received partial irrigation",2.5451999999999999E-2,9.8440000000000021E-3,7.106800000000002E-2,1.3291013291013291E-2,1.1902988097011902E-2,2.0427020427020427E-2,1.2418012418012417E-2,3.9007039007039009E-2,1.7308E-2,1.5381000000000002E-2]
[null,null,null,null,"Area developed for raingrown | dryland cropping",0.33470499999999997,"33%",null,null,null,null,null,null,null,null,null,null,"Area developed for raingrown | dryland cropping",0.33470499999999997,0.16437900000000003,0.52482000000000006,0.28732528732528728,0.39664560335439658,0.37884837884837885,9.0925090925090921E-2,0.19729919729919732,0.39801599999999998,0.50032700000000008]
[null,null,null,null,"Area of native vegetation used for grazing",0.190081,"19%",null,null,null,null,null,null,null,null,null,null,"Area of native vegetation used for grazing",0.190081,0.17772500000000002,5.7622000000000007E-2,0.34063034063034059,0.17818282181717818,0.24267924267924265,0.22071622071622068,0.17423317423317425,0.205065,0.18381100000000003]
[null,null,null,null,"Area of native vegetation not usually grazed",6.3052999999999998E-2,"6%",null,null,null,null,null,null,null,null,null,null,"Area of native vegetation not usually grazed",6.3052999999999998E-2,5.2673000000000005E-2,6.4597000000000016E-2,6.3517063517063516E-2,7.9691920308079686E-2,5.2193052193052189E-2,4.9857049857049848E-2,7.2213072213072216E-2,5.6845E-2,5.8579000000000006E-2]
[]
[]
[]
[]
[null,null,"Focus - Segment",null,null,null,"Label",null,null,null,null,null,null," "]
[null,null,null,null,"Base",{"$f":"INDEX($S5:$AB5,1,$A$1)","v":248},null,null,null,null,null,null,null," "]
[null,null,null,null,"What is the total area of your farm (in hectares)?",{"$f":"INDEX($S6:$AB6,1,$A$1)","v":8020.28629},{"$f":"TEXT(F19,\"###,##0\")&\"ha\"","v":"8,020ha"},null,null,null,null,null,null," "]
[null,null,null,null,null,null,null,null,null,null,null,null,null," "]
[null,null,null,null,"Area developed that received full irrigation",{"$f":"INDEX($S8:$AB8,1,$A$1)","v":0.38670900000000002},{"$f":"IF(AND(F21>0,F21<0.005),\"<1%\",TEXT(F21,\"0%\"))","v":"39%"}]
[null,null,null,null,"Area developed that received partial irrigation",{"$f":"INDEX($S9:$AB9,1,$A$1)","v":2.5451999999999999E-2},"3%"]
[null,null,null,null,"Area developed for raingrown | dryland cropping",0.33470499999999997,"33%"]
[null,null,null,null,"Area of native vegetation used for grazing",0.190081,"19%"]
[null,null,null,null,"Area of native vegetation not usually grazed",6.3052999999999998E-2,"6%"]

{"sheet":"Planted Area","index":12,"n_rows":29,"n_cols":10,"rows_kept":29,"cut":false,"hidden":false,"merged":[[28,2,29,18],[0,4,3,16],[0,17,1,19],[4,4,5,16],[6,2,7,9],[6,11,7,18]]}
[null,null,null,null,"2017 Grower Survey"]
[]
[]
[]
[null,null,null,null,"Cotton Crop Details - Planted Area"]
[]
[null,null,"Area planted for cotton within each developed area\nfor the 2016-17 cotton growing season"]
[]
[]
[]
[]
[]
[]
[]
[]
[]
[]
[]
[]
[]
[]
[]
[]
[]
[]
[]
[null,null,{"$f":"\"Base: all cotton growers; n varies (Full, n = \"&'Data - Planted Area'!F5&\", Part, n = \"&'Data - Planted Area'!F11&\", Rain, n = \"&'Data - Planted Area'!F17&\").\"","v":"Base: all cotton growers; n varies (Full, n = 190, Part, n = 39, Rain, n = 153)."},null,null,null,null,null,null,{"$f":"IF('HIDDEN - Backend'!Q17=1,\"Source: 2017 Grower Survey, CRDC\",\"\")","v":""}]
[]
[null,null,"Question: What area was planted for cotton for the 2016-17 cotton growing season?"]

{"sheet":"Data - Planted Area","index":13,"n_rows":41,"n_cols":28,"rows_kept":41,"cut":false,"hidden":true,"merged":[]}
[{"$f":"'HIDDEN - Backend'!Q3","v":1},null,null,null,"Segment",{"$f":"INDEX($S1:$AB1,1,$A$1)","v":"All cotton"},null,null,null,null,null,null,null," ",null,null,null,null,"All cotton","Central Queensland","Darling Downs","Macintyre - Balonne","Northern NSW","Macquarie","Southern NSW","Small farm","Medium farm","Large farm"]
[null,null,"CHARTS",null,null,null,null,null,null,null,null,null,null," ",null,null,"DATA"]
[null,null,null,null,null,null,null,null,null,null,null,null,null," "]
[null,null,"Focus - Overall",null,null,null,null,null,null,null,null,null,null," ",null,null,null,null,"Overall","Central Queensland","Darling Downs","Macintyre - Balonne","Northern NSW","Macquarie","Southern NSW","Small (< 1,000 ha)","Medium (1,000 - 5,000 ha)","Large (> 5,000 ha)"]
[null,null,null,null,"Base",{"$f":"INDEX($S5:$AB5,1,1)","v":190},null,null,null,null,null,null,null," ",null,null,null,"Base:",190,26,33,31,45,24,31,76,88,26]
[null,null,"Fully Irrigated",null,"Field area planted",{"$f":"INDEX($S6:$AB6,1,1)","v":0.53164599999999995},{"$f":"IF(AND(F6>0,F6<0.005),\"<1%\",TEXT(F6,\"0%\"))","v":"53%"},null,null,null,null,null,null," ",null,"Fully Irrigated",null,"Field area planted",0.53164599999999995,0.52367699999999995,0.60719599999999996,0.63372799999999996,0.56120300000000001,0.47417300000000001,0.35741099999999998,0.53114099999999997,0.50754699999999997,0.61468500000000004]
[null,null,null,null,"Green area planted",0.47664099999999998,{"$f":"IF(AND(F7>0,F7<0.005),\"<1%\",TEXT(F7,\"0%\"))","v":"48%"},null,null,null,null,null,null," ",null,null,null,"Green area planted",0.47664099999999998,0.61654200000000003,0.42630600000000002,0.53554400000000002,0.47059499999999999,0.49031200000000003,0.35217700000000002,0.458949,0.48450399999999999,0.50174300000000005]
[null,null,null,null,"Area planted but not harvested",1.2432E-2,{"$f":"IF(AND(F8>0,F8<0.005),\"<1%\",TEXT(F8,\"0%\"))","v":"1%"},null,null,null,null,null,null,null,null,null,null,"Area planted but not harvested",1.2432E-2,3.2308000000000003E-2,3.9160000000000002E-3,2.8232E-2,6.398E-3,1.603E-3,6.1700000000000001E-3,1.4194E-2,6.783E-3,2.6401999999999998E-2]
[]
[null,null,null,null,null,null,null,null,null,null,null,null,null,null,null,null,null,null,"Overall","Central Queensland","Darling Downs","Macintyre - Balonne","Northern NSW","Macquarie","Southern NSW","Small (< 1,000 ha)","Medium (1,000 - 5,000 ha)","Large (> 5,000 ha)"]
[null,null,null,null,"Base:",{"$f":"INDEX($S11:$AB11,1,1)","v":39},null,null,null,null,null,null,null,null,null,null,null,"Base:",39,2,15,8,8,2,4,17,14,8]
[null,null,"Partially Irrigated",null,"Field area planted",{"$f":"INDEX($S12:$AB12,1,1)","v":0.39416699999999999},{"$f":"IF(AND(F12>0,F12<0.005),\"<1%\",TEXT(F12,\"0%\"))","v":"39%"},null,null,null,null,null,null," ",null,"Partially Irrigated",null,"Field area planted",0.39416699999999999,0.7,0.54715000000000003,0.125,0.59565999999999997,0,0,0.42658200000000002,0.42698399999999997,0.26785700000000001]
[null,null,null,null,"Green area planted",0.215918,{"$f":"IF(AND(F13>0,F13<0.005),\"<1%\",TEXT(F13,\"0%\"))","v":"22%"},null,null,null,null,null,null," ",null,null,null,"Green area planted",0.215918,0.42499999999999999,0.27613700000000002,0.125,0.30359399999999997,0,0,0.131214,0.315419,0.22178600000000001]
[null,null,null,null,"Area planted but not harvested",1.0255999999999999E-2,{"$f":"IF(AND(F14>0,F14<0.005),\"<1%\",TEXT(F14,\"0%\"))","v":"1%"},null,null,null,null,null,null," ",null,null,null,"Area planted but not harvested",1.0255999999999999E-2,0,1.3332999999999999E-2,2.5000000000000001E-2,0,0,0,0,1.4286E-2,2.5000000000000001E-2]
[null,null,null,null,null,null,null,null,null,null,null,null,null," "]
[null,null,null,null,null,null,null,null,null,null,null,null,null,null,null,null,null,null,"Overall","Central Queensland","Darling Downs","Macintyre - Balonne","Northern NSW","Macquarie","Southern NSW","Small (< 1,000 ha)","Medium (1,000 - 5,000 ha)","Large (> 5,000 ha)"]
[null,null,null,null,"Base:",{"$f":"INDEX($S17:$AB17,1,1)","v":153},null,null,null,null,null,null,null,null,null,null,null,"Base:",153,11,38,27,45,20,12,44,83,26]
[null,null,"Raingrown | Dryland",null,"Field area planted",{"$f":"INDEX($S18:$AB18,1,1)","v":0.178842},{"$f":"IF(AND(F18>0,F18<0.005),\"<1%\",TEXT(F18,\"0%\"))","v":"18%"},null,null,null,null,null,null,null,null,"Raingrown | Dryland",null,"Field area planted",0.178842,9.6686999999999995E-2,0.370172,8.8259000000000004E-2,0.16883999999999999,0.112597,0,0.29743900000000001,0.134876,0.118492]
[null,null,null,null,"Green area planted",0.11303299999999999,{"$f":"IF(AND(F19>0,F19<0.005),\"<1%\",TEXT(F19,\"0%\"))","v":"11%"},null,null,null,null,null,null,null,null,null,null,"Green area planted",0.11303299999999999,8.2275000000000001E-2,0.22139800000000001,5.8289000000000001E-2,0.117549,5.5619000000000002E-2,0,0.17619499999999999,9.2434000000000002E-2,7.1902999999999995E-2]
[null,null,null,null,"Area planted but not harvested",8.4340000000000005E-3,{"$f":"IF(AND(F20>0,F20<0.005),\"<1%\",TEXT(F20,\"0%\"))","v":"1%"},null,null,null,null,null,null,null,null,null,null,"Area planted but not harvested",8.4340000000000005E-3,1.1230000000000001E-3,2.2835999999999999E-2,8.9219999999999994E-3,3.7650000000000001E-3,0,0,1.2279999999999999E-3,1.2463E-2,7.77E-3]
[]
[]
[]
[]
[null,null,"Focus - Segment"]
[null,null,null,null,"Base",{"$f":"INDEX($S5:$AB5,1,$A$1)","v":190}]
[null,null,"Fully Irrigated",null,"Field area planted",{"$f":"INDEX($S6:$AB6,1,$A$1)","v":0.53164599999999995},{"$f":"IF(AND(F27>0,F27<0.005),\"<1%\",TEXT(F27,\"0%\"))","v":"53%"}]
[null,null,null,null,"Green area planted",{"$f":"INDEX($S7:$AB7,1,$A$1)","v":0.47664099999999998},{"$f":"IF(AND(F28>0,F28<0.005),\"<1%\",TEXT(F28,\"0%\"))","v":"48%"}]
[null,null,null,null,"Area planted but not harvested",{"$f":"INDEX($S8:$AB8,1,$A$1)","v":1.2432E-2},{"$f":"IF(AND(F29>0,F29<0.005),\"<1%\",TEXT(F29,\"0%\"))","v":"1%"}]
[]
[]
[null,null,null,null,"Base:",{"$f":"INDEX($S11:$AB11,1,$A$1)","v":39}]
[null,null,"Partially Irrigated",null,"Field area planted",{"$f":"INDEX($S12:$AB12,1,$A$1)","v":0.39416699999999999},{"$f":"IF(AND(F33>0,F33<0.005),\"<1%\",TEXT(F33,\"0%\"))","v":"39%"}]
[null,null,null,null,"Green area planted",{"$f":"INDEX($S13:$AB13,1,$A$1)","v":0.215918},{"$f":"IF(AND(F34>0,F34<0.005),\"<1%\",TEXT(F34,\"0%\"))","v":"22%"}]
[null,null,null,null,"Area planted but not harvested",{"$f":"INDEX($S14:$AB14,1,$A$1)","v":1.0255999999999999E-2},{"$f":"IF(AND(F35>0,F35<0.005),\"<1%\",TEXT(F35,\"0%\"))","v":"1%"}]
[]
[]
[null,null,null,null,"Base:",{"$f":"INDEX($S17:$AB17,1,$A$1)","v":153}]
[null,null,"Raingrown | Dryland",null,"Field area planted",{"$f":"INDEX($S18:$AB18,1,$A$1)","v":0.178842},{"$f":"IF(AND(F39>0,F39<0.005),\"<1%\",TEXT(F39,\"0%\"))","v":"18%"}]
[null,null,null,null,"Green area planted",{"$f":"INDEX($S19:$AB19,1,$A$1)","v":0.11303299999999999},{"$f":"IF(AND(F40>0,F40<0.005),\"<1%\",TEXT(F40,\"0%\"))","v":"11%"}]
[null,null,null,null,"Area planted but not harvested",{"$f":"INDEX($S20:$AB20,1,$A$1)","v":8.4340000000000005E-3},{"$f":"IF(AND(F41>0,F41<0.005),\"<1%\",TEXT(F41,\"0%\"))","v":"1%"}]

{"sheet":"Cotton Yields","index":14,"n_rows":29,"n_cols":19,"rows_kept":29,"cut":false,"hidden":false,"merged":[[28,2,29,18],[0,4,3,16],[0,17,1,19],[4,4,5,16],[6,2,7,9],[6,11,7,18]]}
[null,null,null,null,"2017 Grower Survey",null,null,null,null,null,null,null,null,null,null,null,null,"Data in Focus:"]
[]
[]
[]
[null,null,null,null,"Cotton Crop Details - Cotton Yields"]
[]
[null,null,"Yields for the 2016-17 cotton growing season (bales per hectare)",null,null,null,null,null,null,null,null,{"$f":"\"Results - \"&'Data - Cotton Yields'!F1&\" growers\"","v":"Results - All cotton growers"}]
[]
[]
[]
[]
[]
[]
[]
[]
[]
[]
[]
[]
[]
[]
[]
[null,null,null,"*These results are calculated as an average of the highest / lowest yields"]
[null,null,null,"from one field as reported by growers in the survey."]
[]
[]
[null,null,{"$f":"\"Base: all cotton growers; n varies (Full, n = \"&'Data - Cotton Yields'!F5&\", Part, n = \"&'Data - Cotton Yields'!F11&\", Rain, n = \"&'Data - Cotton Yields'!F17&\").\"","v":"Base: all cotton growers; n varies (Full, n = 190, Part, n = 40, Rain, n = 154)."},null,null,null,null,null,null,{"$f":"IF('HIDDEN - Backend'!Q17=1,\"Source: 2017 Grower Survey, CRDC\",\"\")","v":""},null,{"$f":"IF('Data - Cotton Yields'!A1=1,\"\",\"Base: \"&'Data - Cotton Yields'!F1&\" growers; n = \"&'Data - Cotton Yields'!F26&\".\")","v":""},null,null,null,null,null,null,{"$f":"IF(AND('HIDDEN - Backend'!Q17=1,'HIDDEN - Backend'!Q3>1),\"Source: 2017 Grower Survey, CRDC\",\"\")","v":""}]
[]
[null,null,"Question: What were your yields for the 2016-17 cotton growing season?"]

{"sheet":"Data - Cotton Yields","index":15,"n_rows":41,"n_cols":28,"rows_kept":41,"cut":false,"hidden":true,"merged":[]}
[{"$f":"'HIDDEN - Backend'!Q3","v":1},null,null,null,"Segment",{"$f":"INDEX($S1:$AB1,1,$A$1)","v":"All cotton"},null,null,null,null,null,null,null," ",null,null,null,null,"All cotton","Central Queensland","Darling Downs","Macintyre - Balonne","Northern NSW","Macquarie","Southern NSW","Small farm","Medium farm","Large farm"]
[null,null,"CHARTS",null,null,null,null,null,null,null,null,null,null," ",null,null,"DATA"]
[null,null,null,null,null,null,null,null,null,null,null,null,null," "]
[null,null,"Focus - Overall",null,null,null,null,null,null,null,null,null,null," ",null,null,null,null,"Overall","Central Queensland","Darling Downs","Macintyre - Balonne","Northern NSW","Macquarie","Southern NSW","Small (< 1,000 ha)","Medium (1,000 - 5,000 ha)","Large (> 5,000 ha)"]
[null,null,null,null,"Base",{"$f":"INDEX($S5:$AB5,1,1)","v":190},null,null,null,null,null,null,null," ",null,null,null,"Base:",190,25,34,31,44,24,32,76,86,25]
[null,null,"Fully Irrigated",null,"Average yield",{"$f":"INDEX($S6:$AB6,1,1)","v":9.8791049999999991},{"$f":"IF(F5=0,\"n/a\",TEXT(F6,\"0.00\"))","v":"9.88"},null,null,null,null,null,null," ",null,"Fully Irrigated",null,"Average yield",9.8791049999999991,8.8135999999999992,8.0455880000000004,10.852903,10.918182,10.929167,9.5,9.1094740000000005,10.395349,10.448399999999999]
[null,null,null,null,"Highest yield from one field",11.066471,{"$f":"IF(F5=0,\"n/a\",TEXT(F7,\"0.00\"))","v":"11.07"},null,null,null,null,null,null," ",null,null,null,"Highest yield from one field",11.066471,10.208399999999999,9.4415630000000004,11.423871,11.931136,11.96875,11.152581,10.165732999999999,11.530697999999999,12.170400000000001]
[null,null,null,null,"Lowest yield from one field",8.2177430000000005,{"$f":"IF(F5=0,\"n/a\",TEXT(F8,\"0.00\"))","v":"8.22"},null,null,null,null,null,null,null,null,null,null,"Lowest yield from one field",8.2177430000000005,6.9971199999999998,5.9215619999999998,8.8825810000000001,9.872045,9.3333329999999997,7.6958060000000001,7.3786399999999999,8.796977,8.6752000000000002]
[]
[null,null,null,null,null,null,null,null,null,null,null,null,null,null,null,null,null,null,"Overall","Central Queensland","Darling Downs","Macintyre - Balonne","Northern NSW","Macquarie","Southern NSW","Small (< 1,000 ha)","Medium (1,000 - 5,000 ha)","Large (> 5,000 ha)"]
[null,null,null,null,"Base:",{"$f":"INDEX($S11:$AB11,1,1)","v":40},null,null,null,null,null,null,null,null,null,null,null,"Base:",40,1,17,8,8,2,4,18,13,8]
[null,null,"Partially Irrigated",null,"Average yield",{"$f":"INDEX($S12:$AB12,1,1)","v":2.9762499999999998},{"$f":"IF(F11=0,\"n/a\",TEXT(F12,\"0.00\"))","v":"2.98"},null,null,null,null,null,null," ",null,"Partially Irrigated",null,"Average yield",2.9762499999999998,0,4,1,5.3812499999999996,0,0,3.213889,2.5538460000000001,2.875]
[null,null,null,null,"Highest yield from one field",3.1036839999999999,{"$f":"IF(F11=0,\"n/a\",TEXT(F13,\"0.00\"))","v":"3.10"},null,null,null,null,null,null," ",null,null,null,"Highest yield from one field",3.1036839999999999,0,4.273333,1.1875,5.5425000000000004,0,0,3.3141180000000001,2.776923,3.1875]
[null,null,null,null,"Lowest yield from one field",2.5036839999999998,{"$f":"IF(F11=0,\"n/a\",TEXT(F14,\"0.00\"))","v":"2.50"},null,null,null,null,null,null," ",null,null,null,"Lowest yield from one field",2.5036839999999998,0,3.3533330000000001,0.75,4.8550000000000004,0,0,2.690588,2.2615379999999998,2.5]
[null,null,null,null,null,null,null,null,null,null,null,null,null," "]
[null,null,null,null,null,null,null,null,null,null,null,null,null,null,null,null,null,null,"Overall","Central Queensland","Darling Downs","Macintyre - Balonne","Northern NSW","Macquarie","Southern NSW","Small (< 1,000 ha)","Medium (1,000 - 5,000 ha)","Large (> 5,000 ha)"]
[null,null,null,null,"Base:",{"$f":"INDEX($S17:$AB17,1,1)","v":154},null,null,null,null,null,null,null,null,null,null,null,"Base:",154,10,38,27,47,20,12,43,82,27]
[null,null,"Raingrown | Dryland",null,"Average yield",{"$f":"INDEX($S18:$AB18,1,1)","v":0.95331200000000005},{"$f":"IF(F17=0,\"n/a\",TEXT(F18,\"0.00\"))","v":"0.95"},null,null,null,null,null,null,null,null,"Raingrown | Dryland",null,"Average yield",0.95331200000000005,1.19,1.814211,0.53518500000000002,0.98978699999999997,0.25,0,1.0648839999999999,0.83158500000000002,1.1381479999999999]
[null,null,null,null,"Highest yield from one field",1.268105,{"$f":"IF(F17=0,\"n/a\",TEXT(F19,\"0.00\"))","v":"1.27"},null,null,null,null,null,null,null,null,null,null,"Highest yield from one field",1.268105,1.26,2.4527570000000001,0.68703700000000001,1.409783,0.3,0,1.3172090000000001,1.1515059999999999,1.5607409999999999]
[null,null,null,null,"Lowest yield from one field",0.62203900000000001,{"$f":"IF(F17=0,\"n/a\",TEXT(F20,\"0.00\"))","v":"0.62"},null,null,null,null,null,null,null,null,null,null,"Lowest yield from one field",0.62203900000000001,0.8,1.2486489999999999,0.39259300000000003,0.55413000000000001,0.21299999999999999,0,0.75092999999999999,0.54148099999999999,0.66666700000000001]
[]
[]
[]
[]
[null,null,"Focus - Segment"]
[null,null,null,null,"Base",{"$f":"INDEX($S5:$AB5,1,$A$1)","v":190}]
[null,null,"Fully Irrigated",null,"Average yield",{"$f":"INDEX($S6:$AB6,1,$A$1)","v":9.8791049999999991},{"$f":"IF(F26=0,\"n/a\",TEXT(F27,\"0.00\"))","v":"9.88"}]
[null,null,null,null,"Highest yield from one field",{"$f":"INDEX($S7:$AB7,1,$A$1)","v":11.066471},{"$f":"IF(F26=0,\"n/a\",TEXT(F28,\"0.00\"))","v":"11.07"}]
[null,null,null,null,"Lowest yield from one field",{"$f":"INDEX($S8:$AB8,1,$A$1)","v":8.2177430000000005},{"$f":"IF(F26=0,\"n/a\",TEXT(F29,\"0.00\"))","v":"8.22"}]
[]
[]
[null,null,null,null,"Base:",{"$f":"INDEX($S11:$AB11,1,$A$1)","v":40}]
[null,null,"Partially Irrigated",null,"Average yield",{"$f":"INDEX($S12:$AB12,1,$A$1)","v":2.9762499999999998},{"$f":"IF(F32=0,\"n/a\",TEXT(F33,\"0.00\"))","v":"2.98"}]
[null,null,null,null,"Highest yield from one field",{"$f":"INDEX($S13:$AB13,1,$A$1)","v":3.1036839999999999},{"$f":"IF(F32=0,\"n/a\",TEXT(F34,\"0.00\"))","v":"3.10"}]
[null,null,null,null,"Lowest yield from one field",{"$f":"INDEX($S14:$AB14,1,$A$1)","v":2.5036839999999998},{"$f":"IF(F32=0,\"n/a\",TEXT(F35,\"0.00\"))","v":"2.50"}]
[]
[]
[null,null,null,null,"Base:",{"$f":"INDEX($S17:$AB17,1,$A$1)","v":154}]
[null,null,"Raingrown | Dryland",null,"Average yield",{"$f":"INDEX($S18:$AB18,1,$A$1)","v":0.95331200000000005},{"$f":"IF(F38=0,\"n/a\",TEXT(F39,\"0.00\"))","v":"0.95"}]
[null,null,null,null,"Highest yield from one field",{"$f":"INDEX($S19:$AB19,1,$A$1)","v":1.268105},{"$f":"IF(F38=0,\"n/a\",TEXT(F40,\"0.00\"))","v":"1.27"}]
[null,null,null,null,"Lowest yield from one field",{"$f":"INDEX($S20:$AB20,1,$A$1)","v":0.62203900000000001},{"$f":"IF(F38=0,\"n/a\",TEXT(F41,\"0.00\"))","v":"0.62"}]

{"sheet":"Applications to Crop","index":16,"n_rows":29,"n_cols":19,"rows_kept":29,"cut":false,"hidden":false,"merged":[[0,17,1,19],[28,2,29,18],[6,2,7,18],[9,5,9,10],[9,12,9,17],[4,4,5,16],[0,4,3,16]]}
[null,null,null,null,"2017 Grower Survey",null,null,null,null,null,null,null,null,null,null,null,null,"Data in Focus:"]
[]
[]
[]
[null,null,null,null,"Cotton Crop Details - Applications to Crop"]
[]
[null,null,"Average water and nitrogen applied for the 2016-17 cotton growing season"]
[]
[null,null,null,null,null,null,null,null,null,null,null,"."]
[null,null,null,null,null,"PER HECTARE",null,null,null,null,null,null,{"$f":"IF('Data - Applications to Crop'!C4=1,\"Per Hectare\",\"Per Bale\")&\" - \"&'Data - Applications to Crop'!J1&\" growers\"","v":"Per Hectare - All cotton growers"}]
[null,null,null,null,null,null,"Water",null,null,"Nitrogen",null,null,null,"Water",null,null,"Nitrogen"]
[null,null,null,null,null,null,"(mega litres)",null,null,"(kg)",null,null,null,"(mega litres)",null,null,"(kg)"]
[]
[]
[null,null,null,"Fully irrigated"]
[]
[]
[]
[]
[]
[null,null,null,"Partially irrigated"]
[]
[]
[]
[]
[null,null,{"$f":"\"Base: all cotton growers; n varies \"","v":"Base: all cotton growers; n varies "},null,null,null,null,null,null,null,null,{"$f":"IF('Data - Applications to Crop'!A1=1,\"\",\"Base: \"&'Data - Applications to Crop'!J1&\" growers; n varies \")","v":""}]
[null,null,{"$f":"\"(Fully irrigated, n = \"&'Data - Applications to Crop'!J5&\", Partially Irrigated, n = \"&'Data - Applications to Crop'!J9&\").\"","v":"(Fully irrigated, n = 187, Partially Irrigated, n = 41)."},null,null,null,null,null,null,{"$f":"IF('HIDDEN - Backend'!Q17=1,\"Source: 2017 Grower Survey, CRDC\",\"\")","v":""},null,{"$f":"IF('Data - Applications to Crop'!A1=1,\"\",\"(Fully irrigated, n = \"&'Data - Applications to Crop'!J16&\", Partially Irrigated, n = \"&'Data - Applications to Crop'!J20&\").\")","v":""},null,null,null,null,null,null,{"$f":"IF(AND('HIDDEN - Backend'!Q17=1,'HIDDEN - Backend'!Q3>1),\"Source: 2017 Grower Survey, CRDC\",\"\")","v":""}]
[]
[null,null,"Question: How much water (in mega litres) and nitrogen (in kilograms) on average (per ha) was applied during the 2016-17 cotton growing season? "]

{"sheet":"Data - Applications to Crop","index":17,"n_rows":25,"n_cols":29,"rows_kept":25,"cut":false,"hidden":true,"merged":[]}
[{"$f":"'HIDDEN - Backend'!Q3","v":1},null,null,null,null,null,null,null,"Segment",{"$f":"INDEX($T1:$AC1,1,$A$1)","v":"All cotton"},null,null,null,null," ",null,null,null,null,"All cotton","Central Queensland","Darling Downs","Macintyre - Balonne","Northern NSW","Macquarie","Southern NSW","Small farm","Medium farm","Large farm"]
[null,null,"MENU",null,null,null,"CHARTS",null,null,null,null,null,null,null," ",null,null,"DATA"]
[null,null,null,null,null,null,null,null,null,null,null,null,null,null," "]
[null,null,1,{"$f":"VLOOKUP(C4,C5:D6,2,0)","v":"Per Hectare - All cotton growers"},null,null,"Focus - Overall",null,null,null,null,"Label",null,null," ",null,null,null,null,"Overall","Central Queensland","Darling Downs","Macintyre - Balonne","Northern NSW","Macquarie","Southern NSW","Small (< 1,000 ha)","Medium (1,000 - 5,000 ha)","Large (> 5,000 ha)"]
[null,null,1,"Per Hectare - All cotton growers",null,null,null,null,"Base",{"$f":"IF(C$4=1,INDEX($T5:$AC5,1,1),INDEX($T16:$AC16,1,1))","v":187},null,null,null,null," ",null,null,null,"Base",187,24,34,31,44,23,31,74,85,25]
[null,null,2,"Per Bale - All cotton growers",null,null,{"$f":"D4","v":"Per Hectare - All cotton growers"},null,"Fully Irrigated - ML/ha",{"$f":"IF(C$4=1,INDEX($T6:$AC6,1,1),INDEX($T17:$AC17,1,1))","v":7.8805107527000002},null,{"$f":"IF(J5=0,\"n/a\",TEXT(J6,\"0.00\")&\"\n\"&IF(C$4=1,\"ML/ha\",\"ML/ba\"))","v":"7.88\nML/ha"},null,null," ",null,"Per Hectare",null,"Fully Irrigated - ML/ha",7.8805107527000002,7.3312499999999998,4.5411764706,9.4166666666999994,8.0110227273000003,9.1913043477999992,9.3238709676999996,6.9721621622000001,8.4748235294000001,8.5993750000000002]
[null,null,null,null,null,null,null,null,"Fully Irrigated - kg/ha",298.26203208560003,null,{"$f":"IF(J5=0,\"n/a\",TEXT(J7,\"0\")&\"\n\"&IF(C$4=1,\"kg/ha\",\"kg/ba\"))","v":"298\nkg/ha"},null,null," ",null,null,null,"Fully Irrigated - kg/ha",298.26203208560003,310.25,227.8529411765,345.87096774190002,294.79545454549998,297.52173913040002,324.06451612900003,288.24324324320003,302.50588235290002,318.48]
[null,null,null,null,null,null,null,null,null,null,null,null,null,null," "]
[null,null,null,null,null,null,null,null,"Base",{"$f":"IF(C$4=1,INDEX($T9:$AC9,1,1),INDEX($T20:$AC20,1,1))","v":41},null,null,null,null," ",null,null,null,"Base",41,1,17,8,8,2,5,18,14,8]
[null,null,null,null,null,null,{"$f":"D4","v":"Per Hectare - All cotton growers"},null,"Partially Irrigated - ML/ha",{"$f":"IF(C$4=1,INDEX($T10:$AC10,1,1),INDEX($T21:$AC21,1,1))","v":1.4317073171000001},null,{"$f":"IF(J9=0,\"n/a\",TEXT(J10,\"0.00\")&\"\n\"&IF(C$4=1,\"ML/ha\",\"ML/ba\"))","v":"1.43\nML/ha"},null,null," ",null,"Per Hectare",null,"Partially Irrigated - ML/ha",1.4317073171000001,2,1.4823529412000001,0.5,2.6124999999999998,0,1.32,1.125,1.6035714286,1.625]
[null,null,null,null,null,null,null,null,"Partially Irrigated - kg/ha",97.3414634146,null,{"$f":"IF(J9=0,\"n/a\",TEXT(J11,\"0\")&\"\n\"&IF(C$4=1,\"kg/ha\",\"kg/ba\"))","v":"97\nkg/ha"},null,null," ",null,null,null,"Partially Irrigated - kg/ha",97.3414634146,140,128.29411764709999,37.5,96.25,0,120,95.277777777799997,96.857142857100001,90]
[null,null,null,null,null,null,null,null,null,null,null,null,null,null," "]
[null,null,null,null,null,null,null,null,null,null,null,null,null,null," "]
[null,null,null,null,null,null,null,null,null,null,null,null,null,null," "]
[null,null,null,null,null,null,"Focus - Segment",null,null,null,null,null,null,null," ",null,null,null,null,"Overall","Central Queensland","Darling Downs","Macintyre - Balonne","Northern NSW","Macquarie","Southern NSW","Small (< 1,000 ha)","Medium (1,000 - 5,000 ha)","Large (> 5,000 ha)"]
[null,null,null,null,null,null,null,null,"Base",{"$f":"IF(C$4=1,INDEX($T5:$AC5,1,$A$1),INDEX($T16:$AC16,1,$A$1))","v":187},null,null,null,null," ",null,null,null,null,185,24,32,31,44,23,31,73,84,25]
[null,null,null,null,null,null,{"$f":"D4","v":"Per Hectare - All cotton growers"},null,"Fully Irrigated - ML/ha",{"$f":"IF(C$4=1,INDEX($T6:$AC6,1,$A$1),INDEX($T17:$AC17,1,$A$1))","v":7.8805107527000002},null,{"$f":"IF(J16=0,\"n/a\",TEXT(J17,\"0.00\")&\"\n\"&IF(C$4=1,\"ML/ha\",\"ML/ba\"))","v":"7.88\nML/ha"},null,null," ",null,"Per Bale",null,"WaterUseMLperBale_Full",0.81910000000000005,0.93559999999999999,0.58230000000000004,0.8891,0.73660000000000003,0.85399999999999998,0.99680000000000002,0.81320000000000003,0.81859999999999999,0.83809999999999996]
[null,null,null,null,null,null,null,null,"Fully Irrigated - kg/ha",298.26203208560003,null,{"$f":"IF(J16=0,\"n/a\",TEXT(J18,\"0\")&\"\n\"&IF(C$4=1,\"kg/ha\",\"kg/ba\"))","v":"298\nkg/ha"},null,null," ",null,null,null,"NitrogenUseKGperBale_Full",31.574200000000001,38.5291,31.747800000000002,32.244100000000003,26.824000000000002,27.659800000000001,34.987099999999998,34.435699999999997,29.380800000000001,31.193000000000001]
[null,null,null,null,null,null,null,null,null,null,null,null,null,null," "]
[null,null,null,null,null,null,null,null,"Base",{"$f":"IF(C$4=1,INDEX($T9:$AC9,1,$A$1),INDEX($T20:$AC20,1,$A$1))","v":41},null,null,null,null," ",null,null,null,null,18,0,11,1,6,0,0,8,6,3]
[null,null,null,null,null,null,{"$f":"D4","v":"Per Hectare - All cotton growers"},null,"Partially Irrigated - ML/ha",1.4317073171000001,null,{"$f":"IF(J20=0,\"n/a\",TEXT(J21,\"0.00\")&\"\n\"&IF(C$4=1,\"ML/ha\",\"ML/ba\"))","v":"1.43\nML/ha"},null,null," ",null,"Per Bale",null,"WaterUseMLperBale_Part",0.44409999999999999,0,0.41360000000000002,0.5,0.49070000000000003,0,0,0.32169999999999999,0.52,0.56669999999999998]
[null,null,null,null,null,null,null,null,"Partially Irrigated - kg/ha",97.3414634146,null,{"$f":"IF(J20=0,\"n/a\",TEXT(J22,\"0\")&\"\n\"&IF(C$4=1,\"kg/ha\",\"kg/ba\"))","v":"97\nkg/ha"},null,null," ",null,null,null,"NitrogenUseKGperBale_Part",27.005199999999999,0,31.435600000000001,37.5,17.133800000000001,0,0,25.6127,24.115500000000001,32.166699999999999]
[null,null,null,null,null,null,null,null,null,null,null,null,null,null," "]
[null,null,null,null,null,null,null,null,null,null,null,null,null,null," "]
[null,null,null,null,null,null,null,null,null,null,null,null,null,null," "]

{"sheet":"Quality Discounts","index":18,"n_rows":29,"n_cols":19,"rows_kept":29,"cut":false,"hidden":false,"merged":[[28,2,29,18],[0,4,3,16],[0,17,1,19],[4,4,5,16],[6,7,7,13]]}
[null,null,null,null,"2017 Grower Survey"]
[]
[]
[]
[null,null,null,null,"Cotton Crop Details - Quality Discounts"]
[]
[null,null,null,null,null,null,null,"Which three quality discounts (if any) impacted the largest number of bales of your 2016-17 cotton crop?"]
[]
[]
[]
[]
[]
[]
[]
[]
[]
[]
[]
[]
[]
[]
[]
[]
[]
[]
[]
[null,null,{"$f":"\"Base: all cotton growers; n = \"&'Data - Quality Discounts'!F5&\".\"","v":"Base: all cotton growers; n = 214."},null,null,null,null,null,null,null,null,null,null,null,null,null,null,null,{"$f":"IF('HIDDEN - Backend'!Q17=1,\"Source: 2017 Grower Survey, CRDC\",\"\")","v":""}]
[]
[null,null,"Question: Which three quality discounts (if any) impacted the largest number of bales of your 2016-17 cotton crop?\n^Multiple responses accepted (up to three). Results may not add to 100%."]

{"sheet":"Data - Quality Discounts","index":19,"n_rows":29,"n_cols":28,"rows_kept":29,"cut":false,"hidden":true,"merged":[]}
[{"$f":"'HIDDEN - Backend'!Q3","v":1},null,null,null,"Segment",{"$f":"INDEX($S1:$AB1,1,$A$1)","v":"All cotton"},null,null,null,null,null,null,null," ",null,null,null,null,"All cotton","Central Queensland","Darling Downs","Macintyre - Balonne","Northern NSW","Macquarie","Southern NSW","Small farm","Medium farm","Large farm"]
[null,null,"CHARTS",null,null,null,null,null,null,null,null,null,null," ",null,null,"DATA"]
[null,null,null,null,null,null,null,null,null,null,null,null,null," "]
[null,null,"Focus - Overall",null,null,null,"Rank",null,null,"Re-order",null,"Label",null," ",null,null,null,null,"Overall","Central Queensland","Darling Downs","Macintyre - Balonne","Northern NSW","Macquarie","Southern NSW","Small (< 1,000 ha)","Medium (1,000 - 5,000 ha)","Large (> 5,000 ha)"]
[null,null,null,null,"Base",{"$f":"INDEX($S5:$AB5,1,1)","v":214},null,null,null,null,null,null,null," ",null,null,null,"Base:",214,25,48,34,53,24,30,83,100,28]
[null,null,null,null,"Colour",{"$f":"INDEX($S6:$AB6,1,1)","v":0.31775700000000001},{"$f":"RANK(F6,$F$6:$F$12)","v":2},null,1,{"$f":"INDEX($E$6:$G$14,MATCH($I6,$G$6:$G$14,0),1)","v":"Leaf"},{"$f":"INDEX($E$6:$G$14,MATCH($I6,$G$6:$G$14,0),2)","v":0.40186899999999998},{"$f":"IF(AND(K6>0,K6<0.005),\"<1%\",TEXT(K6,\"0%\"))","v":"40%"},null," ",null,null,null,"Colour",0.31775700000000001,0.36,0.375,0.47058800000000001,0.245283,0.16666700000000001,0.26666699999999999,0.25301200000000001,0.32,0.5]
[null,null,null,null,"Leaf",0.40186899999999998,{"$f":"RANK(F7,$F$6:$F$12)+COUNTIF($G$6:G6,RANK(F7,$F$6:$F$12))","v":1},null,2,{"$f":"INDEX($E$6:$G$14,MATCH($I7,$G$6:$G$14,0),1)","v":"Colour"},{"$f":"INDEX($E$6:$G$14,MATCH($I7,$G$6:$G$14,0),2)","v":0.31775700000000001},{"$f":"IF(AND(K7>0,K7<0.005),\"<1%\",TEXT(K7,\"0%\"))","v":"32%"},null," ",null,null,null,"Leaf",0.40186899999999998,0.08,0.39583299999999999,0.55882399999999999,0.41509400000000002,0.66666700000000001,0.26666699999999999,0.289157,0.44,0.57142899999999996]
[null,null,null,null,"Length",0.16822400000000001,{"$f":"RANK(F8,$F$6:$F$12)+COUNTIF($G$6:G7,RANK(F8,$F$6:$F$12))","v":4},null,3,"High Micronaire",0.28504699999999999,"29%",null,null,null,null,null,"Length",0.16822400000000001,0.04,0.4375,0.117647,0.15094299999999999,8.3333000000000004E-2,0,0.13253000000000001,0.18,0.214286]
[null,null,null,null,"Strength",7.4765999999999999E-2,{"$f":"RANK(F9,$F$6:$F$12)+COUNTIF($G$6:G8,RANK(F9,$F$6:$F$12))","v":5},null,4,"Length",0.16822400000000001,"17%",null,null,null,null,null,"Strength",7.4765999999999999E-2,0.08,0.16666700000000001,2.9412000000000001E-2,7.5471999999999997E-2,0,3.3333000000000002E-2,8.4336999999999995E-2,0.06,7.1429000000000006E-2]
[null,null,null,null,"Honeydew",4.6730000000000001E-3,{"$f":"RANK(F10,$F$6:$F$12)+COUNTIF($G$6:G9,RANK(F10,$F$6:$F$12))","v":7},null,5,"Strength",7.4765999999999999E-2,"7%",null,null,null,null,null,"Honeydew",4.6730000000000001E-3,0,0,2.9412000000000001E-2,0,0,0,0,0.01,0]
[null,null,null,null,"High Micronaire",0.28504699999999999,{"$f":"RANK(F11,$F$6:$F$12)+COUNTIF($G$6:G10,RANK(F11,$F$6:$F$12))","v":3},null,6,"Low Micronaire",7.0093000000000003E-2,"7%",null,null,null,null,null,"High Micronaire",0.28504699999999999,0.36,0.1875,0.47058800000000001,0.43396200000000001,0.125,3.3333000000000002E-2,0.27710800000000002,0.25,0.42857099999999998]
[null,null,null,null,"Low Micronaire",7.0093000000000003E-2,{"$f":"RANK(F12,$F$6:$F$12)+COUNTIF($G$6:G11,RANK(F12,$F$6:$F$12))","v":6},null,7,"Honeydew",4.6730000000000001E-3,"<1%",null,null,null,null,null,"Low Micronaire",7.0093000000000003E-2,0,4.1667000000000003E-2,0,3.7735999999999999E-2,8.3333000000000004E-2,0.3,9.6385999999999999E-2,7.0000000000000007E-2,0]
[null,null,null,null,"Other (please specify)",7.4765999999999999E-2,8,null,8,"Other (please specify)",7.4765999999999999E-2,"7%",null,null,null,null,null,"Other (please specify)",7.4765999999999999E-2,0.04,0.125,5.8824000000000001E-2,1.8867999999999999E-2,8.3333000000000004E-2,0.13333300000000001,7.2289000000000006E-2,0.08,7.1429000000000006E-2]
[null,null,null,null,"None of these",0.15420600000000001,9,null,9,"None of these",0.15420600000000001,"15%",null,null,null,null,null,"None of these",0.15420600000000001,0.28000000000000003,0.104167,8.8234999999999994E-2,0.18867900000000001,8.3333000000000004E-2,0.2,0.216867,0.11,0.107143]
[]
[]
[]
[]
[null,null,"Focus - Segment",null,null,null,null,null,null,"Re-order to same order as above",null,"Label",null," "]
[null,null,null,null,"Base",{"$f":"INDEX($S5:$AB5,1,$A$1)","v":214},null,null,null,null,null,null,null," "]
[null,null,null,null,"Colour",{"$f":"INDEX($S6:$AB6,1,$A$1)","v":0.31775700000000001},null,null,null,{"$f":"INDEX($E$21:$G$29,MATCH($J6,$E$21:$E$29,0),1)","v":"Leaf"},{"$f":"INDEX($E$21:$G$29,MATCH($J6,$E$21:$E$29,0),2)","v":0.40186899999999998},{"$f":"IF(AND(K21>0,K21<0.005),\"<1%\",TEXT(K21,\"0%\"))","v":"40%"},null," "]
[null,null,null,null,"Leaf",0.40186899999999998,null,null,null,{"$f":"INDEX($E$21:$G$29,MATCH($J7,$E$21:$E$29,0),1)","v":"Colour"},{"$f":"INDEX($E$21:$G$29,MATCH($J7,$E$21:$E$29,0),2)","v":0.31775700000000001},"32%",null," "]
[null,null,null,null,"Length",0.16822400000000001,null,null,null,"High Micronaire",0.28504699999999999,"29%"]
[null,null,null,null,"Strength",7.4765999999999999E-2,null,null,null,"Length",0.16822400000000001,"17%"]
[null,null,null,null,"Honeydew",4.6730000000000001E-3,null,null,null,"Strength",7.4765999999999999E-2,"7%"]
[null,null,null,null,"High Micronaire",0.28504699999999999,null,null,null,"Low Micronaire",7.0093000000000003E-2,"7%"]
[null,null,null,null,"Low Micronaire",7.0093000000000003E-2,null,null,null,"Honeydew",4.6730000000000001E-3,"<1%"]
[null,null,null,null,"Other (please specify)",7.4765999999999999E-2,null,null,null,"Other (please specify)",7.4765999999999999E-2,"7%"]
[null,null,null,null,"None of these",0.15420600000000001,null,null,null,"None of these",0.15420600000000001,"15%"]

{"sheet":"Largest Discount","index":20,"n_rows":29,"n_cols":19,"rows_kept":29,"cut":false,"hidden":false,"merged":[[28,2,29,18],[0,4,3,16],[0,17,1,19],[4,4,5,16],[6,6,7,14]]}
[null,null,null,null,"2017 Grower Survey"]
[]
[]
[]
[null,null,null,null,"Cotton Crop Details - Largest Discount"]
[]
[null,null,null,null,null,null,"Which of these resulted in the largest total discount on your 2016-17 crop?"]
[]
[]
[]
[]
[]
[]
[]
[]
[]
[]
[]
[]
[]
[]
[]
[]
[]
[]
[]
[null,null,{"$f":"\"Base: all cotton growers who had at least one quality discount; n = \"&'Data - Largest Discount'!F5&\".\"","v":"Base: all cotton growers who had at least one quality discount; n = 179."},null,null,null,null,null,null,null,null,null,null,null,null,null,null,null,{"$f":"IF('HIDDEN - Backend'!Q17=1,\"Source: 2017 Grower Survey, CRDC\",\"\")","v":""}]
[]
[null,null,"Question: Which of these resulted in the largest total discount on your 2016-17 crop?"]

{"sheet":"Data - Largest Discount","index":21,"n_rows":27,"n_cols":28,"rows_kept":27,"cut":false,"hidden":true,"merged":[]}
[{"$f":"'HIDDEN - Backend'!Q3","v":1},null,null,null,"Segment",{"$f":"INDEX($S1:$AB1,1,$A$1)","v":"All cotton"},null,null,null,null,null,null,null," ",null,null,null,null,"All cotton","Central Queensland","Darling Downs","Macintyre - Balonne","Northern NSW","Macquarie","Southern NSW","Small farm","Medium farm","Large farm"]
[null,null,"CHARTS",null,null,null,null,null,null,null,null,null,null," ",null,null,"DATA"]
[null,null,null,null,null,null,null,null,null,null,null,null,null," "]
[null,null,"Focus - Overall",null,null,null,"Rank",null,null,"Re-order",null,"Label",null," ",null,null,null,null,"Overall","Central Queensland","Darling Downs","Macintyre - Balonne","Northern NSW","Macquarie","Southern NSW","Small (< 1,000 ha)","Medium (1,000 - 5,000 ha)","Large (> 5,000 ha)"]
[null,null,null,null,"Base",{"$f":"INDEX($S5:$AB5,1,1)","v":179},null,null,null,null,null,null,null," ",null,null,null,"Base:",179,18,41,31,43,22,24,64,88,25]
[null,null,null,null,"Colour",{"$f":"INDEX($S6:$AB6,1,1)","v":0.22346368715083798},{"$f":"RANK(F6,$F$6:$F$12)","v":2},null,1,{"$f":"INDEX($E$6:$G$13,MATCH($I6,$G$6:$G$13,0),1)","v":"Leaf"},{"$f":"INDEX($E$6:$G$13,MATCH($I6,$G$6:$G$13,0),2)","v":0.29608938547486036},{"$f":"IF(AND(K6>0,K6<0.005),\"<1%\",TEXT(K6,\"0%\"))","v":"30%"},null," ",null,null,null,"Colour",0.22346368715083798,0.44444444444444442,0.21951219512195122,0.25806451612903225,0.11627906976744186,0.13636363636363635,0.29166666666666669,0.203125,0.22727272727272727,0.28000000000000003]
[null,null,null,null,"Leaf",0.29608938547486036,{"$f":"RANK(F7,$F$6:$F$12)+COUNTIF($G$6:G6,RANK(F7,$F$6:$F$12))","v":1},null,2,"Colour",0.22346368715083798,{"$f":"IF(AND(K7>0,K7<0.005),\"<1%\",TEXT(K7,\"0%\"))","v":"22%"},null," ",null,null,null,"Leaf",0.29608938547486036,5.5555555555555552E-2,0.17073170731707318,0.29032258064516131,0.37209302325581395,0.68181818181818177,0.20833333333333334,0.21875,0.35227272727272729,0.32]
[null,null,null,null,"Length",0.13407821229050279,{"$f":"RANK(F8,$F$6:$F$12)+COUNTIF($G$6:G7,RANK(F8,$F$6:$F$12))","v":4},null,3,"High Micronaire",0.18994413407821228,"19%",null,null,null,null,null,"Length",0.13407821229050279,0,0.29268292682926828,9.6774193548387094E-2,0.18604651162790697,4.5454545454545456E-2,0,7.8125E-2,0.14772727272727273,0.2]
[null,null,null,null,"Strength",2.7932960893854747E-2,{"$f":"RANK(F9,$F$6:$F$12)+COUNTIF($G$6:G8,RANK(F9,$F$6:$F$12))","v":6},null,4,"Length",0.13407821229050279,"13%",null,null,null,null,null,"Strength",2.7932960893854747E-2,5.5555555555555552E-2,7.3170731707317069E-2,0,2.3255813953488372E-2,0,0,4.6875E-2,2.2727272727272728E-2,0]
[null,null,null,null,"Honeydew",0,{"$f":"RANK(F10,$F$6:$F$12)+COUNTIF($G$6:G9,RANK(F10,$F$6:$F$12))","v":7},null,5,"Low Micronaire",6.1452513966480445E-2,"6%",null,null,null,null,null,"Honeydew",0,0,0,0,0,0,0,0,0,0]
[null,null,null,null,"High Micronaire",0.18994413407821228,{"$f":"RANK(F11,$F$6:$F$12)+COUNTIF($G$6:G10,RANK(F11,$F$6:$F$12))","v":3},null,6,"Strength",2.7932960893854747E-2,"3%",null,null,null,null,null,"High Micronaire",0.18994413407821228,0.3888888888888889,7.3170731707317069E-2,0.32258064516129031,0.27906976744186046,9.0909090909090912E-2,0,0.265625,0.125,0.2]
[null,null,null,null,"Low Micronaire",6.1452513966480445E-2,{"$f":"RANK(F12,$F$6:$F$12)+COUNTIF($G$6:G11,RANK(F12,$F$6:$F$12))","v":5},null,7,"Honeydew",0,"0%",null,null,null,null,null,"Low Micronaire",6.1452513966480445E-2,0,2.4390243902439025E-2,0,2.3255813953488372E-2,4.5454545454545456E-2,0.33333333333333331,0.109375,4.5454545454545456E-2,0]
[null,null,null,null,"Other (please specify)",6.7039106145251395E-2,8,null,8,"Other (please specify)",6.7039106145251395E-2,"7%",null,null,null,null,null,"Other (\"[question(\"value\"), id=\"20\", option=\"10065\"]\")",6.7039106145251395E-2,5.5555555555555552E-2,0.14634146341463414,3.2258064516129031E-2,0,0,0.16666666666666666,7.8125E-2,7.9545454545454544E-2,0]
[]
[]
[]
[]
[null,null,"Focus - Segment",null,null,null,null,null,null,"Re-order to same order as above",null,"Label",null," "]
[null,null,null,null,"Base",{"$f":"INDEX($S5:$AB5,1,$A$1)","v":179},null,null,null,null,null,null,null," "]
[null,null,null,null,"Colour",0.22346368715083798,null,null,null,{"$f":"INDEX($E$20:$G$27,MATCH($J6,$E$20:$E$27,0),1)","v":"Leaf"},{"$f":"INDEX($E$20:$G$27,MATCH($J6,$E$20:$E$27,0),2)","v":0.29608938547486036},{"$f":"IF(AND(K20>0,K20<0.005),\"<1%\",TEXT(K20,\"0%\"))","v":"30%"},null," "]
[null,null,null,null,"Leaf",0.29608938547486036,null,null,null,"Colour",0.22346368715083798,"22%",null," "]
[null,null,null,null,"Length",0.13407821229050279,null,null,null,"High Micronaire",0.18994413407821228,"19%"]
[null,null,null,null,"Strength",2.7932960893854747E-2,null,null,null,"Length",0.13407821229050279,"13%"]
[null,null,null,null,"Honeydew",0,null,null,null,"Low Micronaire",6.1452513966480445E-2,"6%"]
[null,null,null,null,"High Micronaire",0.18994413407821228,null,null,null,"Strength",2.7932960893854747E-2,"3%"]
[null,null,null,null,"Low Micronaire",6.1452513966480445E-2,null,null,null,"Honeydew",0,"0%"]
[null,null,null,null,"Other (please specify)",6.7039106145251395E-2,null,null,null,"Other (please specify)",6.7039106145251395E-2,"7%"]

{"sheet":"Widely Used Practices","index":22,"n_rows":29,"n_cols":19,"rows_kept":29,"cut":false,"hidden":false,"merged":[[28,2,29,18],[0,4,3,16],[0,17,1,19],[4,4,5,16],[6,2,7,9],[6,11,7,18]]}
[null,null,null,null,"2017 Grower Survey",null,null,null,null,null,null,null,null,null,null,null,null,"Data in Focus:"]
[]
[]
[]
[null,null,null,null,"Weeds, Pests and Disease Control - Widely Used Practices"]
[]
[null,null,"Insect pests, disease and weed management practices in 2016-17 cotton fields",null,null,null,null,null,null,null,null,{"$f":"\"Results - \"&'Data - Widely Used Practices'!F1&\" growers\"","v":"Results - All cotton growers"}]
[]
[]
[]
[]
[]
[]
[]
[]
[]
[]
[]
[]
[]
[]
[]
[]
[]
[]
[]
[null,null,{"$f":"\"Base: all cotton growers; n = \"&'Data - Widely Used Practices'!F16&\".\"","v":"Base: all cotton growers; n = 205."},null,null,null,null,null,null,{"$f":"IF('HIDDEN - Backend'!Q17=1,\"Source: 2017 Grower Survey, CRDC\",\"\")","v":""},null,{"$f":"IF('Data - Widely Used Practices'!A1=1,\"\",\"Base: \"&'Data - Widely Used Practices'!F1&\" growers; n = \"&'Data - Widely Used Practices'!F41&\".\")","v":""},null,null,null,null,null,null,{"$f":"IF(AND('HIDDEN - Backend'!Q17=1,'HIDDEN - Backend'!Q3>1),\"Source: 2017 Grower Survey, CRDC\",\"\")","v":""}]
[]
[null,null,"Question: With regards to insect pests, disease and weed management in 2016-17 cotton fields, how widely used (in terms of hectares) are the practices listed below:"]

{"sheet":"Data - Widely Used Practices","index":23,"n_rows":49,"n_cols":28,"rows_kept":49,"cut":false,"hidden":true,"merged":[]}
[{"$f":"'HIDDEN - Backend'!Q3","v":1},null,null,null,"Segment",{"$f":"INDEX($S1:$AB1,1,$A$1)","v":"All cotton"},null,null,null,null,null,null,null," ",null,null,null,null,"All cotton","Central Queensland","Darling Downs","Macintyre - Balonne","Northern NSW","Macquarie","Southern NSW","Small farm","Medium farm","Large farm"]
[null,null,"CHARTS",null,null,null,null,null,null,null,null,null,null," ",null,null,"DATA"]
[null,null,null,null,null,null,null,null,null,null,null,null,null," "]
[null,null,"Focus - Overall",null,null,null,"Rank",null,null,"Re-order",null,"Label",null," ",null,null,null,null,"Overall","Central Queensland","Darling Downs","Macintyre - Balonne","Northern NSW","Macquarie","Southern NSW","Small (< 1,000 ha)","Medium (1,000 - 5,000 ha)","Large (> 5,000 ha)"]
[null,null,null,null,"Base",{"$f":"INDEX($S5:$AB5,1,1)","v":187},null,null,null,null,null,null,null," ",null,null,null,"Base:",187,24,46,26,45,21,27,78,85,23]
[null,null,"Total Cotton Ha (where practice is used) (proportion)",null,"The industry’s recommended sampling strategies are used to monitor pest abundance and plant damage",{"$f":"INDEX($S6:$AB6,1,1)","v":0.37887738327260928},{"$f":"RANK(F6,$F$6:$F$13)","v":5},null,1,{"$f":"INDEX($E$6:$G$13,MATCH($I6,$G$6:$G$13,0),1)","v":"Weed hosts are controlled to prevent pest build up"},{"$f":"INDEX($E$6:$G$13,MATCH($I6,$G$6:$G$13,0),2)","v":0.40217937829137224},{"$f":"IF(AND(K6>0,K6<0.005),\"<1%\",TEXT(K6,\"0%\"))","v":"40%"},null," ",null,"Total Cotton Ha (where practice is used) (proportion)",null,"The industry’s recommended sampling strategies are used to monitor pest abundance and plant damage",0.37887738327260928,0.52000053012154268,0.44893046291275207,0.37996298789724775,0.36067229719114691,0.22761705582634686,0.2924216773238057,0.47350026538870393,0.31056036925712754,0.30013816077825017]
[null,null,null,null,"The industry’s recommended thresholds are used when making pest control decisions",0.39372733907935953,{"$f":"RANK(F7,$F$6:$F$13)+COUNTIF($G$6:G6,RANK(F7,$F$6:$F$13))","v":2},null,2,"The industry’s recommended thresholds are used when making pest control decisions",0.39372733907935953,{"$f":"IF(AND(K7>0,K7<0.005),\"<1%\",TEXT(K7,\"0%\"))","v":"39%"},null," ",null,null,null,"The industry’s recommended thresholds are used when making pest control decisions",0.39372733907935953,0.53532520544621809,0.47667223019487465,0.40717456530774931,0.35326167494023653,0.22154005316794942,0.31692075395758362,0.49079130729892484,0.32079244400985391,0.30521383404634528]
[null,null,null,null,"The IRMS is followed when selecting insecticides/miticides",0.38352865671771902,{"$f":"RANK(F8,$F$6:$F$13)+COUNTIF($G$6:G7,RANK(F8,$F$6:$F$13))","v":4},null,3,"Pesticides selection aims to conserve beneficial insects whenever possible",0.38949349590989052,"39%",null,null,null,null,null,"The IRMS is followed when selecting insecticides/miticides",0.38352865671771902,0.51335454433986083,0.44981957525892818,0.37454744535595669,0.35855473962053935,0.23506473712714879,0.30012339966218149,0.47058303065616919,0.31957360449222211,0.30013816077825017]
[null,null,null,null,"Pesticides selection aims to conserve beneficial insects whenever possible",0.38949349590989052,{"$f":"RANK(F9,$F$6:$F$13)+COUNTIF($G$6:G8,RANK(F9,$F$6:$F$13))","v":3},null,4,"The IRMS is followed when selecting insecticides/miticides",0.38352865671771902,"38%",null,null,null,null,null,"Pesticides selection aims to conserve beneficial insects whenever possible",0.38949349590989052,0.53363143832570004,0.46135911180675498,0.36788077868929003,0.35342532191008069,0.22154005316794942,0.34835316016367535,0.48896997123940628,0.31705726422676994,0.30013816077825017]
[null,null,null,null,"Weed hosts are controlled to prevent pest build up",0.40217937829137224,{"$f":"RANK(F10,$F$6:$F$13)+COUNTIF($G$6:G9,RANK(F10,$F$6:$F$13))","v":1},null,5,"The industry’s recommended sampling strategies are used to monitor pest abundance and plant damage",0.37887738327260928,"38%",null,null,null,null,null,"Weed hosts are controlled to prevent pest build up",0.40217937829137224,0.52138556067882502,0.49854196970951487,0.3751647080932195,0.37014612560932919,0.2306170558263469,0.32972411742111585,0.50331627954562741,0.32979194576451493,0.30013816077825017]
[null,null,null,null,"Rotations cropping decisions consider cotton pest risks",0.36604942900834531,{"$f":"RANK(F11,$F$6:$F$13)+COUNTIF($G$6:G10,RANK(F11,$F$6:$F$13))","v":7},null,6,"Rotations are used as part of integrated weed management strategy",0.37603778684349864,"38%",null,null,null,null,null,"Rotations cropping decisions consider cotton pest risks",0.36604942900834531,0.44482076950826954,0.50428151812476296,0.27274104792730208,0.3421448190890079,0.19618134408055637,0.3406628174496471,0.45363258915212651,0.32077516298929309,0.26694623565676828]
[null,null,null,null,"Rotations cropping decisions consider cotton disease risks",0.35938666514355144,{"$f":"RANK(F12,$F$6:$F$13)+COUNTIF($G$6:G11,RANK(F12,$F$6:$F$13))","v":8},null,7,"Rotations cropping decisions consider cotton pest risks",0.36604942900834531,"37%",null," ",null,null,null,"Rotations cropping decisions consider cotton disease risks",0.35938666514355144,0.43817919117919119,0.51810248792972546,0.27057626953811559,0.32723967003751747,0.1951813440805564,0.32417003255018306,0.44673758635883759,0.30905858414177811,0.26694623565676828]
[null,null,null,null,"Rotations are used as part of integrated weed management strategy",0.37603778684349864,{"$f":"RANK(F13,$F$6:$F$13)+COUNTIF($G$6:G12,RANK(F13,$F$6:$F$13))","v":6},null,8,"Rotations cropping decisions consider cotton disease risks",0.35938666514355144,"36%",null," ",null,null,null,"Rotations are used as part of integrated weed management strategy",0.37603778684349864,0.41934728234728236,0.50497716434224305,0.30520013505317067,0.359385841335362,0.25801624364413994,0.31837536425551477,0.45671242227757647,0.33123504880043009,0.26694623565676828]
[null,null,null,null,null,null,null,null,null,null,null,null,null," "]
[null,null,null,null,null,null,null,null,null,"Re-order to same order as above",null,"Label",null," ",null,null,null,null,"Overall","Central Queensland","Darling Downs","Macintyre - Balonne","Northern NSW","Macquarie","Southern NSW","Small (< 1,000 ha)","Medium (1,000 - 5,000 ha)","Large (> 5,000 ha)"]
[null,null,null,null,"Base",{"$f":"INDEX($S16:$AB16,1,1)","v":205},null,null,null,null,null,null,null,null,null,null,null,"Base:",205,25,48,30,48,23,31,80,97,25]
[null,null,"Proportion of growers who have used practice in 2016-17 cotton fields",null,"The industry’s recommended sampling strategies are used to monitor pest abundance and plant damage",0.87317073170731685,{"$f":"IF(AND(F17>0,F17<0.005),\"<1%\",TEXT(F17,\"0%\"))","v":"87%"},null,null,{"$f":"INDEX($E$17:$G$24,MATCH($J6,$E$17:$E$24,0),1)","v":"Weed hosts are controlled to prevent pest build up"},{"$f":"INDEX($E$17:$G$24,MATCH($J6,$E$17:$E$24,0),2)","v":0.86829268292682915},{"$f":"IF(AND(K17>0,K17<0.005),\"<1%\",TEXT(K17,\"0%\"))","v":"87%"},null,null,null,"Proportion of growers who have used practice in 2016-17 cotton fields",null,"The industry’s recommended sampling strategies are used to monitor pest abundance and plant damage",0.87317073170731685,0.87999999999999989,0.875,0.83333333333333348,0.91666666666666641,0.86956521739130421,0.83870967741935476,0.88749999999999984,0.87628865979381443,0.84]
[null,null,null,null,"The industry’s recommended thresholds are used when making pest control decisions",0.89756097560975601,"90%",null,null,{"$f":"INDEX($E$17:$G$24,MATCH($J7,$E$17:$E$24,0),1)","v":"The industry’s recommended thresholds are used when making pest control decisions"},{"$f":"INDEX($E$17:$G$24,MATCH($J7,$E$17:$E$24,0),2)","v":0.89756097560975601},{"$f":"IF(AND(K18>0,K18<0.005),\"<1%\",TEXT(K18,\"0%\"))","v":"90%"},null,null,null,null,null,"The industry’s recommended thresholds are used when making pest control decisions",0.89756097560975601,0.87999999999999978,0.95833333333333337,0.86666666666666647,0.93749999999999989,0.9130434782608694,0.77419354838709686,0.94999999999999984,0.85567010309278346,0.91999999999999971]
[null,null,null,null,"The IRMS is followed when selecting insecticides/miticides",0.82926829268292679,"83%",null,null,"Pesticides selection aims to conserve beneficial insects whenever possible",0.91219512195121955,"91%",null,null,null,null,null,"The IRMS is followed when selecting insecticides/miticides",0.82926829268292679,0.91999999999999971,0.85416666666666674,0.83333333333333348,0.89583333333333326,0.82608695652173902,0.61290322580645173,0.86250000000000027,0.80412371134020633,0.84]
[null,null,null,null,"Pesticides selection aims to conserve beneficial insects whenever possible",0.91219512195121955,"91%",null,null,"The IRMS is followed when selecting insecticides/miticides",0.82926829268292679,"83%",null,null,null,null,null,"Pesticides selection aims to conserve beneficial insects whenever possible",0.91219512195121955,0.95999999999999985,0.95833333333333315,0.83333333333333348,0.91666666666666641,0.9130434782608694,0.87096774193548365,0.9750000000000002,0.87628865979381465,0.84]
[null,null,null,null,"Weed hosts are controlled to prevent pest build up",0.86829268292682915,"87%",null,null,"The industry’s recommended sampling strategies are used to monitor pest abundance and plant damage",0.87317073170731685,"87%",null,null,null,null,null,"Weed hosts are controlled to prevent pest build up",0.86829268292682915,0.91999999999999971,0.9375,0.83333333333333348,0.89583333333333326,0.86956521739130421,0.70967741935483875,0.91249999999999987,0.84536082474226837,0.84]
[null,null,null,null,"Rotations cropping decisions consider cotton pest risks",0.76585365853658527,"77%",null,null,"Rotations are used as part of integrated weed management strategy",0.83902439024390196,"84%",null,null,null,null,null,"Rotations cropping decisions consider cotton pest risks",0.76585365853658527,0.6399999999999999,0.79166666666666685,0.66666666666666652,0.85416666666666663,0.78260869565217395,0.77419354838709675,0.77499999999999969,0.74226804123711332,0.84]
[null,null,null,null,"Rotations cropping decisions consider cotton disease risks",0.7707317073170733,"77%",null,null,"Rotations cropping decisions consider cotton pest risks",0.76585365853658527,"77%",null,null,null,null,null,"Rotations cropping decisions consider cotton disease risks",0.7707317073170733,0.60000000000000009,0.77083333333333315,0.70000000000000007,0.85416666666666652,0.78260869565217395,0.83870967741935487,0.79999999999999982,0.73195876288659789,0.84]
[null,null,null,null,"Rotations are used as part of integrated weed management strategy",0.83902439024390196,"84%",null,null,"Rotations cropping decisions consider cotton disease risks",0.7707317073170733,"77%",null,null,null,null,null,"Rotations are used as part of integrated weed management strategy",0.83902439024390196,0.60000000000000009,0.9166666666666663,0.76666666666666672,0.89583333333333326,0.9130434782608694,0.83870967741935498,0.83749999999999991,0.83505154639175261,0.84]
[]
[]
[]
[]
[null,null,"Focus - Segment",null,null,null,null,null,null,"Re-order to same order as above",null,"Label"]
[null,null,null,null,"Base",{"$f":"INDEX($S5:$AB5,1,$A$1)","v":187}]
[null,null,"Total Cotton Ha (where practice is used) (proportion)",null,"The industry’s recommended sampling strategies are used to monitor pest abundance and plant damage",{"$f":"INDEX($S6:$AB6,1,$A$1)","v":0.37887738327260928},{"$f":"IF(AND(F31>0,F31<0.005),\"<1%\",TEXT(F31,\"0%\"))","v":"38%"},null,null,{"$f":"INDEX($E$31:$G$38,MATCH($J6,$E$31:$E$38,0),1)","v":"Weed hosts are controlled to prevent pest build up"},{"$f":"INDEX($E$31:$G$38,MATCH($J6,$E$31:$E$38,0),2)","v":0.40217937829137224},{"$f":"IF(AND(K31>0,K31<0.005),\"<1%\",TEXT(K31,\"0%\"))","v":"40%"}]
[null,null,null,null,"The industry’s recommended thresholds are used when making pest control decisions",{"$f":"INDEX($S7:$AB7,1,$A$1)","v":0.39372733907935953},{"$f":"IF(AND(F32>0,F32<0.005),\"<1%\",TEXT(F32,\"0%\"))","v":"39%"},null,null,{"$f":"INDEX($E$31:$G$38,MATCH($J7,$E$31:$E$38,0),1)","v":"The industry’s recommended thresholds are used when making pest control decisions"},{"$f":"INDEX($E$31:$G$38,MATCH($J7,$E$31:$E$38,0),2)","v":0.39372733907935953},{"$f":"IF(AND(K32>0,K32<0.005),\"<1%\",TEXT(K32,\"0%\"))","v":"39%"}]
[null,null,null,null,"The IRMS is followed when selecting insecticides/miticides",0.38352865671771902,"38%",null,null,"Pesticides selection aims to conserve beneficial insects whenever possible",0.38949349590989052,"39%"]
[null,null,null,null,"Pesticides selection aims to conserve beneficial insects whenever possible",0.38949349590989052,"39%",null,null,"The IRMS is followed when selecting insecticides/miticides",0.38352865671771902,"38%"]
[null,null,null,null,"Weed hosts are controlled to prevent pest build up",0.40217937829137224,"40%",null,null,"The industry’s recommended sampling strategies are used to monitor pest abundance and plant damage",0.37887738327260928,"38%"]
[null,null,null,null,"Rotations cropping decisions consider cotton pest risks",0.36604942900834531,"37%",null,null,"Rotations are used as part of integrated weed management strategy",0.37603778684349864,"38%"]
[null,null,null,null,"Rotations cropping decisions consider cotton disease risks",0.35938666514355144,"36%",null,null,"Rotations cropping decisions consider cotton pest risks",0.36604942900834531,"37%"]
[null,null,null,null,"Rotations are used as part of integrated weed management strategy",0.37603778684349864,"38%",null,null,"Rotations cropping decisions consider cotton disease risks",0.35938666514355144,"36%"]
[]
[null,null,null,null,null,null,null,null,null,"Re-order to same order as above",null,"Label"]
[null,null,null,null,"Base",{"$f":"INDEX($S16:$AB16,1,$A$1)","v":205}]
[null,null,"Proportion of growers who have used practice in 2016-17 cotton fields",null,"The industry’s recommended sampling strategies are used to monitor pest abundance and plant damage",{"$f":"INDEX($S17:$AB17,1,$A$1)","v":0.87317073170731685},{"$f":"IF(AND(F42>0,F42<0.005),\"<1%\",TEXT(F42,\"0%\"))","v":"87%"},null,null,{"$f":"INDEX($E$42:$G$49,MATCH($J6,$E$42:$E$49,0),1)","v":"Weed hosts are controlled to prevent pest build up"},{"$f":"INDEX($E$42:$G$49,MATCH($J6,$E$42:$E$49,0),2)","v":0.86829268292682915},{"$f":"IF(AND(K42>0,K42<0.005),\"<1%\",TEXT(K42,\"0%\"))","v":"87%"}]
[null,null,null,null,"The industry’s recommended thresholds are used when making pest control decisions",{"$f":"INDEX($S18:$AB18,1,$A$1)","v":0.89756097560975601},{"$f":"IF(AND(F43>0,F43<0.005),\"<1%\",TEXT(F43,\"0%\"))","v":"90%"},null,null,{"$f":"INDEX($E$42:$G$49,MATCH($J7,$E$42:$E$49,0),1)","v":"The industry’s recommended thresholds are used when making pest control decisions"},{"$f":"INDEX($E$42:$G$49,MATCH($J7,$E$42:$E$49,0),2)","v":0.89756097560975601},{"$f":"IF(AND(K43>0,K43<0.005),\"<1%\",TEXT(K43,\"0%\"))","v":"90%"}]
[null,null,null,null,"The IRMS is followed when selecting insecticides/miticides",{"$f":"INDEX($S19:$AB19,1,$A$1)","v":0.82926829268292679},{"$f":"IF(AND(F44>0,F44<0.005),\"<1%\",TEXT(F44,\"0%\"))","v":"83%"},null,null,"Pesticides selection aims to conserve beneficial insects whenever possible",0.91219512195121955,"91%"]
[null,null,null,null,"Pesticides selection aims to conserve beneficial insects whenever possible",0.91219512195121955,"91%",null,null,"The IRMS is followed when selecting insecticides/miticides",0.82926829268292679,"83%"]
[null,null,null,null,"Weed hosts are controlled to prevent pest build up",0.86829268292682915,"87%",null,null,"The industry’s recommended sampling strategies are used to monitor pest abundance and plant damage",0.87317073170731685,"87%"]
[null,null,null,null,"Rotations cropping decisions consider cotton pest risks",0.76585365853658527,"77%",null,null,"Rotations are used as part of integrated weed management strategy",0.83902439024390196,"84%"]
[null,null,null,null,"Rotations cropping decisions consider cotton disease risks",0.7707317073170733,"77%",null,null,"Rotations cropping decisions consider cotton pest risks",0.76585365853658527,"77%"]
[null,null,null,null,"Rotations are used as part of integrated weed management strategy",0.83902439024390196,"84%",null,null,"Rotations cropping decisions consider cotton disease risks",0.7707317073170733,"77%"]

{"sheet":"Weed Control Over Crop","index":24,"n_rows":29,"n_cols":19,"rows_kept":29,"cut":false,"hidden":false,"merged":[[28,2,29,18],[0,4,3,16],[0,17,1,19],[4,4,5,16],[6,2,7,9],[6,11,7,18]]}
[null,null,null,null,"2017 Grower Survey",null,null,null,null,null,null,null,null,null,null,null,null,"Data in Focus:"]
[]
[]
[]
[null,null,null,null,"Weeds, Pests and Disease Control - Weed Control Over Crop"]
[]
[null,null,"Tactics used to manage and control weeds\nover the area of your 2016-17 cotton crop",null,null,null,null,null,null,null,null,{"$f":"\"Results - \"&'Data - Weed Control Over Crop'!F1&\" growers\"","v":"Results - All cotton growers"}]
[]
[]
[]
[]
[]
[]
[]
[]
[]
[]
[]
[]
[]
[]
[]
[]
[]
[]
[]
[null,null,{"$f":"\"Base: all cotton growers; n varies (Full, n = \"&'Data - Weed Control Over Crop'!F5&\", Part, n = \"&'Data - Weed Control Over Crop'!F13&\", Rain, n = \"&'Data - Weed Control Over Crop'!F21&\").\"","v":"Base: all cotton growers; n varies (Full, n = 176, Part, n = 16, Rain, n = 80)."},null,null,null,null,null,null,{"$f":"IF('HIDDEN - Backend'!Q17=1,\"Source: 2017 Grower Survey, CRDC\",\"\")","v":""},null,{"$f":"IF('Data - Weed Control Over Crop'!A1=1,\"\",\"Base: \"&'Data - Weed Control Over Crop'!F1&\" growers; n = \"&'Data - Weed Control Over Crop'!F30&\".\")","v":""},null,null,null,null,null,null,{"$f":"IF(AND('HIDDEN - Backend'!Q17=1,'HIDDEN - Backend'!Q3>1),\"Source: 2017 Grower Survey, CRDC\",\"\")","v":""}]
[]
[null,null,"Question: How many tactics were used to manage and control WEEDS over the area of your 2016-17 COTTON CROP?"]

{"sheet":"Data - Weed Control Over Crop","index":25,"n_rows":35,"n_cols":28,"rows_kept":35,"cut":false,"hidden":true,"merged":[]}
[{"$f":"'HIDDEN - Backend'!Q3","v":1},null,null,null,"Segment",{"$f":"INDEX($S1:$AB1,1,$A$1)","v":"All cotton"},null,null,null,null,null,null,null," ",null,null,null,null,"All cotton","Central Queensland","Darling Downs","Macintyre - Balonne","Northern NSW","Macquarie","Southern NSW","Small farm","Medium farm","Large farm"]
[null,null,"CHARTS",null,null,null,null,null,null,null,null,null,null," ",null,null,"DATA"]
[null,null,null,null,null,null,null,null,null,null,null,null,null," "]
[null,null,"Focus - Overall",null,null,null,null,null,null,null,null,null,null," ",null,null,null,null,"Overall","Central Queensland","Darling Downs","Macintyre - Balonne","Northern NSW","Macquarie","Southern NSW","Small (< 1,000 ha)","Medium (1,000 - 5,000 ha)","Large (> 5,000 ha)"]
[null,null,null,null,"Base:",{"$f":"INDEX($S5:$AB5,1,1)","v":176},null,null,null,null,null,null,null," ",null,null,null,"Base:",176,23,29,29,42,23,30,71,81,24]
[null,null,"Fully Irrigated",null,"No Glyphosate and one or more tactics",{"$f":"INDEX($S6:$AB6,1,1)","v":7.3706605232215011E-3},{"$f":"IF(AND(F6>0,F6<0.005),\"<1%\",TEXT(F6,\"0%\"))","v":"1%"},null,null,null,null,null,null," ",null,"Fully Irrigated",null,"No Glyphosate and one or more tactics",7.3706605232215011E-3,2.8985507246376812E-3,2.3371647509578545E-2,0,1.1951355884819685E-2,0,1.6944953493371025E-3,1.2544354636866066E-2,0,1.6941128036228902E-2]
[null,null,null,null,"Glyphosate was the only tactic used",0.21594897655768966,{"$f":"IF(AND(F7>0,F7<0.005),\"<1%\",TEXT(F7,\"0%\"))","v":"22%"},null,null,null,null,null,null," ",null,null,null,"Glyphosate was the only tactic used",0.21594897655768966,0.21159420289855072,0.29821456747866826,0.17241379310344826,0.2142857142857143,0.21739130434782608,0.18307102502017755,0.24096897770805628,0.18004115226337447,0.2631203801478354]
[null,null,null,null,"Glyphosate plus one non-glyphosate tactics",0.28137938675837104,"28%",null,null,null,null,null,null,null,null,null,null,"Glyphosate plus one non-glyphosate tactics",0.28137938675837104,0.327536231884058,0.25695784631443519,0.12068965517241383,0.28545801882396798,0.34782608695652167,0.36828081341382268,0.27372101971787383,0.2692599489619974,0.34493849181593578]
[null,null,null,null,"Glyphosate plus two non-glyphosate tactics",0.30244462374960901,"30%",null,null,null,null,null,null,null,null,null,null,"Glyphosate plus two non-glyphosate tactics",0.30244462374960901,0.3188405797101449,0.18965517241379309,0.32758620689655171,0.33413824433883144,0.29682274247491641,0.33453970358146107,0.2987800925201391,0.35823292853088001,0.125]
[null,null,null,null,"Glyphosate plus three or more non-glyphosate tactics",0.19285635241110913,"19%",null,null,null,null,null,null,null,null,null,null,"Glyphosate plus three or more non-glyphosate tactics",0.19285635241110913,0.13913043478260873,0.23180076628352489,0.37931034482758619,0.15416666666666667,0.13795986622073578,0.11241396263520158,0.17398555541706481,0.19246597024374804,0.25000000000000006]
[]
[null,null,null,null,null,null,null,null,null,null,null,null,null," ",null,null,null,null,"Overall","Central Queensland","Darling Downs","Macintyre - Balonne","Northern NSW","Macquarie","Southern NSW","Small (< 1,000 ha)","Medium (1,000 - 5,000 ha)","Large (> 5,000 ha)"]
[null,null,null,null,"Base:",{"$f":"INDEX($S13:$AB13,1,1)","v":16},null,null,null,null,null,null,null," ",null,null,null,"Base:",16]
[null,null,"Partially Irrigated",null,"No Glyphosate and one or more tactics",{"$f":"INDEX($S14:$AB14,1,1)","v":2.0833333333333336E-2},{"$f":"IF(AND(F14>0,F14<0.005),\"<1%\",TEXT(F14,\"0%\"))","v":"2%"},null,null,null,null,null,null," ",null,"Partially Irrigated",null,"No Glyphosate and one or more tactics",2.0833333333333336E-2]
[null,null,null,null,"Glyphosate was the only tactic used",0.29166666666666663,{"$f":"IF(AND(F15>0,F15<0.005),\"<1%\",TEXT(F15,\"0%\"))","v":"29%"},null,null,null,null,null,null," ",null,null,null,"Glyphosate was the only tactic used",0.29166666666666663]
[null,null,null,null,"Glyphosate plus one non-glyphosate tactics",0.3125,"31%",null,null,null,null,null,null,null,null,null,null,"Glyphosate plus one non-glyphosate tactics",0.3125]
[null,null,null,null,"Glyphosate plus two non-glyphosate tactics",0.25,"25%",null,null,null,null,null,null,null,null,null,null,"Glyphosate plus two non-glyphosate tactics",0.25]
[null,null,null,null,"Glyphosate plus three or more non-glyphosate tactics",0.125,"13%",null,null,null,null,null,null,null,null,null,null,"Glyphosate plus three or more non-glyphosate tactics",0.125]
[]
[null,null,null,null,null,null,null,null,null,null,null,null,null,null,null,null,null,null,"Overall","Central Queensland","Darling Downs","Macintyre - Balonne","Northern NSW","Macquarie","Southern NSW","Small (< 1,000 ha)","Medium (1,000 - 5,000 ha)","Large (> 5,000 ha)"]
[null,null,null,null,"Base:",{"$f":"INDEX($S21:$AB21,1,1)","v":80},null,null,null,null,null,null,null,null,null,null,null,"Base:",80]
[null,null,"Raingrown | Dryland",null,"No Glyphosate and one or more tactics",{"$f":"INDEX($S22:$AB22,1,1)","v":6.2500000000000003E-3},{"$f":"IF(AND(F22>0,F22<0.005),\"<1%\",TEXT(F22,\"0%\"))","v":"1%"},null,null,null,null,null,null,null,null,"Raingrown | Dryland",null,"No Glyphosate and one or more tactics",6.2500000000000003E-3]
[null,null,null,null,"Glyphosate was the only tactic used",0.33072916666666669,{"$f":"IF(AND(F23>0,F23<0.005),\"<1%\",TEXT(F23,\"0%\"))","v":"33%"},null,null,null,null,null,null,null,null,null,null,"Glyphosate was the only tactic used",0.33072916666666669]
[null,null,null,null,"Glyphosate plus one non-glyphosate tactics",0.28593750000000001,"29%",null,null,null,null,null,null,null,null,null,null,"Glyphosate plus one non-glyphosate tactics",0.28593750000000001]
[null,null,null,null,"Glyphosate plus two non-glyphosate tactics",0.23541666666666666,"24%",null,null,null,null,null,null,null,null,null,null,"Glyphosate plus two non-glyphosate tactics",0.23541666666666666]
[null,null,null,null,"Glyphosate plus three or more non-glyphosate tactics",0.14166666666666672,"14%",null,null,null,null,null,null,null,null,null,null,"Glyphosate plus three or more non-glyphosate tactics",0.14166666666666672]
[]
[]
[null,null,"Focus - Segment"]
[null,null,null,null,"Base:",{"$f":"INDEX($S5:$AB5,1,$A$1)","v":176}]
[null,null,"Fully Irrigated",null,"No Glyphosate and one or more tactics",7.3706605232215011E-3,{"$f":"IF(AND(F31>0,F31<0.005),\"<1%\",TEXT(F31,\"0%\"))","v":"1%"}]
[null,null,null,null,"Glyphosate was the only tactic used",0.21594897655768966,{"$f":"IF(AND(F32>0,F32<0.005),\"<1%\",TEXT(F32,\"0%\"))","v":"22%"}]
[null,null,null,null,"Glyphosate plus one non-glyphosate tactics",0.28137938675837104,{"$f":"IF(AND(F33>0,F33<0.005),\"<1%\",TEXT(F33,\"0%\"))","v":"28%"}]
[null,null,null,null,"Glyphosate plus two non-glyphosate tactics",0.30244462374960901,{"$f":"IF(AND(F34>0,F34<0.005),\"<1%\",TEXT(F34,\"0%\"))","v":"30%"}]
[null,null,null,null,"Glyphosate plus three or more non-glyphosate tactics",0.19285635241110913,{"$f":"IF(AND(F35>0,F35<0.005),\"<1%\",TEXT(F35,\"0%\"))","v":"19%"}]

{"sheet":"Weed Control Over Fallows","index":26,"n_rows":29,"n_cols":19,"rows_kept":29,"cut":false,"hidden":false,"merged":[[28,2,29,18],[0,4,3,16],[0,17,1,19],[4,4,5,16],[6,2,7,9],[6,11,7,18]]}
[null,null,null,null,"2017 Grower Survey",null,null,null,null,null,null,null,null,null,null,null,null,"Data in Focus:"]
[]
[]
[]
[null,null,null,null,"Weeds, Pests and Disease Control - Weed Control Over Fallows"]
[]
[null,null,"Tactics used to manage and control weeds\nover the area of the Fallows in 2016-17",null,null,null,null,null,null,null,null,{"$f":"\"Results - \"&'Data - Weed Control Over Fallow'!F1&\" growers\"","v":"Results - All cotton growers"}]
[]
[]
[]
[]
[]
[]
[]
[]
[]
[]
[]
[]
[]
[]
[]
[]
[]
[]
[]
[null,null,{"$f":"\"Base: all cotton growers; n varies (Full, n = \"&'Data - Weed Control Over Fallow'!F5&\", Part, n = \"&'Data - Weed Control Over Fallow'!F13&\", Rain, n = \"&'Data - Weed Control Over Fallow'!F21&\").\"","v":"Base: all cotton growers; n varies (Full, n = 142, Part, n = 15, Rain, n = 76)."},null,null,null,null,null,null,{"$f":"IF('HIDDEN - Backend'!Q17=1,\"Source: 2017 Grower Survey, CRDC\",\"\")","v":""},null,{"$f":"IF('Data - Weed Control Over Fallow'!A1=1,\"\",\"Base: \"&'Data - Weed Control Over Fallow'!F1&\" growers; n = \"&'Data - Weed Control Over Fallow'!F30&\".\")","v":""},null,null,null,null,null,null,{"$f":"IF(AND('HIDDEN - Backend'!Q17=1,'HIDDEN - Backend'!Q3>1),\"Source: 2017 Grower Survey, CRDC\",\"\")","v":""}]
[]
[null,null,"Question: How many tactics were used for WEED control over the area of the FALLOWS you managed in 2016-17?"]

{"sheet":"Data - Weed Control Over Fallow","index":27,"n_rows":35,"n_cols":28,"rows_kept":35,"cut":false,"hidden":true,"merged":[]}
[{"$f":"'HIDDEN - Backend'!Q3","v":1},null,null,null,"Segment",{"$f":"INDEX($S1:$AB1,1,$A$1)","v":"All cotton"},null,null,null,null,null,null,null," ",null,null,null,null,"All cotton","Central Queensland","Darling Downs","Macintyre - Balonne","Northern NSW","Macquarie","Southern NSW","Small farm","Medium farm","Large farm"]
[null,null,"CHARTS",null,null,null,null,null,null,null,null,null,null," ",null,null,"DATA"]
[null,null,null,null,null,null,null,null,null,null,null,null,null," "]
[null,null,"Focus - Overall",null,null,null,null,null,null,null,null,null,null," ",null,null,null,null,"Overall","Central Queensland","Darling Downs","Macintyre - Balonne","Northern NSW","Macquarie","Southern NSW","Small (< 1,000 ha)","Medium (1,000 - 5,000 ha)","Large (> 5,000 ha)"]
[null,null,null,null,"Base:",{"$f":"INDEX($S5:$AB5,1,1)","v":142},null,null,null,null,null,null,null," ",null,null,null,"Base:",142,15,24,22,35,20,26,53,69,20]
[null,null,"Fully Irrigated",null,"No Glyphosate and one or more tactics",{"$f":"INDEX($S6:$AB6,1,1)","v":7.0305164319248811E-2},{"$f":"IF(AND(F6>0,F6<0.005),\"<1%\",TEXT(F6,\"0%\"))","v":"7%"},null,null,null,null,null,null," ",null,"Fully Irrigated",null,"No Glyphosate and one or more tactics",7.0305164319248811E-2,0.29333333333333333,1.0416666666666668E-2,0.13636363636363641,0,4.9999999999999996E-2,5.128205128205128E-2,0.12075471698113206,4.8309178743961352E-2,1.2499999999999999E-2]
[null,null,null,null,"Glyphosate was the only tactic used",7.5816580394045208E-2,{"$f":"IF(AND(F7>0,F7<0.005),\"<1%\",TEXT(F7,\"0%\"))","v":"8%"},null,null,null,null,null,null," ",null,null,null,"Glyphosate was the only tactic used",7.5816580394045208E-2,7.4567901234567899E-2,0.12419871794871792,0.1818181818181818,2.8571428571428577E-2,4.9999999999999996E-2,2.564102564102564E-2,6.319410847712735E-2,6.0386473429951709E-2,0.16250000000000003]
[null,null,null,null,"Glyphosate plus one non-glyphosate tactics",0.2253571285261427,"23%",null,null,null,null,null,null,null,null,null,null,"Glyphosate plus one non-glyphosate tactics",0.2253571285261427,0.16543209876543208,0.14663461538461542,0.13636363636363635,0.28571428571428575,0.19999999999999998,0.3461538461538462,0.25001343869268389,0.21014492753623185,0.21249999999999999]
[null,null,null,null,"Glyphosate plus two non-glyphosate tactics",0.33978873239436636,"34%",null,null,null,null,null,null,null,null,null,null,"Glyphosate plus two non-glyphosate tactics",0.33978873239436636,0.2,0.34375000000000006,0.22727272727272732,0.34285714285714292,0.54999999999999993,0.34615384615384615,0.26415094339622641,0.42028985507246375,0.26250000000000007]
[null,null,null,null,"Glyphosate plus three or more non-glyphosate tactics",0.28873239436619719,"29%",null,null,null,null,null,null,null,null,null,null,"Glyphosate plus three or more non-glyphosate tactics",0.28873239436619719,0.26666666666666672,0.375,0.31818181818181823,0.34285714285714286,0.15,0.23076923076923075,0.30188679245283023,0.2608695652173913,0.35000000000000003]
[]
[null,null,null,null,null,null,null,null,null,null,null,null,null," ",null,null,null,null,"Overall","Central Queensland","Darling Downs","Macintyre - Balonne","Northern NSW","Macquarie","Southern NSW","Small (< 1,000 ha)","Medium (1,000 - 5,000 ha)","Large (> 5,000 ha)"]
[null,null,null,null,"Base:",{"$f":"INDEX($S13:$AB13,1,1)","v":15},null,null,null,null,null,null,null," ",null,null,null,"Base:",15]
[null,null,"Partially Irrigated",null,"No Glyphosate and one or more tactics",{"$f":"INDEX($S14:$AB14,1,1)","v":1.666666666666667E-2},{"$f":"IF(AND(F14>0,F14<0.005),\"<1%\",TEXT(F14,\"0%\"))","v":"2%"},null,null,null,null,null,null," ",null,"Partially Irrigated",null,"No Glyphosate and one or more tactics",1.666666666666667E-2]
[null,null,null,null,"Glyphosate was the only tactic used",8.3333333333333343E-2,{"$f":"IF(AND(F15>0,F15<0.005),\"<1%\",TEXT(F15,\"0%\"))","v":"8%"},null,null,null,null,null,null," ",null,null,null,"Glyphosate was the only tactic used",8.3333333333333343E-2]
[null,null,null,null,"Glyphosate plus one non-glyphosate tactics",0.21666666666666667,"22%",null,null,null,null,null,null,null,null,null,null,"Glyphosate plus one non-glyphosate tactics",0.21666666666666667]
[null,null,null,null,"Glyphosate plus two non-glyphosate tactics",0.21666666666666673,"22%",null,null,null,null,null,null,null,null,null,null,"Glyphosate plus two non-glyphosate tactics",0.21666666666666673]
[null,null,null,null,"Glyphosate plus three or more non-glyphosate tactics",0.46666666666666667,"47%",null,null,null,null,null,null,null,null,null,null,"Glyphosate plus three or more non-glyphosate tactics",0.46666666666666667]
[]
[null,null,null,null,null,null,null,null,null,null,null,null,null,null,null,null,null,null,"Overall","Central Queensland","Darling Downs","Macintyre - Balonne","Northern NSW","Macquarie","Southern NSW","Small (< 1,000 ha)","Medium (1,000 - 5,000 ha)","Large (> 5,000 ha)"]
[null,null,null,null,"Base:",{"$f":"INDEX($S21:$AB21,1,1)","v":76},null,null,null,null,null,null,null,null,null,null,null,"Base:",76]
[null,null,"Raingrown | Dryland",null,"No Glyphosate and one or more tactics",{"$f":"INDEX($S22:$AB22,1,1)","v":1.6447368421052627E-2},{"$f":"IF(AND(F22>0,F22<0.005),\"<1%\",TEXT(F22,\"0%\"))","v":"2%"},null,null,null,null,null,null,null,null,"Raingrown | Dryland",null,"No Glyphosate and one or more tactics",1.6447368421052627E-2]
[null,null,null,null,"Glyphosate was the only tactic used",7.2677826993225642E-2,{"$f":"IF(AND(F23>0,F23<0.005),\"<1%\",TEXT(F23,\"0%\"))","v":"7%"},null,null,null,null,null,null,null,null,null,null,"Glyphosate was the only tactic used",7.2677826993225642E-2]
[null,null,null,null,"Glyphosate plus one non-glyphosate tactics",0.21460287476116036,"21%",null,null,null,null,null,null,null,null,null,null,"Glyphosate plus one non-glyphosate tactics",0.21460287476116036]
[null,null,null,null,"Glyphosate plus two non-glyphosate tactics",0.31030701754385975,"31%",null,null,null,null,null,null,null,null,null,null,"Glyphosate plus two non-glyphosate tactics",0.31030701754385975]
[null,null,null,null,"Glyphosate plus three or more non-glyphosate tactics",0.38596491228070184,"39%",null,null,null,null,null,null,null,null,null,null,"Glyphosate plus three or more non-glyphosate tactics",0.38596491228070184]
[]
[]
[null,null,"Focus - Segment"]
[null,null,null,null,"Base:",{"$f":"INDEX($S5:$AB5,1,$A$1)","v":142}]
[null,null,"Fully Irrigated",null,"No Glyphosate and one or more tactics",7.0305164319248811E-2,{"$f":"IF(AND(F31>0,F31<0.005),\"<1%\",TEXT(F31,\"0%\"))","v":"7%"}]
[null,null,null,null,"Glyphosate was the only tactic used",7.5816580394045208E-2,{"$f":"IF(AND(F32>0,F32<0.005),\"<1%\",TEXT(F32,\"0%\"))","v":"8%"}]
[null,null,null,null,"Glyphosate plus one non-glyphosate tactics",0.2253571285261427,{"$f":"IF(AND(F33>0,F33<0.005),\"<1%\",TEXT(F33,\"0%\"))","v":"23%"}]
[null,null,null,null,"Glyphosate plus two non-glyphosate tactics",0.33978873239436636,{"$f":"IF(AND(F34>0,F34<0.005),\"<1%\",TEXT(F34,\"0%\"))","v":"34%"}]
[null,null,null,null,"Glyphosate plus three or more non-glyphosate tactics",0.28873239436619719,{"$f":"IF(AND(F35>0,F35<0.005),\"<1%\",TEXT(F35,\"0%\"))","v":"29%"}]

{"sheet":"Spray Decision Thresholds","index":28,"n_rows":29,"n_cols":19,"rows_kept":29,"cut":false,"hidden":false,"merged":[[28,2,29,18],[0,4,3,16],[0,17,1,19],[4,4,5,16],[6,2,7,9],[6,11,7,18]]}
[null,null,null,null,"2017 Grower Survey",null,null,null,null,null,null,null,null,null,null,null,null,"Data in Focus:"]
[]
[]
[]
[null,null,null,null,"Pesticide Management - Spray Decision Thresholds"]
[]
[null,null,"Proportion of spray decisions in line with the\nindustry threshold during the 2016-17 season",null,null,null,null,null,null,null,null,{"$f":"\"Results - \"&'Data - Spray Decision Threshold'!F1&\" growers\"","v":"Results - All cotton growers"}]
[]
[]
[]
[]
[]
[]
[]
[]
[]
[]
[]
[]
[]
[]
[]
[]
[]
[]
[]
[null,null,{"$f":"\"Base: all cotton growers; n = \"&'Data - Spray Decision Threshold'!F5&\".\"","v":"Base: all cotton growers; n = 206."},null,null,null,null,null,null,{"$f":"IF('HIDDEN - Backend'!Q17=1,\"Source: 2017 Grower Survey, CRDC\",\"\")","v":""},null,{"$f":"IF('Data - Spray Decision Threshold'!A1=1,\"\",\"Base: \"&'Data - Spray Decision Threshold'!F1&\" growers; n = \"&'Data - Spray Decision Threshold'!F18&\".\")","v":""},null,null,null,null,null,null,{"$f":"IF(AND('HIDDEN - Backend'!Q17=1,'HIDDEN - Backend'!Q3>1),\"Source: 2017 Grower Survey, CRDC\",\"\")","v":""}]
[]
[null,null,"Question: Thinking about the insecticide decisions made for your farm during the 2016-17 cotton season, what proportion of spray decisions were in line with the industry threshold?"]

{"sheet":"Data - Spray Decision Threshold","index":29,"n_rows":25,"n_cols":28,"rows_kept":25,"cut":false,"hidden":true,"merged":[]}
[{"$f":"'HIDDEN - Backend'!Q3","v":1},null,null,null,"Segment",{"$f":"INDEX($S1:$AB1,1,$A$1)","v":"All cotton"},null,null,null,null,null,null,null," ",null,null,null,null,"All cotton","Central Queensland","Darling Downs","Macintyre - Balonne","Northern NSW","Macquarie","Southern NSW","Small farm","Medium farm","Large farm"]
[null,null,"CHARTS",null,null,null,null,null,null,null,null,null,null," ",null,null,"DATA"]
[null,null,null,null,null,null,null,null,null,null,null,null,null," "]
[null,null,"Focus - Overall",null,null,null,null,null,null,null,null,null,null," ",null,null,null,null,"Overall","Central Queensland","Darling Downs","Macintyre - Balonne","Northern NSW","Macquarie","Southern NSW","Small (< 1,000 ha)","Medium (1,000 - 5,000 ha)","Large (> 5,000 ha)"]
[null,null,null,null,"Base",{"$f":"INDEX($S5:$AB5,1,1)","v":206},null,null,null,null,null,null,null," ",null,null,null,"Base:",206,25,48,30,49,23,31,80,97,25]
[null,null,null,null,"All the time – for every spray decision (100%)",{"$f":"INDEX($S6:$AB6,1,1)","v":0.56796116504854366},{"$f":"IF(AND(F6>0,F6<0.005),\"<1%\",TEXT(F6,\"0%\"))","v":"57%"},null,null,null,null,null,null," ",null,null,null,"All the time – for every spray decision (100%)",0.56796116504854366,0.68,0.625,0.53333333333333333,0.55102040816326525,0.56521739130434778,0.45161290322580644,0.6,0.54639175257731953,0.48]
[null,null,null,null,"For most but not all applications (more than 75%)",0.21844660194174756,{"$f":"IF(AND(F7>0,F7<0.005),\"<1%\",TEXT(F7,\"0%\"))","v":"22%"},null,null,null,null,null,null," ",null,null,null,"For most but not all applications (more than 75%)",0.21844660194174756,0.16,0.16666666666666666,0.3,0.20408163265306123,0.2608695652173913,0.25806451612903225,0.17499999999999999,0.22680412371134021,0.36]
[null,null,null,null,"For some applications (50% - 75%)",3.3980582524271843E-2,"3%",null,null,null,null,null,null,null,null,null,null,"For some applications (50% - 75%)",3.3980582524271843E-2,0,0,3.3333333333333333E-2,4.0816326530612242E-2,4.3478260869565216E-2,9.6774193548387094E-2,2.5000000000000001E-2,4.1237113402061855E-2,0.04]
[null,null,null,null,"For the occasional application (less than 50%)",0,"0%",null,null,null,null,null,null,null,null,null,null,"For the occasional application (less than 50%)",0,0,0,0,0,0,0,0,0,0]
[null,null,null,null,"Never use",4.8543689320388345E-3,"<1%",null,null,null,null,null,null,null,null,null,null,"Never use",4.8543689320388345E-3,0,0,0,2.0408163265306121E-2,0,0,0,0,0.04]
[null,null,null,null,"Not sure",9.7087378640776691E-3,"1%",null,null,null,null,null,null,null,null,null,null,"Not sure",9.7087378640776691E-3,0,2.0833333333333332E-2,0,2.0408163265306121E-2,0,0,1.2500000000000001E-2,0,0.04]
[null,null,null,null,"My consultant makes this decision for me",0.1650485436893204,"17%",null,null,null,null,null,null,null,null,null,null,"My consultant makes this decision for me",0.1650485436893204,0.16,0.1875,0.13333333333333333,0.16326530612244897,0.13043478260869565,0.19354838709677419,0.1875,0.18556701030927836,0.04]
[]
[]
[]
[]
[null,null,"Focus - Segment",null,null,null,null,null,null,null,null,null,null," "]
[null,null,null,null,"Base",{"$f":"INDEX($S5:$AB5,1,$A$1)","v":206},null,null,null,null,null,null,null," "]
[null,null,null,null,"All the time – for every spray decision (100%)",0.56796116504854366,{"$f":"IF(AND(F19>0,F19<0.005),\"<1%\",TEXT(F19,\"0%\"))","v":"57%"},null,null,null,null,null,null," "]
[null,null,null,null,"For most but not all applications (more than 75%)",0.21844660194174756,{"$f":"IF(AND(F20>0,F20<0.005),\"<1%\",TEXT(F20,\"0%\"))","v":"22%"},null,null,null,null,null,null," "]
[null,null,null,null,"For some applications (50% - 75%)",3.3980582524271843E-2,"3%"]
[null,null,null,null,"For the occasional application (less than 50%)",0,"0%"]
[null,null,null,null,"Never use",4.8543689320388345E-3,"<1%"]
[null,null,null,null,"Not sure",9.7087378640776691E-3,"1%"]
[null,null,null,null,"My consultant makes this decision for me",0.1650485436893204,"17%"]

{"sheet":"Reasons for Decisions","index":30,"n_rows":29,"n_cols":19,"rows_kept":29,"cut":false,"hidden":false,"merged":[[28,2,29,18],[0,4,3,16],[0,17,1,19],[4,4,5,16],[6,2,7,9],[6,11,7,18]]}
[null,null,null,null,"2017 Grower Survey",null,null,null,null,null,null,null,null,null,null,null,null,"Data in Focus:"]
[]
[]
[]
[null,null,null,null,"Pesticide Management - Reasons for Decisions"]
[]
[null,null,"Reasons for not complying with the industry threshold",null,null,null,null,null,null,null,null,{"$f":"\"Results - \"&'Data - Reasons for Decisions'!F1&\" growers\"","v":"Results - All cotton growers"}]
[]
[]
[]
[]
[]
[]
[]
[]
[]
[]
[]
[]
[]
[]
[]
[]
[]
[]
[null,null,null,null,null,null,null,null,null,{"$f":"IF('HIDDEN - Backend'!Q17=1,\"Source: 2017 Grower Survey, CRDC\",\"\")","v":""},null,null,null,null,null,null,null,null,{"$f":"IF(AND('HIDDEN - Backend'!Q17=1,'HIDDEN - Backend'!Q3>1),\"Source: 2017 Grower Survey, CRDC\",\"\")","v":""}]
[null,null,{"$f":"\"Base: all cotton growers with <100% spraying in line with the industry threshold; n = \"&'Data - Reasons for Decisions'!F5&\".\"","v":"Base: all cotton growers with <100% spraying in line with the industry threshold; n = 51."},null,null,null,null,null,null,null,null,{"$f":"IF('Data - Reasons for Decisions'!A1=1,\"\",\"Base: \"&'Data - Reasons for Decisions'!F1&\" growers with <100% spraying in line with the industry threshold; n = \"&'Data - Reasons for Decisions'!F19&\".\")","v":""}]
[]
[null,null,"Question: What were your reasons for your spray decisions that were not in line with industry threshold?\n^Multiple responses accepted. Results may not add to 100%."]

{"sheet":"Data - Reasons for Decisions","index":31,"n_rows":27,"n_cols":28,"rows_kept":27,"cut":false,"hidden":true,"merged":[]}
[{"$f":"'HIDDEN - Backend'!Q3","v":1},null,null,null,"Segment",{"$f":"INDEX($S1:$AB1,1,$A$1)","v":"All cotton"},null,null,null,null,null,null,null," ",null,null,null,null,"All cotton","Central Queensland","Darling Downs","Macintyre - Balonne","Northern NSW","Macquarie","Southern NSW","Small farm","Medium farm","Large farm"]
[null,null,"CHARTS",null,null,null,null,null,null,null,null,null,null," ",null,null,"DATA"]
[null,null,null,null,null,null,null,null,null,null,null,null,null," "]
[null,null,"Focus - Overall",null,null,null,"Rank",null,null,"Re-order",null,"Label",null," ",null,null,null,null,"Overall","Central Queensland","Darling Downs","Macintyre - Balonne","Northern NSW","Macquarie","Southern NSW","Small (< 1,000 ha)","Medium (1,000 - 5,000 ha)","Large (> 5,000 ha)"]
[null,null,null,null,"Base",{"$f":"INDEX($S5:$AB5,1,1)","v":51},null,null,null,null,null,null,null," ",null,null,null,"Base:",51,4,7,9,13,7,11,15,25,11]
[null,null,null,null,"Timing with other operation",{"$f":"INDEX($S6:$AB6,1,1)","v":0.45097999999999999},{"$f":"RANK(F6,$F$6:$F$12)","v":1},null,1,{"$f":"INDEX($E$6:$G$13,MATCH($I6,$G$6:$G$13,0),1)","v":"Timing with other operation"},{"$f":"INDEX($E$6:$G$13,MATCH($I6,$G$6:$G$13,0),2)","v":0.45097999999999999},{"$f":"IF(AND(K6>0,K6<0.005),\"<1%\",TEXT(K6,\"0%\"))","v":"45%"},null," ",null,null,null,"Timing with other operation",0.45097999999999999,0.25,0.57142899999999996,0.33333299999999999,0.61538499999999996,0.42857099999999998,0.36363600000000001,0.6,0.32,0.54545500000000002]
[null,null,null,null,"Industry threshold is too low",0.196078,{"$f":"RANK(F7,$F$6:$F$12)+COUNTIF($G$6:G6,RANK(F7,$F$6:$F$12))","v":4},null,2,"Presence of other pests",0.352941,{"$f":"IF(AND(K7>0,K7<0.005),\"<1%\",TEXT(K7,\"0%\"))","v":"35%"},null," ",null,null,null,"Industry threshold is too low",0.196078,0,0.28571400000000002,0.111111,0.230769,0.42857099999999998,9.0909000000000004E-2,0.2,0.2,0.18181800000000001]
[null,null,null,null,"Industry threshold is too high",0.27450999999999998,{"$f":"RANK(F8,$F$6:$F$12)+COUNTIF($G$6:G7,RANK(F8,$F$6:$F$12))","v":3},null,3,"Industry threshold is too high",0.27450999999999998,"27%",null,null,null,null,null,"Industry threshold is too high",0.27450999999999998,0.25,0.14285700000000001,0.33333299999999999,0.15384600000000001,0.28571400000000002,0.45454499999999998,0.33333299999999999,0.24,0.272727]
[null,null,null,null,"Presence of other pests",0.352941,{"$f":"RANK(F9,$F$6:$F$12)+COUNTIF($G$6:G8,RANK(F9,$F$6:$F$12))","v":2},null,4,"Industry threshold is too low",0.196078,"20%",null,null,null,null,null,"Presence of other pests",0.352941,0.5,0.28571400000000002,0.66666700000000001,0.30769200000000002,0.42857099999999998,9.0909000000000004E-2,0.53333299999999995,0.28000000000000003,0.272727]
[null,null,null,null,"Pesticide cost",9.8039000000000001E-2,{"$f":"RANK(F10,$F$6:$F$12)+COUNTIF($G$6:G9,RANK(F10,$F$6:$F$12))","v":7},null,5,"Crop/conditions with less opportunity for compensation",0.17647099999999999,"18%",null,null,null,null,null,"Pesticide cost",9.8039000000000001E-2,0,0.28571400000000002,0.111111,7.6923000000000005E-2,0.14285700000000001,0,0.2,0,0.18181800000000001]
[null,null,null,null,"Crop/conditions with less opportunity for compensation",0.17647099999999999,{"$f":"RANK(F11,$F$6:$F$12)+COUNTIF($G$6:G10,RANK(F11,$F$6:$F$12))","v":5},null,6,"Crop/conditions with greater opportunity for compensation",0.17647099999999999,"18%",null,null,null,null,null,"Crop/conditions with less opportunity for compensation",0.17647099999999999,0,0.28571400000000002,0.111111,7.6923000000000005E-2,0.42857099999999998,0.18181800000000001,6.6667000000000004E-2,0.24,0.18181800000000001]
[null,null,null,null,"Crop/conditions with greater opportunity for compensation",0.17647099999999999,{"$f":"RANK(F12,$F$6:$F$12)+COUNTIF($G$6:G11,RANK(F12,$F$6:$F$12))","v":6},null,7,"Pesticide cost",9.8039000000000001E-2,"10%",null,null,null,null,null,"Crop/conditions with greater opportunity for compensation",0.17647099999999999,0.25,0.28571400000000002,0.33333299999999999,7.6923000000000005E-2,0.14285700000000001,9.0909000000000004E-2,0.2,0.2,9.0909000000000004E-2]
[null,null,null,null,"Other reason (please specify)",0.196078,8,null,8,"Other reason (please specify)",0.196078,"20%",null,null,null,null,null,"Other reason (please specify)",0.196078,0.25,0,0.111111,0.15384600000000001,0.28571400000000002,0.36363600000000001,0.13333300000000001,0.28000000000000003,9.0909000000000004E-2]
[]
[]
[]
[]
[null,null,"Focus - Segment",null,null,null,null,null,null,"Re-order to same order as above",null,"Label",null," "]
[null,null,null,null,"Base",{"$f":"INDEX($S5:$AB5,1,$A$1)","v":51},null,null,null,null,null,null,null," "]
[null,null,null,null,"Timing with other operation",0.45097999999999999,null,null,null,{"$f":"INDEX($E$20:$G$27,MATCH($J6,$E$20:$E$27,0),1)","v":"Timing with other operation"},{"$f":"INDEX($E$20:$G$27,MATCH($J6,$E$20:$E$27,0),2)","v":0.45097999999999999},{"$f":"IF(AND(K20>0,K20<0.005),\"<1%\",TEXT(K20,\"0%\"))","v":"45%"},null," "]
[null,null,null,null,"Industry threshold is too low",0.196078,null,null,null,"Presence of other pests",0.352941,"35%",null," "]
[null,null,null,null,"Industry threshold is too high",0.27450999999999998,null,null,null,"Industry threshold is too high",0.27450999999999998,"27%"]
[null,null,null,null,"Presence of other pests",0.352941,null,null,null,"Industry threshold is too low",0.196078,"20%"]
[null,null,null,null,"Pesticide cost",9.8039000000000001E-2,null,null,null,"Crop/conditions with less opportunity for compensation",0.17647099999999999,"18%"]
[null,null,null,null,"Crop/conditions with less opportunity for compensation",0.17647099999999999,null,null,null,"Crop/conditions with greater opportunity for compensation",0.17647099999999999,"18%"]
[null,null,null,null,"Crop/conditions with greater opportunity for compensation",0.17647099999999999,null,null,null,"Pesticide cost",9.8039000000000001E-2,"10%"]
[null,null,null,null,"Other reason (please specify)",0.196078,null,null,null,"Other reason (please specify)",0.196078,"20%"]

{"sheet":"Glyphosate and Insecticide","index":32,"n_rows":29,"n_cols":19,"rows_kept":29,"cut":false,"hidden":false,"merged":[[28,2,29,18],[0,4,3,16],[0,17,1,19],[4,4,5,16],[6,2,7,9],[6,11,7,18]]}
[null,null,null,null,"2017 Grower Survey",null,null,null,null,null,null,null,null,null,null,null,null,"Data in Focus:"]
[]
[]
[]
[null,null,null,null,"Pesticide Management - Glyphosate and Insecticide"]
[]
[null,null,"Of all IN CROP glyphosate applications, what proportion of the applications\nhad insecticide in the tank mix?",null,null,null,null,null,null,null,null,{"$f":"\"Results - \"&'Data - Glyphosate Insecticide'!F1&\" growers\"","v":"Results - All cotton growers"}]
[]
[]
[]
[]
[]
[]
[]
[]
[]
[]
[]
[]
[]
[]
[]
[]
[]
[]
[]
[null,null,{"$f":"\"Base: all cotton growers; n = \"&'Data - Glyphosate Insecticide'!F5&\".\"","v":"Base: all cotton growers; n = 204."},null,null,null,null,null,null,{"$f":"IF('HIDDEN - Backend'!Q17=1,\"Source: 2017 Grower Survey, CRDC\",\"\")","v":""},null,{"$f":"IF('Data - Glyphosate Insecticide'!A1=1,\"\",\"Base: \"&'Data - Glyphosate Insecticide'!F1&\" growers; n = \"&'Data - Glyphosate Insecticide'!F13&\".\")","v":""},null,null,null,null,null,null,{"$f":"IF(AND('HIDDEN - Backend'!Q17=1,'HIDDEN - Backend'!Q3>1),\"Source: 2017 Grower Survey, CRDC\",\"\")","v":""}]
[]
[null,null,"Question: Thinking about all IN CROP glyphosate applications, what proportion of your glyphosate applications DID have insecticide in the tank mix?"]

{"sheet":"Data - Glyphosate Insecticide","index":33,"n_rows":15,"n_cols":28,"rows_kept":15,"cut":false,"hidden":true,"merged":[]}
[{"$f":"'HIDDEN - Backend'!Q3","v":1},null,null,null,"Segment",{"$f":"INDEX($S1:$AB1,1,$A$1)","v":"All cotton"},null,null,null,null,null,null,null," ",null,null,null,null,"All cotton","Central Queensland","Darling Downs","Macintyre - Balonne","Northern NSW","Macquarie","Southern NSW","Small farm","Medium farm","Large farm"]
[null,null,"CHARTS",null,null,null,null,null,null,null,null,null,null," ",null,null,"DATA"]
[null,null,null,null,null,null,null,null,null,null,null,null,null," "]
[null,null,"Focus - Overall",null,null,null,null,null,null,null,null,null,null," ",null,null,null,null,"Overall","Central Queensland","Darling Downs","Macintyre - Balonne","Northern NSW","Macquarie","Southern NSW","Small (< 1,000 ha)","Medium (1,000 - 5,000 ha)","Large (> 5,000 ha)"]
[null,null,null,null,"Base",{"$f":"INDEX($S5:$AB5,1,1)","v":204},null,null,"Rotation:",null,null,null,null," ",null,null,null,"Base:",204,25,47,29,49,23,31,79,96,25]
[null,null,null,null,"Glyphosate + Insecticide",{"$f":"INDEX($S6:$AB6,1,1)","v":0.20088235000000002},{"$f":"IF(AND(F6>0,F6<0.005),\"<1%\",TEXT(F6,\"0%\"))","v":"20%"},null,{"$f":"IF(90-(180*F6)<0,360-ABS(90-(180*F6)),90-(180*F6))","v":53.841176999999995},null,null,null,null," ",null,null,null,"Glyphosate + Insecticide",0.20088235000000002,0.13239999999999999,0.15319148999999999,0.18689654999999999,0.19591837000000001,0.26260870000000003,0.30354839,0.16101266,0.2471875,0.1492]
[null,null,null,null,"Glyphosate only",0.79911765000000001,{"$f":"IF(AND(F7>0,F7<0.005),\"<1%\",TEXT(F7,\"0%\"))","v":"80%"},null,null,null,null,null,null," ",null,null,null,"Glyphosate only",0.79911765000000001,0.86760000000000004,0.84680851000000001,0.81310345000000006,0.80408162999999999,0.73739129999999997,0.69645161,0.83898733999999997,0.7528125,0.8508]
[]
[]
[]
[]
[null,null,"Focus - Segment",null,null,null,null,null,null,null,null,null,null," "]
[null,null,null,null,"Base",{"$f":"INDEX($S5:$AB5,1,$A$1)","v":204},null,null,"Rotation:",null,null,null,null," "]
[null,null,null,null,"Glyphosate + Insecticide",{"$f":"INDEX($S6:$AB6,1,$A$1)","v":0.20088235000000002},{"$f":"IF(AND(F14>0,F14<0.005),\"<1%\",TEXT(F14,\"0%\"))","v":"20%"},null,{"$f":"IF(90-(180*F14)<0,360-ABS(90-(180*F14)),90-(180*F14))","v":53.841176999999995},null,null,null,null," "]
[null,null,null,null,"Glyphosate only",{"$f":"INDEX($S7:$AB7,1,$A$1)","v":0.79911765000000001},{"$f":"IF(AND(F15>0,F15<0.005),\"<1%\",TEXT(F15,\"0%\"))","v":"80%"},null,null,null,null,null,null," "]

{"sheet":"Irrigation System","index":34,"n_rows":29,"n_cols":19,"rows_kept":29,"cut":false,"hidden":false,"merged":[[28,2,29,18],[0,4,3,16],[0,17,1,19],[4,4,5,16],[6,2,7,9],[6,11,7,18]]}
[null,null,null,null,"2017 Grower Survey",null,null,null,null,null,null,null,null,null,null,null,null,"Data in Focus:"]
[]
[]
[]
[null,null,null,null,"Irrigation Technologies - Irrigation System"]
[]
[null,null,"Type of irrigation system used",null,null,null,null,null,null,null,null,{"$f":"\"Results - \"&'Data - Irrigation System'!F1&\" growers\"","v":"Results - All cotton growers"}]
[]
[]
[]
[]
[]
[]
[]
[]
[]
[]
[]
[]
[]
[]
[]
[]
[]
[]
[]
[null,null,{"$f":"\"Base: all non-raingrown cotton growers; n = \"&'Data - Irrigation System'!F5&\".\"","v":"Base: all non-raingrown cotton growers; n = 181."},null,null,null,null,null,null,{"$f":"IF('HIDDEN - Backend'!Q17=1,\"Source: 2017 Grower Survey, CRDC\",\"\")","v":""},null,{"$f":"IF('Data - Irrigation System'!A1=1,\"\",\"Base: \"&'Data - Irrigation System'!F1&\" non-raingrown growers; n = \"&'Data - Irrigation System'!F16&\".\")","v":""},null,null,null,null,null,null,{"$f":"IF(AND('HIDDEN - Backend'!Q17=1,'HIDDEN - Backend'!Q3>1),\"Source: 2017 Grower Survey, CRDC\",\"\")","v":""}]
[]
[null,null,"Question: What type of irrigation system do you use?\n^Multiple responses accepted. Results may not add to 100%."]

{"sheet":"Data - Irrigation System","index":35,"n_rows":21,"n_cols":28,"rows_kept":21,"cut":false,"hidden":true,"merged":[]}
[{"$f":"'HIDDEN - Backend'!Q3","v":1},null,null,null,"Segment",{"$f":"INDEX($S1:$AB1,1,$A$1)","v":"All cotton"},null,null,null,null,null,null,null," ",null,null,null,null,"All cotton","Central Queensland","Darling Downs","Macintyre - Balonne","Northern NSW","Macquarie","Southern NSW","Small farm","Medium farm","Large farm"]
[null,null,"CHARTS",null,null,null,null,null,null,null,null,null,null," ",null,null,"DATA"]
[null,null,null,null,null,null,null,null,null,null,null,null,null," "]
[null,null,"Focus - Overall",null,null,null,"Rank",null,null,"Re-order",null,"Label",null," ",null,null,null,null,"Overall","Central Queensland","Darling Downs","Macintyre - Balonne","Northern NSW","Macquarie","Southern NSW","Small (< 1,000 ha)","Medium (1,000 - 5,000 ha)","Large (> 5,000 ha)"]
[null,null,null,null,"Base",{"$f":"INDEX($S5:$AB5,1,1)","v":181},null,null,null,null,null,null,null," ",null,null,null,"Base",181,23,38,26,41,22,31,74,83,21]
[null,null,null,null,"Pressurised irrigation system (centre pivot | lateral move)",{"$f":"INDEX($S6:$AB6,1,1)","v":0.21546961325966849},{"$f":"RANK(F6,$F$6:$F$9)","v":2},null,1,{"$f":"INDEX($E$6:$G$10,MATCH($I6,$G$6:$G$10,0),1)","v":"Furrow"},{"$f":"INDEX($E$6:$G$10,MATCH($I6,$G$6:$G$10,0),2)","v":0.91160220994475105},{"$f":"IF(AND(K6>0,K6<0.005),\"<1%\",TEXT(K6,\"0%\"))","v":"91%"},null," ",null,null,null,"Pressurised irrigation system (centre pivot | lateral move)",0.21546961325966849,8.6956521739130418E-2,0.42105263157894735,0.19230769230769229,0.21951219512195128,0.13636363636363635,0.12903225806451613,0.21621621621621631,0.19277108433734941,0.2857142857142857]
[null,null,null,null,"Bankless",0.14364640883977897,{"$f":"RANK(F7,$F$6:$F$9)+COUNTIF($G$6:G6,RANK(F7,$F$6:$F$9))","v":3},null,2,{"$f":"INDEX($E$6:$G$10,MATCH($I7,$G$6:$G$10,0),1)","v":"Pressurised irrigation system (centre pivot | lateral move)"},{"$f":"INDEX($E$6:$G$10,MATCH($I7,$G$6:$G$10,0),2)","v":0.21546961325966849},{"$f":"IF(AND(K7>0,K7<0.005),\"<1%\",TEXT(K7,\"0%\"))","v":"22%"},null," ",null,null,null,"Bankless",0.14364640883977897,0,2.6315789473684209E-2,0.19230769230769229,4.8780487804878044E-2,0.13636363636363638,0.4838709677419355,5.4054054054054057E-2,0.2048192771084337,0.19047619047619049]
[null,null,null,null,"Furrow",0.91160220994475105,{"$f":"RANK(F8,$F$6:$F$9)+COUNTIF($G$6:G7,RANK(F8,$F$6:$F$9))","v":1},null,3,{"$f":"INDEX($E$6:$G$10,MATCH($I8,$G$6:$G$10,0),1)","v":"Bankless"},{"$f":"INDEX($E$6:$G$10,MATCH($I8,$G$6:$G$10,0),2)","v":0.14364640883977897},"14%",null,null,null,null,null,"Furrow",0.91160220994475105,0.9130434782608694,0.94736842105263164,0.96153846153846145,0.95121951219512202,0.90909090909090906,0.77419354838709686,0.90540540540540526,0.9156626506024097,0.95238095238095222]
[null,null,null,null,"Drip",1.6574585635359119E-2,{"$f":"RANK(F9,$F$6:$F$9)+COUNTIF($G$6:G8,RANK(F9,$F$6:$F$9))","v":4},null,4,{"$f":"INDEX($E$6:$G$10,MATCH($I9,$G$6:$G$10,0),1)","v":"Drip"},{"$f":"INDEX($E$6:$G$10,MATCH($I9,$G$6:$G$10,0),2)","v":1.6574585635359119E-2},"2%",null,null,null,null,null,"Drip",1.6574585635359119E-2,0,0,0,0,9.0909090909090898E-2,3.2258064516129045E-2,0,3.614457831325301E-2,0]
[null,null,null,null,"Don’t know",1.104972375690608E-2,5,null,5,{"$f":"INDEX($E$6:$G$10,MATCH($I10,$G$6:$G$10,0),1)","v":"Don’t know"},{"$f":"INDEX($E$6:$G$10,MATCH($I10,$G$6:$G$10,0),2)","v":1.104972375690608E-2},"1%",null,null,null,null,null,"Don’t know",1.104972375690608E-2,4.3478260869565223E-2,0,0,0,0,3.2258064516129045E-2,2.7027027027027029E-2,0,0]
[]
[]
[]
[]
[null,null,"Focus - Segment",null,null,null,null,null,null,"Re-order to same order as above",null,"Label",null," "]
[null,null,null,null,"Base",{"$f":"INDEX($S5:$AB5,1,$A$1)","v":181},null,null,null,null,null,null,null," "]
[null,null,null,null,"Pressurised irrigation system (centre pivot | lateral move)",0.21546961325966849,null,null,null,{"$f":"INDEX($E$17:$G$21,MATCH($J6,$E$17:$E$21,0),1)","v":"Furrow"},{"$f":"INDEX($E$17:$G$21,MATCH($J6,$E$17:$E$21,0),2)","v":0.91160220994475105},{"$f":"IF(AND(K17>0,K17<0.005),\"<1%\",TEXT(K17,\"0%\"))","v":"91%"},null," "]
[null,null,null,null,"Bankless",0.14364640883977897,null,null,null,{"$f":"INDEX($E$17:$G$21,MATCH($J7,$E$17:$E$21,0),1)","v":"Pressurised irrigation system (centre pivot | lateral move)"},{"$f":"INDEX($E$17:$G$21,MATCH($J7,$E$17:$E$21,0),2)","v":0.21546961325966849},"22%",null," "]
[null,null,null,null,"Furrow",0.91160220994475105,null,null,null,{"$f":"INDEX($E$17:$G$21,MATCH($J8,$E$17:$E$21,0),1)","v":"Bankless"},{"$f":"INDEX($E$17:$G$21,MATCH($J8,$E$17:$E$21,0),2)","v":0.14364640883977897},"14%"]
[null,null,null,null,"Drip",1.6574585635359119E-2,null,null,null,{"$f":"INDEX($E$17:$G$21,MATCH($J9,$E$17:$E$21,0),1)","v":"Drip"},{"$f":"INDEX($E$17:$G$21,MATCH($J9,$E$17:$E$21,0),2)","v":1.6574585635359119E-2},"2%"]
[null,null,null,null,"Don’t know",1.104972375690608E-2,null,null,null,{"$f":"INDEX($E$17:$G$21,MATCH($J10,$E$17:$E$21,0),1)","v":"Don’t know"},{"$f":"INDEX($E$17:$G$21,MATCH($J10,$E$17:$E$21,0),2)","v":1.104972375690608E-2},"1%"]

{"sheet":"Level of Automation","index":36,"n_rows":29,"n_cols":19,"rows_kept":29,"cut":false,"hidden":false,"merged":[[28,2,29,18],[0,4,3,16],[0,17,1,19],[4,4,5,16],[6,2,7,9],[6,11,7,18]]}
[null,null,null,null,"2017 Grower Survey",null,null,null,null,null,null,null,null,null,null,null,null,"Data in Focus:"]
[]
[]
[]
[null,null,null,null,"Irrigation Technologies - Level of Automation"]
[]
[null,null,"Level of automated irrigation management on-farm",null,null,null,null,null,null,null,null,{"$f":"\"Results - \"&'Data - Level of Automation'!F1&\" growers\"","v":"Results - All cotton growers"}]
[]
[]
[]
[]
[]
[]
[]
[]
[]
[]
[]
[]
[]
[]
[]
[]
[]
[]
[]
[null,null,{"$f":"\"Base: all non-raingrown cotton growers; n = \"&'Data - Level of Automation'!F5&\".\"","v":"Base: all non-raingrown cotton growers; n = 181."},null,null,null,null,null,null,{"$f":"IF('HIDDEN - Backend'!Q17=1,\"Source: 2017 Grower Survey, CRDC\",\"\")","v":""},null,{"$f":"IF('Data - Level of Automation'!A1=1,\"\",\"Base: \"&'Data - Level of Automation'!F1&\" non-raingrown growers; n = \"&'Data - Level of Automation'!F19&\".\")","v":""},null,null,null,null,null,null,{"$f":"IF(AND('HIDDEN - Backend'!Q17=1,'HIDDEN - Backend'!Q3>1),\"Source: 2017 Grower Survey, CRDC\",\"\")","v":""}]
[]
[null,null,"Question: Which of the following statements best describes the level of automation for irrigation management that you have implemented on farm?\n^Multiple responses accepted. Results may not add to 100%."]

{"sheet":"Data - Level of Automation","index":37,"n_rows":27,"n_cols":28,"rows_kept":27,"cut":false,"hidden":true,"merged":[]}
[{"$f":"'HIDDEN - Backend'!Q3","v":1},null,null,null,"Segment",{"$f":"INDEX($S1:$AB1,1,$A$1)","v":"All cotton"},null,null,null,null,null,null,null," ",null,null,null,null,"All cotton","Central Queensland","Darling Downs","Macintyre - Balonne","Northern NSW","Macquarie","Southern NSW","Small farm","Medium farm","Large farm"]
[null,null,"CHARTS",null,null,null,null,null,null,null,null,null,null," ",null,null,"DATA"]
[null,null,null,null,null,null,null,null,null,null,null,null,null," "]
[null,null,"Focus - Overall",null,null,null,"Rank",null,null,"Re-order",null,"Label",null," ",null,null,null,null,"Overall","Central Queensland","Darling Downs","Macintyre - Balonne","Northern NSW","Macquarie","Southern NSW","Small (< 1,000 ha)","Medium (1,000 - 5,000 ha)","Large (> 5,000 ha)"]
[null,null,null,null,"Base",{"$f":"INDEX($S5:$AB5,1,1)","v":181},null,null,null,null,null,null,null," ",null,null,null,"Base:",181,23,38,26,41,22,31,74,83,21]
[null,null,null,null,"I use depth sensors in channels to measure water levels remotely",{"$f":"INDEX($S6:$AB6,1,1)","v":8.8397790055248643E-2},{"$f":"RANK(F6,$F$6:$F$11)","v":4},null,1,{"$f":"INDEX($E$6:$G$13,MATCH($I6,$G$6:$G$13,0),1)","v":"I use automation on farm but not for irrigation management"},{"$f":"INDEX($E$6:$G$13,MATCH($I6,$G$6:$G$13,0),2)","v":0.1988950276243093},{"$f":"IF(AND(K6>0,K6<0.005),\"<1%\",TEXT(K6,\"0%\"))","v":"20%"},null," ",null,null,null,"I use depth sensors in channels to measure water levels remotely",8.8397790055248643E-2,8.6956521739130446E-2,5.2631578947368425E-2,0.11538461538461536,9.7560975609756115E-2,4.5454545454545449E-2,0.12903225806451615,9.4594594594594586E-2,3.6144578313253024E-2,0.23809523809523808]
[null,null,null,null,"I can release gates remotely (via my phone, laptop, desktop)",2.7624309392265203E-2,{"$f":"RANK(F7,$F$6:$F$11)+COUNTIF($G$6:G6,RANK(F7,$F$6:$F$11))","v":6},null,2,"I have sensors (e.g. soil moisture probes) plus software and hardware to remotely irrigate",0.17127071823204415,{"$f":"IF(AND(K7>0,K7<0.005),\"<1%\",TEXT(K7,\"0%\"))","v":"17%"},null," ",null,null,null,"I can release gates remotely (via my phone, laptop, desktop)",2.7624309392265203E-2,0,0,7.6923076923076927E-2,4.8780487804878044E-2,0,3.2258064516129038E-2,2.7027027027027029E-2,0,0.14285714285714288]
[null,null,null,null,"I can turn pumps on and off remotely",9.3922651933701681E-2,{"$f":"RANK(F8,$F$6:$F$11)+COUNTIF($G$6:G7,RANK(F8,$F$6:$F$11))","v":3},null,3,"I can turn pumps on and off remotely",9.3922651933701681E-2,"9%",null,null,null,null,null,"I can turn pumps on and off remotely",9.3922651933701681E-2,4.3478260869565209E-2,0.10526315789473689,7.6923076923076927E-2,7.3170731707317083E-2,0.13636363636363635,0.12903225806451613,4.0540540540540543E-2,9.6385542168674676E-2,0.2857142857142857]
[null,null,null,null,"I can apply water remotely to my field",7.1823204419889458E-2,{"$f":"RANK(F9,$F$6:$F$11)+COUNTIF($G$6:G8,RANK(F9,$F$6:$F$11))","v":5},null,4,"I use depth sensors in channels to measure water levels remotely",8.8397790055248643E-2,"9%",null,null,null,null,null,"I can apply water remotely to my field",7.1823204419889458E-2,4.3478260869565209E-2,2.6315789473684223E-2,0.11538461538461536,2.4390243902439022E-2,0.13636363636363635,0.12903225806451613,2.7027027027027029E-2,8.4337349397590355E-2,0.19047619047619049]
[null,null,null,null,"I have sensors (e.g. soil moisture probes) plus software and hardware to remotely irrigate",0.17127071823204415,{"$f":"RANK(F10,$F$6:$F$11)+COUNTIF($G$6:G9,RANK(F10,$F$6:$F$11))","v":2},null,5,"I can apply water remotely to my field",7.1823204419889458E-2,"7%",null,null,null,null,null,"I have sensors (e.g. soil moisture probes) plus software and hardware to remotely irrigate",0.17127071823204415,8.6956521739130446E-2,0.21052631578947378,0.23076923076923087,9.7560975609756115E-2,9.0909090909090898E-2,0.29032258064516131,0.12162162162162173,0.16867469879518077,0.38095238095238093]
[null,null,null,null,"I use automation on farm but not for irrigation management",0.1988950276243093,{"$f":"RANK(F11,$F$6:$F$11)+COUNTIF($G$6:G10,RANK(F11,$F$6:$F$11))","v":1},null,6,"I can release gates remotely (via my phone, laptop, desktop)",2.7624309392265203E-2,"3%",null,null,null,null,null,"I use automation on farm but not for irrigation management",0.1988950276243093,0.17391304347826086,0.23684210526315794,0.23076923076923073,0.29268292682926828,4.5454545454545449E-2,0.12903225806451618,0.20270270270270274,0.19277108433734938,0.23809523809523808]
[null,null,null,null,"I don’t use automation tools but am considering solutions for my farm",0.3535911602209944,7,null,7,"I don’t use automation tools but am considering solutions for my farm",0.3535911602209944,"35%",null,null,null,null,null,"I don’t use automation tools but am considering solutions for my farm",0.3535911602209944,0.17391304347826084,0.36842105263157893,0.26923076923076927,0.31707317073170727,0.5,0.48387096774193561,0.37837837837837851,0.37349397590361455,0.19047619047619047]
[null,null,null,null,"I don’t use any automation tools for irrigation management and have no plans to implement any",0.1933701657458563,8,null,8,"I don’t use any automation tools for irrigation management and have no plans to implement any",0.1933701657458563,"19%",null,null,null,null,null,"I don’t use any automation tools for irrigation management and have no plans to implement any",0.1933701657458563,0.47826086956521735,0.13157894736842105,0.26923076923076922,0.17073170731707318,0.22727272727272732,0,0.20270270270270274,0.21686746987951816,4.7619047619047616E-2]
[]
[]
[]
[]
[null,null,"Focus - Segment",null,null,null,null,null,null,"Re-order to same order as above",null,"Label",null," "]
[null,null,null,null,"Base",{"$f":"INDEX($S5:$AB5,1,$A$1)","v":181},null,null,null,null,null,null,null," "]
[null,null,null,null,"I use depth sensors in channels to measure water levels remotely",8.8397790055248643E-2,null,null,null,{"$f":"INDEX($E$20:$G$27,MATCH($J6,$E$20:$E$27,0),1)","v":"I use automation on farm but not for irrigation management"},{"$f":"INDEX($E$20:$G$27,MATCH($J6,$E$20:$E$27,0),2)","v":0.1988950276243093},{"$f":"IF(AND(K20>0,K20<0.005),\"<1%\",TEXT(K20,\"0%\"))","v":"20%"},null," "]
[null,null,null,null,"I can release gates remotely (via my phone, laptop, desktop)",2.7624309392265203E-2,null,null,null,"I have sensors (e.g. soil moisture probes) plus software and hardware to remotely irrigate",0.17127071823204415,"17%",null," "]
[null,null,null,null,"I can turn pumps on and off remotely",9.3922651933701681E-2,null,null,null,"I can turn pumps on and off remotely",9.3922651933701681E-2,"9%"]
[null,null,null,null,"I can apply water remotely to my field",7.1823204419889458E-2,null,null,null,"I use depth sensors in channels to measure water levels remotely",8.8397790055248643E-2,"9%"]
[null,null,null,null,"I have sensors (e.g. soil moisture probes) plus software and hardware to remotely irrigate",0.17127071823204415,null,null,null,"I can apply water remotely to my field",7.1823204419889458E-2,"7%"]
[null,null,null,null,"I use automation on farm but not for irrigation management",0.1988950276243093,null,null,null,"I can release gates remotely (via my phone, laptop, desktop)",2.7624309392265203E-2,"3%"]
[null,null,null,null,"I don’t use automation tools but am considering solutions for my farm",0.3535911602209944,null,null,null,"I don’t use automation tools but am considering solutions for my farm",0.3535911602209944,"35%"]
[null,null,null,null,"I don’t use any automation tools for irrigation management and have no plans to implement any",0.1933701657458563,null,null,null,"I don’t use any automation tools for irrigation management and have no plans to implement any",0.1933701657458563,"19%"]

{"sheet":"Minimise Losses","index":38,"n_rows":29,"n_cols":19,"rows_kept":29,"cut":false,"hidden":false,"merged":[[28,2,29,18],[0,4,3,16],[0,17,1,19],[4,4,5,16],[6,2,7,9],[6,11,7,18]]}
[null,null,null,null,"2017 Grower Survey",null,null,null,null,null,null,null,null,null,null,null,null,"Data in Focus:"]
[]
[]
[]
[null,null,null,null,"Irrigation Technologies - Practices to Minimise Losses"]
[]
[null,null,"Practices in use to minimise evaporation and drainage",null,null,null,null,null,null,null,null,{"$f":"\"Results - \"&'Data - Minimise Losses'!F1&\" growers\"","v":"Results - All cotton growers"}]
[]
[]
[]
[]
[]
[]
[]
[]
[]
[]
[]
[]
[]
[]
[]
[]
[]
[]
[]
[null,null,{"$f":"\"Base: all non-raingrown cotton growers; n = \"&'Data - Minimise Losses'!F5&\".\"","v":"Base: all non-raingrown cotton growers; n = 181."},null,null,null,null,null,null,{"$f":"IF('HIDDEN - Backend'!Q17=1,\"Source: 2017 Grower Survey, CRDC\",\"\")","v":""},null,{"$f":"IF('Data - Minimise Losses'!A1=1,\"\",\"Base: \"&'Data - Minimise Losses'!F1&\" non-raingrown growers; n = \"&'Data - Minimise Losses'!F19&\".\")","v":""},null,null,null,null,null,null,{"$f":"IF(AND('HIDDEN - Backend'!Q17=1,'HIDDEN - Backend'!Q3>1),\"Source: 2017 Grower Survey, CRDC\",\"\")","v":""}]
[]
[null,null,"Question: Do you currently use any of the following practices to minimise losses to evaporation & drainage?\n^Multiple responses accepted. Results may not add to 100%."]

{"sheet":"Data - Minimise Losses","index":39,"n_rows":27,"n_cols":28,"rows_kept":27,"cut":false,"hidden":true,"merged":[]}
[{"$f":"'HIDDEN - Backend'!Q3","v":1},null,null,null,"Segment",{"$f":"INDEX($S1:$AB1,1,$A$1)","v":"All cotton"},null,null,null,null,null,null,null," ",null,null,null,null,"All cotton","Central Queensland","Darling Downs","Macintyre - Balonne","Northern NSW","Macquarie","Southern NSW","Small farm","Medium farm","Large farm"]
[null,null,"CHARTS",null,null,null,null,null,null,null,null,null,null," ",null,null,"DATA"]
[null,null,null,null,null,null,null,null,null,null,null,null,null," "]
[null,null,"Focus - Overall",null,null,null,"Rank",null,null,"Re-order",null,"Label",null," ",null,null,null,null,"Overall","Central Queensland","Darling Downs","Macintyre - Balonne","Northern NSW","Macquarie","Southern NSW","Small (< 1,000 ha)","Medium (1,000 - 5,000 ha)","Large (> 5,000 ha)"]
[null,null,null,null,"Base",{"$f":"INDEX($S5:$AB5,1,1)","v":181},null,null,null,null,null,null,null," ",null,null,null,"Base:",181,23,38,26,41,22,31,74,83,21]
[null,null,null,null,"I apply evaporation mitigating polymers",{"$f":"INDEX($S6:$AB6,1,1)","v":1.104972375690608E-2},{"$f":"RANK(F6,$F$6:$F$11)","v":5},null,1,{"$f":"INDEX($E$6:$G$13,MATCH($I6,$G$6:$G$13,0),1)","v":"I have the ability to transfer water"},{"$f":"INDEX($E$6:$G$13,MATCH($I6,$G$6:$G$13,0),2)","v":0.69060773480662985},{"$f":"IF(AND(K6>0,K6<0.005),\"<1%\",TEXT(K6,\"0%\"))","v":"69%"},null," ",null,null,null,"I apply evaporation mitigating polymers",1.104972375690608E-2,4.3478260869565209E-2,0,0,2.4390243902439029E-2,0,0,1.3513513513513514E-2,1.204819277108434E-2,0]
[null,null,null,null,"I use covers over storages",5.5248618784530402E-3,{"$f":"RANK(F7,$F$6:$F$11)+COUNTIF($G$6:G6,RANK(F7,$F$6:$F$11))","v":6},null,2,"I have undertaken earthworks to raise height/divide storages",0.45303867403314946,{"$f":"IF(AND(K7>0,K7<0.005),\"<1%\",TEXT(K7,\"0%\"))","v":"45%"},null," ",null,null,null,"I use covers over storages",5.5248618784530402E-3,0,0,0,0,0,3.2258064516129045E-2,1.3513513513513521E-2,0,0]
[null,null,null,null,"I have undertaken earthworks to raise height/divide storages",0.45303867403314946,{"$f":"RANK(F8,$F$6:$F$11)+COUNTIF($G$6:G7,RANK(F8,$F$6:$F$11))","v":2},null,3,"I use software to track water use",0.34806629834254132,"35%",null,null,null,null,null,"I have undertaken earthworks to raise height/divide storages",0.45303867403314946,0.34782608695652173,0.15789473684210528,0.76923076923076938,0.65853658536585347,0.36363636363636365,0.41935483870967744,0.35135135135135143,0.49397590361445787,0.71428571428571441]
[null,null,null,null,"I have lined storages and/or channels with clays or plastics",0.16574585635359118,{"$f":"RANK(F9,$F$6:$F$11)+COUNTIF($G$6:G8,RANK(F9,$F$6:$F$11))","v":4},null,4,"I have lined storages and/or channels with clays or plastics",0.16574585635359118,"17%",null,null,null,null,null,"I have lined storages and/or channels with clays or plastics",0.16574585635359118,8.6956521739130418E-2,7.8947368421052627E-2,0.15384615384615385,0.14634146341463417,0.31818181818181823,0.25806451612903236,6.7567567567567557E-2,0.24096385542168675,0.23809523809523808]
[null,null,null,null,"I use software to track water use",0.34806629834254132,{"$f":"RANK(F10,$F$6:$F$11)+COUNTIF($G$6:G9,RANK(F10,$F$6:$F$11))","v":3},null,5,"I apply evaporation mitigating polymers",1.104972375690608E-2,"1%",null,null,null,null,null,"I use software to track water use",0.34806629834254132,0.26086956521739135,0.23684210526315794,0.5,0.4390243902439025,0.31818181818181818,0.32258064516129042,0.22972972972972977,0.39759036144578319,0.61904761904761907]
[null,null,null,null,"I have the ability to transfer water",0.69060773480662985,{"$f":"RANK(F11,$F$6:$F$11)+COUNTIF($G$6:G10,RANK(F11,$F$6:$F$11))","v":1},null,6,"I use covers over storages",5.5248618784530402E-3,"1%",null,null,null,null,null,"I have the ability to transfer water",0.69060773480662985,0.60869565217391308,0.68421052631578927,0.76923076923076927,0.7804878048780487,0.63636363636363635,0.61290322580645162,0.62162162162162171,0.71084337349397575,0.90476190476190466]
[null,null,null,null,"Other practices (please tell us what you do)",0.17679558011049729,7,null,7,"Other practices (please tell us what you do)",0.17679558011049729,"18%",null,null,null,null,null,"Other practices (please tell us what you do)",0.17679558011049729,0.26086956521739135,0.18421052631578952,0.15384615384615385,0.17073170731707318,4.5454545454545463E-2,0.22580645161290328,0.1621621621621622,0.20481927710843373,0.14285714285714288]
[null,null,null,null,"I don’t do anything",0.14364640883977908,8,null,8,"I don’t do anything",0.14364640883977908,"14%",null,null,null,null,null,"I don’t do anything",0.14364640883977908,0.21739130434782608,0.21052631578947373,0,7.3170731707317097E-2,0.18181818181818182,0.19354838709677422,0.21621621621621623,9.638554216867469E-2,0]
[]
[]
[]
[]
[null,null,"Focus - Segment",null,null,null,null,null,null,"Re-order to same order as above",null,"Label",null," "]
[null,null,null,null,"Base",{"$f":"INDEX($S5:$AB5,1,$A$1)","v":181},null,null,null,null,null,null,null," "]
[null,null,null,null,"I apply evaporation mitigating polymers",1.104972375690608E-2,null,null,null,{"$f":"INDEX($E$20:$G$27,MATCH($J6,$E$20:$E$27,0),1)","v":"I have the ability to transfer water"},{"$f":"INDEX($E$20:$G$27,MATCH($J6,$E$20:$E$27,0),2)","v":0.69060773480662985},{"$f":"IF(AND(K20>0,K20<0.005),\"<1%\",TEXT(K20,\"0%\"))","v":"69%"},null," "]
[null,null,null,null,"I use covers over storages",5.5248618784530402E-3,null,null,null,"I have undertaken earthworks to raise height/divide storages",0.45303867403314946,"45%",null," "]
[null,null,null,null,"I have undertaken earthworks to raise height/divide storages",0.45303867403314946,null,null,null,"I use software to track water use",0.34806629834254132,"35%"]
[null,null,null,null,"I have lined storages and/or channels with clays or plastics",0.16574585635359118,null,null,null,"I have lined storages and/or channels with clays or plastics",0.16574585635359118,"17%"]
[null,null,null,null,"I use software to track water use",0.34806629834254132,null,null,null,"I apply evaporation mitigating polymers",1.104972375690608E-2,"1%"]
[null,null,null,null,"I have the ability to transfer water",0.69060773480662985,null,null,null,"I use covers over storages",5.5248618784530402E-3,"1%"]
[null,null,null,null,"Other practices (please tell us what you do)",0.17679558011049729,null,null,null,"Other practices (please tell us what you do)",0.17679558011049729,"18%"]
[null,null,null,null,"I don’t do anything",0.14364640883977908,null,null,null,"I don’t do anything",0.14364640883977908,"14%"]

{"sheet":"Riparian Area of Farm","index":40,"n_rows":29,"n_cols":19,"rows_kept":29,"cut":false,"hidden":false,"merged":[[28,2,29,18],[0,4,3,16],[0,17,1,19],[4,4,5,16],[6,2,7,9],[6,11,7,18]]}
[null,null,null,null,"2017 Grower Survey",null,null,null,null,null,null,null,null,null,null,null,null,"Data in Focus:"]
[]
[]
[]
[null,null,null,null,"Natural Resource Management - Riparian Area of Farm"]
[]
[null,null,"Average riparian size",null,null,null,null,null,null,null,null,{"$f":"\"Results - \"&'Data - Riparian Area of Farm'!F1&\" growers\"","v":"Results - All cotton growers"}]
[]
[]
[]
[]
[]
[]
[]
[]
[]
[]
[]
[]
[]
[]
[]
[]
[]
[]
[null,null,null,null,null,null,null,null,null,{"$f":"IF('HIDDEN - Backend'!Q17=1,\"Source: 2017 Grower Survey, CRDC\",\"\")","v":""},null,null,null,null,null,null,null,null,{"$f":"IF(AND('HIDDEN - Backend'!Q17=1,'HIDDEN - Backend'!Q3>1),\"Source: 2017 Grower Survey, CRDC\",\"\")","v":""}]
[null,null,{"$f":"\"Base: all cotton growers with a riparian area on their farm; n = \"&'Data - Riparian Area of Farm'!F5&\".\"","v":"Base: all cotton growers with a riparian area on their farm; n = 157."},null,null,null,null,null,null,null,null,{"$f":"IF('Data - Riparian Area of Farm'!A1=1,\"\",\"Base: \"&'Data - Riparian Area of Farm'!F1&\" growers with a riparian area on their farm; n = \"&'Data - Riparian Area of Farm'!F13&\".\")","v":""}]
[]
[null,null,"Question: Approximately how long and wide is the riparian area on your property? Please answer in kilometres e.g. 0.2km, 2.75km."]

{"sheet":"Data - Riparian Area of Farm","index":41,"n_rows":15,"n_cols":28,"rows_kept":15,"cut":false,"hidden":true,"merged":[]}
[{"$f":"'HIDDEN - Backend'!Q3","v":1},null,null,null,"Segment",{"$f":"INDEX($S1:$AB1,1,$A$1)","v":"All cotton"},null,null,null,null,null,null,null," ",null,null,null,null,"All cotton","Central Queensland","Darling Downs","Macintyre - Balonne","Northern NSW","Macquarie","Southern NSW","Small farm","Medium farm","Large farm"]
[null,null,"CHARTS",null,null,null,null,null,null,null,null,null,null," ",null,null,"DATA"]
[null,null,null,null,null,null,null,null,null,null,null,null,null," "]
[null,null,"Focus - Overall",null,null,null,null,null,null,null,null,null,null," ",null,null,null,null,"Overall","Central Queensland","Darling Downs","Macintyre - Balonne","Northern NSW","Macquarie","Southern NSW","Small (< 1,000 ha)","Medium (1,000 - 5,000 ha)","Large (> 5,000 ha)"]
[null,null,null,null,"Base",{"$f":"INDEX($S5:$AB5,1,1)","v":157},null,null,null,null,null,null,null," ",null,null,null,"Base:",157,20,32,25,42,18,20,59,77,19]
[null,null,null,null,"Riparian length (best estimate)",{"$f":"INDEX($S6:$AB6,1,1)","v":7.65},{"$f":"IF(F5=0,\"n/a\",TEXT(F6,\"0.00\")&\"\nkm\")","v":"7.65\nkm"},null,null,null,null,null,null," ",null,null,null,"Riparian length (best estimate)",7.65,4.05,3.76,11.64,8.01,7.01,12.31,3.42,8.32,17.97]
[null,null,null,null,"Average width (best estimate)",174,{"$f":"IF(F5=0,\"n/a\",TEXT(F7,\"0\")&\"\nm\")","v":"174\nm"},null,null,null,null,null,null," ",null,null,null,"Average width (best estimate)",174,204,187,157,161,136,210,154,186,164]
[]
[]
[]
[]
[null,null,"Focus - Segment",null,null,null,null,null,null,null,null,null,null," "]
[null,null,null,null,"Base",{"$f":"INDEX($S5:$AB5,1,$A$1)","v":157},null,null,null,null,null,null,null," "]
[null,null,null,null,"Riparian length (best estimate)",{"$f":"INDEX($S6:$AB6,1,$A$1)","v":7.65},{"$f":"IF(F13=0,\"n/a\",TEXT(F14,\"0.00\")&\"\nkm\")","v":"7.65\nkm"},null,null,null,null,null,null," "]
[null,null,null,null,"Average width (best estimate)",{"$f":"INDEX($S7:$AB7,1,$A$1)","v":174},{"$f":"IF(F13=0,\"n/a\",TEXT(F15,\"0\")&\"\nm\")","v":"174\nm"},null,null,null,null,null,null," "]

{"sheet":"Ecosystem Services","index":42,"n_rows":29,"n_cols":19,"rows_kept":29,"cut":false,"hidden":false,"merged":[[0,4,3,16],[0,17,1,19],[4,4,5,16],[28,2,29,18],[6,2,7,18]]}
[null,null,null,null,"2017 Grower Survey"]
[]
[]
[]
[null,null,null,null,"Natural Resource Management - Ecosystem Services"]
[]
[null,null,"Importance of ecosystem services provided by riparian areas on their farms"]
[]
[]
[]
[]
[]
[]
[]
[]
[]
[]
[]
[]
[]
[]
[]
[]
[]
[]
[]
[null,null,{"$f":"\"Base: all cotton growers; n = \"&MIN('Data - Ecosystem Services'!F5,'Data - Ecosystem Services'!F14,'Data - Ecosystem Services'!F23,'Data - Ecosystem Services'!F32,'Data - Ecosystem Services'!F41,'Data - Ecosystem Services'!F50,'Data - Ecosystem Services'!F59)&\".\"","v":"Base: all cotton growers; n = 201."},null,null,null,null,null,null,null,null,null,null,null,null,null,null,null,{"$f":"IF('HIDDEN - Backend'!Q17=1,\"Source: 2017 Grower Survey, CRDC\",\"\")","v":""}]
[]
[null,null,"Question: How important are the following ecosystem services provided by riparian areas on your farm?"]

{"sheet":"Data - Ecosystem Services","index":43,"n_rows":78,"n_cols":28,"rows_kept":78,"cut":false,"hidden":true,"merged":[]}
[{"$f":"'HIDDEN - Backend'!Q3","v":1},null,null,null,"Segment",{"$f":"INDEX($S1:$AB1,1,$A$1)","v":"All cotton"},null,null,null,null,null,null,null," ",null,null,null,null,"All cotton","Central Queensland","Darling Downs","Macintyre - Balonne","Northern NSW","Macquarie","Southern NSW","Small farm","Medium farm","Large farm"]
[null,null,"CHARTS",null,null,null,null,null,null,null,null,null,null," ",null,null,"DATA"]
[null,null,null,null,null,null,null,null,null,null,null,null,null," "]
[null,null,"Focus - Overall",null,null,null,"Label",null,null,"Negative","Positive","Nett","Rank"," ",null,null,null,null,"Overall","Central Queensland","Darling Downs","Macintyre - Balonne","Northern NSW","Macquarie","Southern NSW","Small (< 1,000 ha)","Medium (1,000 - 5,000 ha)","Large (> 5,000 ha)"]
[null,null,null,null,"Base",{"$f":"INDEX($S5:$AB5,1,1)","v":202},null,null,null,null,null,null,null," ",null,null,null,"Base:",202]
[null,null,"Natural pest management",null,"Not important at all",{"$f":"INDEX($S6:$AB6,1,1)","v":4.4554455445544552E-2},{"$f":"IF(AND(F6>0,F6<0.005),\"<1%\",TEXT(F6,\"0%\"))","v":"4%"},null,{"$f":"C6","v":"Natural pest management"},{"$f":"F6+F7","v":0.17326732673267325},{"$f":"F8+F9","v":0.56930693069306937},{"$f":"TEXT(ROUND(K6,2)-ROUND(J6,2),\"+##0%;-##0%\")","v":"+40%"},3," ",null,"Natural pest management",null,"Not important at all",4.4554455445544552E-2]
[null,null,null,null,"Not that important",0.12871287128712872,{"$f":"IF(AND(F7>0,F7<0.005),\"<1%\",TEXT(F7,\"0%\"))","v":"13%"},null,null,null,null,null,null," ",null,null,null,"Not that important",0.12871287128712872]
[null,null,null,null,"Somewhat important",0.30693069306930693,"31%",null,null,null,null,null,null,null,null,null,null,"Somewhat important",0.30693069306930693]
[null,null,null,null,"Extremely important",0.26237623762376239,"26%",null,null,null,null,null,null,null,null,null,null,"Extremely important",0.26237623762376239]
[null,null,null,null,"Not sure",0.25742574257425743,"26%",null,null,null,null,null,null,null,null,null,null,"Not sure",0.25742574257425743]
[]
[null,null,null,null,null,null,null,null,null,null,null,null,null," "]
[null,null,null,null,null,null,null,null,null,null,null,null,null," ",null,null,null,null,"Overall","Central Queensland","Darling Downs","Macintyre - Balonne","Northern NSW","Macquarie","Southern NSW","Small (< 1,000 ha)","Medium (1,000 - 5,000 ha)","Large (> 5,000 ha)"]
[null,null,null,null,"Base:",{"$f":"INDEX($S14:$AB14,1,1)","v":201},null,null,null,null,null,null,null," ",null,null,null,"Base:",201]
[null,null,"Provision of pasture",null,"Not important at all",{"$f":"INDEX($S15:$AB15,1,1)","v":0.19402985074626866},{"$f":"IF(AND(F15>0,F15<0.005),\"<1%\",TEXT(F15,\"0%\"))","v":"19%"},null,{"$f":"C15","v":"Provision of pasture"},{"$f":"F15+F16","v":0.38308457711442789},{"$f":"F17+F18","v":0.35323383084577115},{"$f":"TEXT(ROUND(K15,2)-ROUND(J15,2),\"+##0%;-##0%\")","v":"-3%"},6," ",null,"Provision of pasture",null,"Not important at all",0.19402985074626866]
[null,null,null,null,"Not that important",0.1890547263681592,{"$f":"IF(AND(F16>0,F16<0.005),\"<1%\",TEXT(F16,\"0%\"))","v":"19%"},null,null,null,null,null,null,null,null,null,null,"Not that important",0.1890547263681592]
[null,null,null,null,"Somewhat important",0.22388059701492538,"22%",null,null,null,null,null,null,null,null,null,null,"Somewhat important",0.22388059701492538]
[null,null,null,null,"Extremely important",0.12935323383084577,"13%",null,null,null,null,null,null,null,null,null,null,"Extremely important",0.12935323383084577]
[null,null,null,null,"Not sure",0.26368159203980102,"26%",null,null,null,null,null,null,null,null,null,null,"Not sure",0.26368159203980102]
[]
[]
[null,null,null,null,null,null,null,null,null,null,null,null,null,null,null,null,null,null,"Overall","Central Queensland","Darling Downs","Macintyre - Balonne","Northern NSW","Macquarie","Southern NSW","Small (< 1,000 ha)","Medium (1,000 - 5,000 ha)","Large (> 5,000 ha)"]
[null,null,null,null,"Base:",{"$f":"INDEX($S23:$AB23,1,1)","v":202},null,null,null,null,null,null,null,null,null,null,null,"Base:",202]
[null,null,"Reduced erosion",null,"Not important at all",{"$f":"INDEX($S24:$AB24,1,1)","v":6.9306930693069313E-2},{"$f":"IF(AND(F24>0,F24<0.005),\"<1%\",TEXT(F24,\"0%\"))","v":"7%"},null,{"$f":"C24","v":"Reduced erosion"},{"$f":"F24+F25","v":0.15841584158415842},{"$f":"F26+F27","v":0.6089108910891089},{"$f":"TEXT(ROUND(K24,2)-ROUND(J24,2),\"+##0%;-##0%\")","v":"+45%"},1,null,null,"Reduced erosion",null,"Not important at all",6.9306930693069313E-2]
[null,null,null,null,"Not that important",8.9108910891089105E-2,{"$f":"IF(AND(F25>0,F25<0.005),\"<1%\",TEXT(F25,\"0%\"))","v":"9%"},null,null,null,null,null,null,null,null,null,null,"Not that important",8.9108910891089105E-2]
[null,null,null,null,"Somewhat important",0.30198019801980197,"30%",null,null,null,null,null,null,null,null,null,null,"Somewhat important",0.30198019801980197]
[null,null,null,null,"Extremely important",0.30693069306930693,"31%",null,null,null,null,null,null,null,null,null,null,"Extremely important",0.30693069306930693]
[null,null,null,null,"Not sure",0.23267326732673269,"23%",null,null,null,null,null,null,null,null,null,null,"Not sure",0.23267326732673269]
[]
[]
[null,null,null,null,null,null,null,null,null,null,null,null,null,null,null,null,null,null,"Overall","Central Queensland","Darling Downs","Macintyre - Balonne","Northern NSW","Macquarie","Southern NSW","Small (< 1,000 ha)","Medium (1,000 - 5,000 ha)","Large (> 5,000 ha)"]
[null,null,null,null,"Base:",{"$f":"INDEX($S32:$AB32,1,1)","v":201},null,null,null,null,null,null,null,null,null,null,null,"Base:",201]
[null,null,"Carbon sequestration",null,"Not important at all",{"$f":"INDEX($S33:$AB33,1,1)","v":0.17910447761194029},{"$f":"IF(AND(F33>0,F33<0.005),\"<1%\",TEXT(F33,\"0%\"))","v":"18%"},null,{"$f":"C33","v":"Carbon sequestration"},{"$f":"F33+F34","v":0.38308457711442784},{"$f":"F35+F36","v":0.32338308457711445},{"$f":"TEXT(ROUND(K33,2)-ROUND(J33,2),\"+##0%;-##0%\")","v":"-6%"},7,null,null,"Carbon sequestration",null,"Not important at all",0.17910447761194029]
[null,null,null,null,"Not that important",0.20398009950248755,{"$f":"IF(AND(F34>0,F34<0.005),\"<1%\",TEXT(F34,\"0%\"))","v":"20%"},null,null,null,null,null,null,null,null,null,null,"Not that important",0.20398009950248755]
[null,null,null,null,"Somewhat important",0.2537313432835821,"25%",null,null,null,null,null,null,null,null,null,null,"Somewhat important",0.2537313432835821]
[null,null,null,null,"Extremely important",6.965174129353234E-2,"7%",null,null,null,null,null,null,null,null,null,null,"Extremely important",6.965174129353234E-2]
[null,null,null,null,"Not sure",0.29353233830845771,"29%",null,null,null,null,null,null,null,null,null,null,"Not sure",0.29353233830845771]
[]
[]
[null,null,null,null,null,null,null,null,null,null,null,null,null,null,null,null,null,null,"Overall","Central Queensland","Darling Downs","Macintyre - Balonne","Northern NSW","Macquarie","Southern NSW","Small (< 1,000 ha)","Medium (1,000 - 5,000 ha)","Large (> 5,000 ha)"]
[null,null,null,null,"Base:",{"$f":"INDEX($S41:$AB41,1,1)","v":202},null,null,null,null,null,null,null,null,null,null,null,"Base:",202]
[null,null,"Wildlife habitat",null,"Not important at all",{"$f":"INDEX($S42:$AB42,1,1)","v":6.9306930693069313E-2},{"$f":"IF(AND(F42>0,F42<0.005),\"<1%\",TEXT(F42,\"0%\"))","v":"7%"},null,{"$f":"C42","v":"Wildlife habitat"},{"$f":"F42+F43","v":0.16831683168316833},{"$f":"F44+F45","v":0.59405940594059403},{"$f":"TEXT(ROUND(K42,2)-ROUND(J42,2),\"+##0%;-##0%\")","v":"+42%"},2,null,null,"Wildlife habitat",null,"Not important at all",6.9306930693069313E-2]
[null,null,null,null,"Not that important",9.9009900990099015E-2,{"$f":"IF(AND(F43>0,F43<0.005),\"<1%\",TEXT(F43,\"0%\"))","v":"10%"},null,null,null,null,null,null,null,null,null,null,"Not that important",9.9009900990099015E-2]
[null,null,null,null,"Somewhat important",0.36633663366336633,"37%",null,null,null,null,null,null,null,null,null,null,"Somewhat important",0.36633663366336633]
[null,null,null,null,"Extremely important",0.22772277227722773,"23%",null,null,null,null,null,null,null,null,null,null,"Extremely important",0.22772277227722773]
[null,null,null,null,"Not sure",0.23762376237623761,"24%",null,null,null,null,null,null,null,null,null,null,"Not sure",0.23762376237623761]
[]
[]
[null,null,null,null,null,null,null,null,null,null,null,null,null,null,null,null,null,null,"Overall","Central Queensland","Darling Downs","Macintyre - Balonne","Northern NSW","Macquarie","Southern NSW","Small (< 1,000 ha)","Medium (1,000 - 5,000 ha)","Large (> 5,000 ha)"]
[null,null,null,null,"Base:",{"$f":"INDEX($S50:$AB50,1,1)","v":202},null,null,null,null,null,null,null,null,null,null,null,"Base:",202]
[null,null,"Pollination support",null,"Not important at all",{"$f":"INDEX($S51:$AB51,1,1)","v":0.10396039603960396},{"$f":"IF(AND(F51>0,F51<0.005),\"<1%\",TEXT(F51,\"0%\"))","v":"10%"},null,{"$f":"C51","v":"Pollination support"},{"$f":"F51+F52","v":0.2277227722772277},{"$f":"F53+F54","v":0.51485148514851486},{"$f":"TEXT(ROUND(K51,2)-ROUND(J51,2),\"+##0%;-##0%\")","v":"+28%"},4,null,null,"Pollination support",null,"Not important at all",0.10396039603960396]
[null,null,null,null,"Not that important",0.12376237623762376,{"$f":"IF(AND(F52>0,F52<0.005),\"<1%\",TEXT(F52,\"0%\"))","v":"12%"},null,null,null,null,null,null,null,null,null,null,"Not that important",0.12376237623762376]
[null,null,null,null,"Somewhat important",0.31683168316831684,"32%",null,null,null,null,null,null,null,null,null,null,"Somewhat important",0.31683168316831684]
[null,null,null,null,"Extremely important",0.19801980198019803,"20%",null,null,null,null,null,null,null,null,null,null,"Extremely important",0.19801980198019803]
[null,null,null,null,"Not sure",0.25742574257425743,"26%",null,null,null,null,null,null,null,null,null,null,"Not sure",0.25742574257425743]
[]
[]
[null,null,null,null,null,null,null,null,null,null,null,null,null,null,null,null,null,null,"Overall","Central Queensland","Darling Downs","Macintyre - Balonne","Northern NSW","Macquarie","Southern NSW","Small (< 1,000 ha)","Medium (1,000 - 5,000 ha)","Large (> 5,000 ha)"]
[null,null,null,null,"Base:",{"$f":"INDEX($S59:$AB59,1,1)","v":201},null,null,null,null,null,null,null,null,null,null,null,"Base:",201]
[null,null,"Recreation",null,"Not important at all",{"$f":"INDEX($S60:$AB60,1,1)","v":0.11442786069651742},{"$f":"IF(AND(F60>0,F60<0.005),\"<1%\",TEXT(F60,\"0%\"))","v":"11%"},null,{"$f":"C60","v":"Recreation"},{"$f":"F60+F61","v":0.26865671641791045},{"$f":"F62+F63","v":0.48756218905472637},{"$f":"TEXT(ROUND(K60,2)-ROUND(J60,2),\"+##0%;-##0%\")","v":"+22%"},5,null,null,"Recreation",null,"Not important at all",0.11442786069651742]
[null,null,null,null,"Not that important",0.15422885572139303,{"$f":"IF(AND(F61>0,F61<0.005),\"<1%\",TEXT(F61,\"0%\"))","v":"15%"},null,null,null,null,null,null,null,null,null,null,"Not that important",0.15422885572139303]
[null,null,null,null,"Somewhat important",0.34328358208955223,"34%",null,null,null,null,null,null,null,null,null,null,"Somewhat important",0.34328358208955223]
[null,null,null,null,"Extremely important",0.14427860696517414,"14%",null,null,null,null,null,null,null,null,null,null,"Extremely important",0.14427860696517414]
[null,null,null,null,"Not sure",0.24378109452736318,"24%",null,null,null,null,null,null,null,null,null,null,"Not sure",0.24378109452736318]
[]
[]
[]
[]
[null,null,null,null,null,null,null,null,"FOR CHART:"]
[]
[null,null,null,null,null,null,null,"Rank","Label","Negative","Positive","Nett"]
[null,null,null,null,null,null,null,1,{"$f":"INDEX($I$6:$M$60,MATCH($H72,$M$6:$M$60,0),1)","v":"Reduced erosion"},{"$f":"INDEX($I$6:$M$60,MATCH($H72,$M$6:$M$60,0),2)","v":0.15841584158415842},{"$f":"INDEX($I$6:$M$60,MATCH($H72,$M$6:$M$60,0),3)","v":0.6089108910891089},{"$f":"INDEX($I$6:$M$60,MATCH($H72,$M$6:$M$60,0),4)","v":"+45%"}]
[null,null,null,null,null,null,null,2,"Wildlife habitat",0.16831683168316833,0.59405940594059403,"+42%"]
[null,null,null,null,null,null,null,3,"Natural pest management",0.17326732673267325,0.56930693069306937,"+40%"]
[null,null,null,null,null,null,null,4,"Pollination support",0.2277227722772277,0.51485148514851486,"+28%"]
[null,null,null,null,null,null,null,5,"Recreation",0.26865671641791045,0.48756218905472637,"+22%"]
[null,null,null,null,null,null,null,6,"Provision of pasture",0.38308457711442789,0.35323383084577115,"-3%"]
[null,null,null,null,null,null,null,7,"Carbon sequestration",0.38308457711442784,0.32338308457711445,"-6%"]

{"sheet":"Riparian Problems","index":44,"n_rows":29,"n_cols":19,"rows_kept":29,"cut":false,"hidden":false,"merged":[[28,2,29,9],[28,11,29,18],[0,4,3,16],[0,17,1,19],[4,4,5,16],[6,2,7,9],[6,11,7,18]]}
[null,null,null,null,"2017 Grower Survey"]
[]
[]
[]
[null,null,null,null,"Natural Resource Management - Riparian Problems & Practices"]
[]
[null,null,"Problems with the riparian areas on their farm",null,null,null,null,null,null,null,null,"Riparian area management practices they have undertaken in the last 10 years"]
[]
[]
[]
[]
[]
[]
[]
[]
[]
[]
[]
[]
[]
[]
[]
[]
[]
[]
[]
[null,null,{"$f":"\"Base: all cotton growers; n = \"&MIN('Data - Riparian Problems'!F5,'Data - Riparian Problems'!F13,'Data - Riparian Problems'!F21,'Data - Riparian Problems'!F29,'Data - Riparian Problems'!F37,'Data - Riparian Problems'!F45)&\".\"","v":"Base: all cotton growers; n = 201."},null,null,null,null,null,null,{"$f":"IF('HIDDEN - Backend'!Q17=1,\"Source: 2017 Grower Survey, CRDC\",\"\")","v":""},null,{"$f":"\"Base: all cotton growers; n = \"&'Data - Riparian Problems'!F56&\".\"","v":"Base: all cotton growers; n = 202."},null,null,null,null,null,null,{"$f":"IF('HIDDEN - Backend'!Q17=1,\"Source: 2017 Grower Survey, CRDC\",\"\")","v":""}]
[]
[null,null,"Question: How much of a problem are the following within riparian areas on your farm?",null,null,null,null,null,null,null,null,"Question: What management practices have you undertaken on your property within your riparian areas in the last 10 years?\n^Multiple responses accepted. Results may not add to 100%."]

{"sheet":"Data - Riparian Problems","index":45,"n_rows":65,"n_cols":28,"rows_kept":65,"cut":false,"hidden":true,"merged":[]}
[{"$f":"'HIDDEN - Backend'!Q3","v":1},null,null,null,"Segment",{"$f":"INDEX($S1:$AB1,1,$A$1)","v":"All cotton"},null,null,null,null,null,null,null," ",null,null,null,null,"All cotton","Central Queensland","Darling Downs","Macintyre - Balonne","Northern NSW","Macquarie","Southern NSW","Small farm","Medium farm","Large farm"]
[null,null,"CHARTS",null,null,null,null,null,null,null,null,null,null," ",null,null,"DATA"]
[null,null,null,null,null,null,null,null,null,null,null,null,null," "]
[null,null,"Focus - Overall",null,null,null,"Label",null,null,null,null,null,null," ",null,null,null,null,"Overall","Central Queensland","Darling Downs","Macintyre - Balonne","Northern NSW","Macquarie","Southern NSW","Small (< 1,000 ha)","Medium (1,000 - 5,000 ha)","Large (> 5,000 ha)"]
[null,null,null,null,"Base",{"$f":"INDEX($S5:$AB5,1,1)","v":201},null,null,null,null,null,null,null," ",null,null,null,"Base:",201]
[null,null,"Erosion",null,"A major problem",{"$f":"INDEX($S6:$AB6,1,1)","v":2.9850746268656716E-2},{"$f":"IF(AND(F6>0,F6<0.005),\"<1%\",TEXT(F6,\"0%\"))","v":"3%"},null,null,null,null,null,null," ",null,"Erosion",null,"A major problem",2.9850746268656716E-2]
[null,null,null,null,"Somewhat of a problem",0.34825870646766172,{"$f":"IF(AND(F7>0,F7<0.005),\"<1%\",TEXT(F7,\"0%\"))","v":"35%"},null,null,null,null,null,null," ",null,null,null,"Somewhat of a problem",0.34825870646766172]
[null,null,null,null,"Not a problem at all",0.40298507462686567,"40%",null,null,null,null,null,null,null,null,null,null,"Not a problem at all",0.40298507462686567]
[null,null,null,null,"Can’t say",0.21890547263681592,"22%",null,null,null,null,null,null,null,null,null,null,"Can’t say",0.21890547263681592]
[]
[null,null,null,null,null,null,null,null,null,null,null,null,null," "]
[null,null,null,null,null,null,null,null,null,null,null,null,null," ",null,null,null,null,"Overall","Central Queensland","Darling Downs","Macintyre - Balonne","Northern NSW","Macquarie","Southern NSW","Small (< 1,000 ha)","Medium (1,000 - 5,000 ha)","Large (> 5,000 ha)"]
[null,null,null,null,"Base:",{"$f":"INDEX($S13:$AB13,1,1)","v":201},null,null,null,null,null,null,null," ",null,null,null,"Base:",201]
[null,null,"Weeds",null,"A major problem",{"$f":"INDEX($S14:$AB14,1,1)","v":0.1890547263681592},{"$f":"IF(AND(F14>0,F14<0.005),\"<1%\",TEXT(F14,\"0%\"))","v":"19%"},null,null,null,null,null,null," ",null,"Weeds",null,"A major problem",0.1890547263681592]
[null,null,null,null,"Somewhat of a problem",0.41791044776119401,{"$f":"IF(AND(F15>0,F15<0.005),\"<1%\",TEXT(F15,\"0%\"))","v":"42%"},null,null,null,null,null,null,null,null,null,null,"Somewhat of a problem",0.41791044776119401]
[null,null,null,null,"Not a problem at all",0.1691542288557214,"17%",null,null,null,null,null,null,null,null,null,null,"Not a problem at all",0.1691542288557214]
[null,null,null,null,"Can’t say",0.22388059701492538,"22%",null,null,null,null,null,null,null,null,null,null,"Can’t say",0.22388059701492538]
[]
[]
[null,null,null,null,null,null,null,null,null,null,null,null,null,null,null,null,null,null,"Overall","Central Queensland","Darling Downs","Macintyre - Balonne","Northern NSW","Macquarie","Southern NSW","Small (< 1,000 ha)","Medium (1,000 - 5,000 ha)","Large (> 5,000 ha)"]
[null,null,null,null,"Base:",{"$f":"INDEX($S21:$AB21,1,1)","v":201},null,null,null,null,null,null,null,null,null,null,null,"Base:",201]
[null,null,"Pest animals ",null,"A major problem",{"$f":"INDEX($S22:$AB22,1,1)","v":0.27860696517412936},{"$f":"IF(AND(F22>0,F22<0.005),\"<1%\",TEXT(F22,\"0%\"))","v":"28%"},null,null,null,null,null,null,null,null,"Pest animals ",null,"A major problem",0.27860696517412936]
[null,null,null,null,"Somewhat of a problem",0.36815920398009949,{"$f":"IF(AND(F23>0,F23<0.005),\"<1%\",TEXT(F23,\"0%\"))","v":"37%"},null,null,null,null,null,null,null,null,null,null,"Somewhat of a problem",0.36815920398009949]
[null,null,null,null,"Not a problem at all",0.13432835820895522,"13%",null,null,null,null,null,null,null,null,null,null,"Not a problem at all",0.13432835820895522]
[null,null,null,null,"Can’t say",0.21890547263681592,"22%",null,null,null,null,null,null,null,null,null,null,"Can’t say",0.21890547263681592]
[]
[]
[null,null,null,null,null,null,null,null,null,null,null,null,null,null,null,null,null,null,"Overall","Central Queensland","Darling Downs","Macintyre - Balonne","Northern NSW","Macquarie","Southern NSW","Small (< 1,000 ha)","Medium (1,000 - 5,000 ha)","Large (> 5,000 ha)"]
[null,null,null,null,"Base:",{"$f":"INDEX($S29:$AB29,1,1)","v":201},null,null,null,null,null,null,null,null,null,null,null,"Base:",201]
[null,null,"Regeneration/woody thickening",null,"A major problem",{"$f":"INDEX($S30:$AB30,1,1)","v":0.15422885572139303},{"$f":"IF(AND(F30>0,F30<0.005),\"<1%\",TEXT(F30,\"0%\"))","v":"15%"},null,null,null,null,null,null,null,null,"Regeneration/woody thickening",null,"A major problem",0.15422885572139303]
[null,null,null,null,"Somewhat of a problem",0.27860696517412936,{"$f":"IF(AND(F31>0,F31<0.005),\"<1%\",TEXT(F31,\"0%\"))","v":"28%"},null,null,null,null,null,null,null,null,null,null,"Somewhat of a problem",0.27860696517412936]
[null,null,null,null,"Not a problem at all",0.34328358208955223,"34%",null,null,null,null,null,null,null,null,null,null,"Not a problem at all",0.34328358208955223]
[null,null,null,null,"Can’t say",0.22388059701492538,"22%",null,null,null,null,null,null,null,null,null,null,"Can’t say",0.22388059701492538]
[]
[]
[null,null,null,null,null,null,null,null,null,null,null,null,null,null,null,null,null,null,"Overall","Central Queensland","Darling Downs","Macintyre - Balonne","Northern NSW","Macquarie","Southern NSW","Small (< 1,000 ha)","Medium (1,000 - 5,000 ha)","Large (> 5,000 ha)"]
[null,null,null,null,"Base:",{"$f":"INDEX($S37:$AB37,1,1)","v":201},null,null,null,null,null,null,null,null,null,null,null,"Base:",201]
[null,null,"People coming onto your farm without permission",null,"A major problem",{"$f":"INDEX($S38:$AB38,1,1)","v":9.4527363184079602E-2},{"$f":"IF(AND(F38>0,F38<0.005),\"<1%\",TEXT(F38,\"0%\"))","v":"9%"},null,null,null,null,null,null,null,null,"People coming onto your farm without permission",null,"A major problem",9.4527363184079602E-2]
[null,null,null,null,"Somewhat of a problem",0.32835820895522388,{"$f":"IF(AND(F39>0,F39<0.005),\"<1%\",TEXT(F39,\"0%\"))","v":"33%"},null,null,null,null,null,null,null,null,null,null,"Somewhat of a problem",0.32835820895522388]
[null,null,null,null,"Not a problem at all",0.35323383084577115,"35%",null,null,null,null,null,null,null,null,null,null,"Not a problem at all",0.35323383084577115]
[null,null,null,null,"Can’t say",0.22388059701492538,"22%",null,null,null,null,null,null,null,null,null,null,"Can’t say",0.22388059701492538]
[]
[]
[null,null,null,null,null,null,null,null,null,null,null,null,null,null,null,null,null,null,"Overall","Central Queensland","Darling Downs","Macintyre - Balonne","Northern NSW","Macquarie","Southern NSW","Small (< 1,000 ha)","Medium (1,000 - 5,000 ha)","Large (> 5,000 ha)"]
[null,null,null,null,"Base:",{"$f":"INDEX($S45:$AB45,1,1)","v":202},null,null,null,null,null,null,null,null,null,null,null,"Base:",202]
[null,null,"Loss of production area",null,"A major problem",{"$f":"INDEX($S46:$AB46,1,1)","v":5.4455445544554455E-2},{"$f":"IF(AND(F46>0,F46<0.005),\"<1%\",TEXT(F46,\"0%\"))","v":"5%"},null,null,null,null,null,null,null,null,"Loss of production area",null,"A major problem",5.4455445544554455E-2]
[null,null,null,null,"Somewhat of a problem",0.17326732673267325,{"$f":"IF(AND(F47>0,F47<0.005),\"<1%\",TEXT(F47,\"0%\"))","v":"17%"},null,null,null,null,null,null,null,null,null,null,"Somewhat of a problem",0.17326732673267325]
[null,null,null,null,"Not a problem at all",0.53960396039603964,"54%",null,null,null,null,null,null,null,null,null,null,"Not a problem at all",0.53960396039603964]
[null,null,null,null,"Can’t say",{"$f":"INDEX($S49:$X49,1,1)","v":0.23267326732673269},"23%",null,null,null,null,null,null,null,null,null,null,"Can’t say",0.23267326732673269]
[]
[]
[]
[]
[]
[null,null,null,null,null,null,"Rank",null,null,"Re-order",null,"Label",null,null,null,null,null,null,"Overall"]
[null,null,null,null,"Base:",{"$f":"INDEX($S56:$AB56,1,1)","v":202},null,null,null,null,null,null,null,null,null,null,null,"Base",202]
[null,null,"What management practices have you undertaken on your property within your riparian areas in the last 10 years",null,"Weed control",{"$f":"INDEX($S57:$AB57,1,1)","v":0.47029700000000002},{"$f":"RANK(F57,$F$57:$F$64)","v":2},null,1,{"$f":"INDEX($E$57:$G$65,MATCH($I57,$G$57:$G$65,0),1)","v":"Pest animal control"},{"$f":"INDEX($E$57:$G$65,MATCH($I57,$G$57:$G$65,0),2)","v":0.54455399999999998},{"$f":"IF(AND(K57>0,K57<0.005),\"<1%\",TEXT(K57,\"0%\"))","v":"54%"},null,null,null,"What management practices have you undertaken on your property within your riparian areas in the last 10 years",null,"Weed control",0.47029700000000002]
[null,null,null,null,"Pest animal control",0.54455399999999998,{"$f":"RANK(F58,$F$57:$F$64)+COUNTIF($G$57:G57,RANK(F58,$F$57:$F$64))","v":1},null,2,{"$f":"INDEX($E$57:$G$65,MATCH($I58,$G$57:$G$65,0),1)","v":"Weed control"},{"$f":"INDEX($E$57:$G$65,MATCH($I58,$G$57:$G$65,0),2)","v":0.47029700000000002},{"$f":"IF(AND(K58>0,K58<0.005),\"<1%\",TEXT(K58,\"0%\"))","v":"47%"},null,null,null,null,null,"Pest animal control",0.54455399999999998]
[null,null,null,null,"Erosion control",0.316832,{"$f":"RANK(F59,$F$57:$F$64)+COUNTIF($G$57:G58,RANK(F59,$F$57:$F$64))","v":5},null,3,"Restricted grazing access (e.g. fencing, time control grazing)",0.41089100000000001,"41%",null,null,null,null,null,"Erosion control",0.316832]
[null,null,null,null,"Vegetation clearing/thinning",0.183168,{"$f":"RANK(F60,$F$57:$F$64)+COUNTIF($G$57:G59,RANK(F60,$F$57:$F$64))","v":8},null,4,"Identified these areas in your Chemical Handling Application Plan",0.38118800000000003,"38%",null,null,null,null,null,"Vegetation clearing/thinning",0.183168]
[null,null,null,null,"Woody debris removal",0.19306899999999999,{"$f":"RANK(F61,$F$57:$F$64)+COUNTIF($G$57:G60,RANK(F61,$F$57:$F$64))","v":7},null,5,"Erosion control",0.316832,"32%",null,null,null,null,null,"Woody debris removal",0.19306899999999999]
[null,null,null,null,"Vegetation regeneration /revegetation",0.20792099999999999,{"$f":"RANK(F62,$F$57:$F$64)+COUNTIF($G$57:G61,RANK(F62,$F$57:$F$64))","v":6},null,6,"Vegetation regeneration /revegetation",0.20792099999999999,"21%",null,null,null,null,null,"Vegetation regeneration /revegetation",0.20792099999999999]
[null,null,null,null,"Restricted grazing access (e.g. fencing, time control grazing)",0.41089100000000001,{"$f":"RANK(F63,$F$57:$F$64)+COUNTIF($G$57:G62,RANK(F63,$F$57:$F$64))","v":3},null,7,"Woody debris removal",0.19306899999999999,"19%",null,null,null,null,null,"Restricted grazing access (e.g. fencing, time control grazing)",0.41089100000000001]
[null,null,null,null,"Identified these areas in your Chemical Handling Application Plan",0.38118800000000003,{"$f":"RANK(F64,$F$57:$F$64)+COUNTIF($G$57:G63,RANK(F64,$F$57:$F$64))","v":4},null,8,"Vegetation clearing/thinning",0.183168,"18%",null,null,null,null,null,"Identified these areas in your Chemical Handling Application Plan",0.38118800000000003]
[null,null,null,null,"None in the last 10 years",0.29703000000000002,9,null,9,"None in the last 10 years",0.29703000000000002,"30%",null,null,null,null,null,"None in the last 10 years",0.29703000000000002]

{"sheet":"Significant Changes","index":46,"n_rows":29,"n_cols":19,"rows_kept":29,"cut":false,"hidden":false,"merged":[[0,4,3,16],[0,17,1,19],[4,4,5,16],[6,2,7,18],[28,2,29,18]]}
[null,null,null,null,"2017 Grower Survey"]
[]
[]
[]
[null,null,null,null,"Natural Resource Management - Significant Changes"]
[]
[null,null,"Significant changes with animals and vegetations within riparian areas over the last 10 years"]
[]
[]
[]
[]
[]
[]
[]
[]
[]
[]
[]
[]
[]
[]
[]
[]
[]
[]
[]
[null,null,{"$f":"\"Base: all cotton growers; n = \"&MAX('Data - Significant Changes'!F5,'Data - Significant Changes'!F13,'Data - Significant Changes'!F21,'Data - Significant Changes'!F29,'Data - Significant Changes'!F37,'Data - Significant Changes'!F45)&\".\"","v":"Base: all cotton growers; n = 199."},null,null,null,null,null,null,null,null,null,null,null,null,null,null,null,{"$f":"IF('HIDDEN - Backend'!Q17=1,\"Source: 2017 Grower Survey, CRDC\",\"\")","v":""}]
[]
[null,null,"Question: Have you noticed any significant changes in the vegetation or animals within riparian areas on your property over the last 10 years?"]

{"sheet":"Data - Significant Changes","index":47,"n_rows":60,"n_cols":28,"rows_kept":60,"cut":false,"hidden":true,"merged":[]}
[{"$f":"'HIDDEN - Backend'!Q3","v":1},null,null,null,"Segment",{"$f":"INDEX($S1:$AB1,1,$A$1)","v":"All cotton"},null,null,null,null,null,null,null," ",null,null,null,null,"All cotton","Central Queensland","Darling Downs","Macintyre - Balonne","Northern NSW","Macquarie","Southern NSW","Small farm","Medium farm","Large farm"]
[null,null,"CHARTS",null,null,null,null,null,null,null,null,null,null," ",null,null,"DATA"]
[null,null,null,null,null,null,null,null,null,null,null,null,null," "]
[null,null,"Focus - Overall",null,null,null,"Label",null,null,"Decreased","Increased","Nett","Rank"," ",null,null,null,null,"Overall","Central Queensland","Darling Downs","Macintyre - Balonne","Northern NSW","Macquarie","Southern NSW","Small (< 1,000 ha)","Medium (1,000 - 5,000 ha)","Large (> 5,000 ha)"]
[null,null,null,null,"Base",{"$f":"INDEX($S5:$AB5,1,1)","v":197},null,null,null,null,null,null,null," ",null,null,null,"Base",197]
[null,null,"Erosion",null,"Increased",{"$f":"INDEX($S6:$AB6,1,1)","v":6.0913705583756347E-2},{"$f":"IF(AND(F6>0,F6<0.005),\"<1%\",TEXT(F6,\"0%\"))","v":"6%"},null,"Erosion",{"$f":"F8","v":0.1065989847715736},{"$f":"F6","v":6.0913705583756347E-2},{"$f":"TEXT(ROUND(K6,2)-ROUND(J6,2),\"+##0%;-##0%\")","v":"-5%"},6," ",null,"Erosion",null,"Increased",6.0913705583756347E-2]
[null,null,null,null,"No change",0.56852791878172593,{"$f":"IF(AND(F7>0,F7<0.005),\"<1%\",TEXT(F7,\"0%\"))","v":"57%"},null,null,null,null,null,null," ",null,null,null,"No change",0.56852791878172593]
[null,null,null,null,"Decreased",0.1065989847715736,"11%",null,null,null,null,null,null,null,null,null,null,"Decreased",0.1065989847715736]
[null,null,null,null,"Not sure",0.26395939086294418,"26%",null,null,null,null,null,null,null,null,null,null,"Not sure",0.26395939086294418]
[]
[]
[null,null,null,null,null,null,null,null,null,null,null,null,null," ",null,null,null,null,"Overall","Central Queensland","Darling Downs","Macintyre - Balonne","Northern NSW","Macquarie","Southern NSW","Small (< 1,000 ha)","Medium (1,000 - 5,000 ha)","Large (> 5,000 ha)"]
[null,null,null,null,"Base",{"$f":"INDEX($S13:$AB13,1,1)","v":199},null,null,null,null,null,null,null," ",null,null,null,"Base",199]
[null,null,"Regeneration of shrubs and trees",null,"Increased",{"$f":"INDEX($S14:$AB14,1,1)","v":0.44723618090452261},{"$f":"IF(AND(F14>0,F14<0.005),\"<1%\",TEXT(F14,\"0%\"))","v":"45%"},null,"Regeneration of shrubs and trees",{"$f":"F16","v":5.0251256281407036E-3},{"$f":"F14","v":0.44723618090452261},{"$f":"TEXT(ROUND(K14,2)-ROUND(J14,2),\"+##0%;-##0%\")","v":"+44%"},1," ",null,"Regeneration of shrubs and trees",null,"Increased",0.44723618090452261]
[null,null,null,null,"No change",0.29145728643216079,{"$f":"IF(AND(F15>0,F15<0.005),\"<1%\",TEXT(F15,\"0%\"))","v":"29%"},null,null,null,null,null,null," ",null,null,null,"No change",0.29145728643216079]
[null,null,null,null,"Decreased",5.0251256281407036E-3,"1%",null,null,null,null,null,null,null,null,null,null,"Decreased",5.0251256281407036E-3]
[null,null,null,null,"Not sure",0.25628140703517588,"26%",null,null,null,null,null,null,null,null,null,null,"Not sure",0.25628140703517588]
[]
[]
[null,null,null,null,null,null,null,null,null,null,null,null,null,null,null,null,null,null,"Overall","Central Queensland","Darling Downs","Macintyre - Balonne","Northern NSW","Macquarie","Southern NSW","Small (< 1,000 ha)","Medium (1,000 - 5,000 ha)","Large (> 5,000 ha)"]
[null,null,null,null,"Base",{"$f":"INDEX($S21:$AB21,1,1)","v":199},null,null,null,null,null,null,null,null,null,null,null,"Base",199]
[null,null,"Abundance of weeds",null,"Increased",{"$f":"INDEX($S22:$AB22,1,1)","v":0.271356783919598},{"$f":"IF(AND(F22>0,F22<0.005),\"<1%\",TEXT(F22,\"0%\"))","v":"27%"},null,"Abundance of weeds",{"$f":"F24","v":4.0201005025125629E-2},{"$f":"F22","v":0.271356783919598},{"$f":"TEXT(ROUND(K22,2)-ROUND(J22,2),\"+##0%;-##0%\")","v":"+23%"},4,null,null,"Abundance of weeds",null,"Increased",0.271356783919598]
[null,null,null,null,"No change",0.43216080402010049,{"$f":"IF(AND(F23>0,F23<0.005),\"<1%\",TEXT(F23,\"0%\"))","v":"43%"},null,null,null,null,null,null,null,null,null,null,"No change",0.43216080402010049]
[null,null,null,null,"Decreased",4.0201005025125629E-2,"4%",null,null,null,null,null,null,null,null,null,null,"Decreased",4.0201005025125629E-2]
[null,null,null,null,"Not sure",0.25628140703517588,"26%",null,null,null,null,null,null,null,null,null,null,"Not sure",0.25628140703517588]
[]
[]
[null,null,null,null,null,null,null,null,null,null,null,null,null,null,null,null,null,null,"Overall","Central Queensland","Darling Downs","Macintyre - Balonne","Northern NSW","Macquarie","Southern NSW","Small (< 1,000 ha)","Medium (1,000 - 5,000 ha)","Large (> 5,000 ha)"]
[null,null,null,null,"Base",{"$f":"INDEX($S29:$AB29,1,1)","v":198},null,null,null,null,null,null,null,null,null,null,null,"Base",198]
[null,null,"Diversity of native animals",null,"Increased",{"$f":"INDEX($S30:$AB30,1,1)","v":0.21212121212121213},{"$f":"IF(AND(F30>0,F30<0.005),\"<1%\",TEXT(F30,\"0%\"))","v":"21%"},null,"Diversity of native animals",{"$f":"F32","v":1.0101010101010102E-2},{"$f":"F30","v":0.21212121212121213},{"$f":"TEXT(ROUND(K30,2)-ROUND(J30,2),\"+##0%;-##0%\")","v":"+20%"},5,null,null,"Diversity of native animals",null,"Increased",0.21212121212121213]
[null,null,null,null,"No change",0.5,{"$f":"IF(AND(F31>0,F31<0.005),\"<1%\",TEXT(F31,\"0%\"))","v":"50%"},null,null,null,null,null,null,null,null,null,null,"No change",0.5]
[null,null,null,null,"Decreased",1.0101010101010102E-2,"1%",null,null,null,null,null,null,null,null,null,null,"Decreased",1.0101010101010102E-2]
[null,null,null,null,"Not sure",0.27777777777777779,"28%",null,null,null,null,null,null,null,null,null,null,"Not sure",0.27777777777777779]
[]
[]
[null,null,null,null,null,null,null,null,null,null,null,null,null,null,null,null,null,null,"Overall","Central Queensland","Darling Downs","Macintyre - Balonne","Northern NSW","Macquarie","Southern NSW","Small (< 1,000 ha)","Medium (1,000 - 5,000 ha)","Large (> 5,000 ha)"]
[null,null,null,null,"Base",{"$f":"INDEX($S37:$AB37,1,1)","v":199},null,null,null,null,null,null,null,null,null,null,null,"Base",199]
[null,null,"Diversity of pest animals",null,"Increased",{"$f":"INDEX($S38:$AB38,1,1)","v":0.29648241206030151},{"$f":"IF(AND(F38>0,F38<0.005),\"<1%\",TEXT(F38,\"0%\"))","v":"30%"},null,"Diversity of pest animals",{"$f":"F40","v":3.5175879396984924E-2},{"$f":"F38","v":0.29648241206030151},{"$f":"TEXT(ROUND(K38,2)-ROUND(J38,2),\"+##0%;-##0%\")","v":"+26%"},2,null,null,"Diversity of pest animals",null,"Increased",0.29648241206030151]
[null,null,null,null,"No change",0.42211055276381909,{"$f":"IF(AND(F39>0,F39<0.005),\"<1%\",TEXT(F39,\"0%\"))","v":"42%"},null,null,null,null,null,null,null,null,null,null,"No change",0.42211055276381909]
[null,null,null,null,"Decreased",3.5175879396984924E-2,"4%",null,null,null,null,null,null,null,null,null,null,"Decreased",3.5175879396984924E-2]
[null,null,null,null,"Not sure",0.24623115577889448,"25%",null,null,null,null,null,null,null,null,null,null,"Not sure",0.24623115577889448]
[]
[]
[null,null,null,null,null,null,null,null,null,null,null,null,null,null,null,null,null,null,"Overall","Central Queensland","Darling Downs","Macintyre - Balonne","Northern NSW","Macquarie","Southern NSW","Small (< 1,000 ha)","Medium (1,000 - 5,000 ha)","Large (> 5,000 ha)"]
[null,null,null,null,"Base",{"$f":"INDEX($S45:$AB45,1,1)","v":198},null,null,null,null,null,null,null,null,null,null,null,"Base",198]
[null,null,"Ground cover & litter",null,"Increased",{"$f":"INDEX($S46:$AB46,1,1)","v":0.24747474747474749},{"$f":"IF(AND(F46>0,F46<0.005),\"<1%\",TEXT(F46,\"0%\"))","v":"25%"},null,"Ground cover & litter",{"$f":"F48","v":5.0505050505050509E-3},{"$f":"F46","v":0.24747474747474749},{"$f":"TEXT(ROUND(K46,2)-ROUND(J46,2),\"+##0%;-##0%\")","v":"+24%"},3,null,null,"Ground cover & litter",null,"Increased",0.24747474747474749]
[null,null,null,null,"No change",0.48989898989898989,{"$f":"IF(AND(F47>0,F47<0.005),\"<1%\",TEXT(F47,\"0%\"))","v":"49%"},null,null,null,null,null,null,null,null,null,null,"No change",0.48989898989898989]
[null,null,null,null,"Decreased",5.0505050505050509E-3,"1%",null,null,null,null,null,null,null,null,null,null,"Decreased",5.0505050505050509E-3]
[null,null,null,null,"Not sure",0.25757575757575757,"26%",null,null,null,null,null,null,null,null,null,null,"Not sure",0.25757575757575757]
[]
[]
[null,null,null,null,null,null,null,null,"FOR CHART:"]
[]
[null,null,null,null,null,null,null,"Rank","Label","Decreased","Increased","Nett"]
[null,null,null,null,null,null,null,1,{"$f":"INDEX($I$6:$M$51,MATCH($H55,$M$6:$M$51,0),1)","v":"Regeneration of shrubs and trees"},{"$f":"INDEX($I$6:$M$51,MATCH($H55,$M$6:$M$51,0),2)","v":5.0251256281407036E-3},{"$f":"INDEX($I$6:$M$51,MATCH($H55,$M$6:$M$51,0),3)","v":0.44723618090452261},{"$f":"INDEX($I$6:$M$51,MATCH($H55,$M$6:$M$51,0),4)","v":"+44%"}]
[null,null,null,null,null,null,null,2,"Diversity of pest animals",3.5175879396984924E-2,0.29648241206030151,"+26%"]
[null,null,null,null,null,null,null,3,"Ground cover & litter",5.0505050505050509E-3,0.24747474747474749,"+24%"]
[null,null,null,null,null,null,null,4,"Abundance of weeds",4.0201005025125629E-2,0.271356783919598,"+23%"]
[null,null,null,null,null,null,null,5,"Diversity of native animals",1.0101010101010102E-2,0.21212121212121213,"+20%"]
[null,null,null,null,null,null,null,6,"Erosion",0.1065989847715736,6.0913705583756347E-2,"-5%"]

{"sheet":"Accredited Education","index":48,"n_rows":29,"n_cols":19,"rows_kept":29,"cut":false,"hidden":false,"merged":[[11,2,12,9],[28,2,29,18],[11,11,12,18],[0,4,3,16],[0,17,1,19],[4,4,5,16],[6,2,7,9],[6,11,7,18]]}
[null,null,null,null,"2017 Grower Survey",null,null,null,null,null,null,null,null,null,null,null,null,"Data in Focus:"]
[]
[]
[]
[null,null,null,null,"On-Farm Training and Labour Needs - Accredited Education & Impact"]
[]
[null,null,"Proportion of growers (or staff) who have attended\naccredited training over the last 12 months",null,null,null,null,null,null,null,null,"Riparian area management practices they have undertaken in the last 10 years"]
[]
[]
[]
[]
[null,null,"Of those who have attended, impact on the efficiency\nand effectiveness of their farm",null,null,null,null,null,null,null,null,"Of those who have attended, impact on the efficiency\nand effectiveness of their farm"]
[]
[]
[]
[]
[]
[]
[]
[]
[]
[]
[]
[]
[]
[null,null,null,null,null,null,null,null,null,{"$f":"IF('HIDDEN - Backend'!Q17=1,\"Source: 2017 Grower Survey, CRDC\",\"\")","v":""},null,null,null,null,null,null,null,null,{"$f":"IF(AND('HIDDEN - Backend'!Q17=1,'HIDDEN - Backend'!Q3>1),\"Source: 2017 Grower Survey, CRDC\",\"\")","v":""}]
[null,null,{"$f":"\"Base: all cotton growers; n = \"&'Data - Accredited Education'!F5&\". Of those who have attended (or staff attended), n = \"&'Data - Accredited Education'!F8&\".\"","v":"Base: all cotton growers; n = 203. Of those who have attended (or staff attended), n = 124."},null,null,null,null,null,null,null,null,{"$f":"IF('Data - Accredited Education'!A1=1,\"\",\"Base: \"&'Data - Accredited Education'!F1&\" growers; n = \"&'Data - Accredited Education'!F19&\". Of those who have attended (or staff attended), n = \"&'Data - Accredited Education'!F22&\".\")","v":""}]
[]
[null,null,"Question: Has anyone in your cotton business (including you) attended accredited education or training courses over the last 12 months?\nQuestion: Overall what impact has recent training had on the efficiency and effectiveness of your farm business?"]

{"sheet":"Data - Accredited Education","index":49,"n_rows":27,"n_cols":28,"rows_kept":27,"cut":false,"hidden":true,"merged":[]}
[{"$f":"'HIDDEN - Backend'!Q3","v":1},null,null,null,"Segment",{"$f":"INDEX($S1:$AB1,1,$A$1)","v":"All cotton"},null,null,null,null,null,null,null," ",null,null,null,null,"All cotton","Central Queensland","Darling Downs","Macintyre - Balonne","Northern NSW","Macquarie","Southern NSW","Small farm","Medium farm","Large farm"]
[null,null,"CHARTS",null,null,null,null,null,null,null,null,null,null," ",null,null,"DATA"]
[null,null,null,null,null,null,null,null,null,null,null,null,null," "]
[null,null,"Focus - Overall",null,null,null,"Label",null,null,null,null,null,null," ",null,null,null,null,"Overall","Central Queensland","Darling Downs","Macintyre - Balonne","Northern NSW","Macquarie","Southern NSW","Small (< 1,000 ha)","Medium (1,000 - 5,000 ha)","Large (> 5,000 ha)"]
[null,null,null,null,"Base",{"$f":"INDEX($S5:$AB5,1,1)","v":203},null,null,"FOR CHART",null,null,"Label",null," ",null,null,null,"Base:",203,25,47,28,49,23,31,79,96,24]
[null,null,"Erosion",null,"Have attended training or education programs",{"$f":"INDEX($S6:$AB6,1,1)","v":0.61083743842364535},{"$f":"IF(AND(F6>0,F6<0.005),\"<1%\",TEXT(F6,\"0%\"))","v":"61%"},null,{"$f":"E6","v":"Have attended training or education programs"},{"$f":"F6","v":0.61083743842364535},null,{"$f":"TEXT(F9+F10,\"##0%\")&\" reported an impact as a result of the training\"","v":"61% reported an impact as a result of the training"},null," ",null,"Erosion",null,"Yes",0.61083743842364535,0.32,0.5957446808510638,0.8214285714285714,0.59183673469387754,0.52173913043478259,0.77419354838709675,0.51898734177215189,0.65625,0.75]
[null,null,null,null,null,null,null,null,null,null,null,{"$f":"TEXT(ROUND(F11,2)+ROUND(F12,2),\"##0%\")&\" reported minimal or no impact\"","v":"36% reported minimal or no impact"},null," "]
[null,null,null,null,"Base:",{"$f":"INDEX($S8:$AB8,1,1)","v":124},null,null,{"$f":"E9","v":"Significant impact"},0.11290322580645161,null,null,null," ",null,null,null,"Base",124,8,28,23,29,12,24,41,63,18]
[null,null,null,null,"Significant impact",0.11290322580645161,{"$f":"IF(AND(F9>0,F9<0.005),\"<1%\",TEXT(F9,\"0%\"))","v":"11%"},null,"Some impact",0.5,null,null,null," ",null,null,null,"Significant impact",0.11290322580645161,0,0.10714285714285714,8.6956521739130432E-2,0.17241379310344829,0.16666666666666666,8.3333333333333329E-2,7.3170731707317069E-2,0.12698412698412698,0.16666666666666666]
[null,null,null,null,"Some impact",0.5,{"$f":"IF(AND(F10>0,F10<0.005),\"<1%\",TEXT(F10,\"0%\"))","v":"50%"},null,"Minimal impact",0.21774193548387097,null,null,null," ",null,null,null,"Some impact",0.5,0.375,0.4642857142857143,0.52173913043478259,0.48275862068965519,0.5,0.58333333333333337,0.48780487804878048,0.46031746031746029,0.66666666666666663]
[null,null,null,null,"Minimal impact",0.21774193548387097,{"$f":"IF(AND(F11>0,F11<0.005),\"<1%\",TEXT(F11,\"0%\"))","v":"22%"},null,"No impact",0.13709677419354838,null,null,null," ",null,null,null,"Minimal impact",0.21774193548387097,0.25,0.25,0.21739130434782608,0.17241379310344829,0.25,0.20833333333333334,0.14634146341463414,0.30158730158730157,5.5555555555555552E-2]
[null,null,null,null,"No impact",0.13709677419354838,{"$f":"IF(AND(F12>0,F12<0.005),\"<1%\",TEXT(F12,\"0%\"))","v":"14%"},null,"Not sure",3.2258064516129031E-2,null,null,null," ",null,null,null,"No impact",0.13709677419354838,0.375,0.14285714285714285,0.17391304347826086,6.8965517241379309E-2,8.3333333333333329E-2,0.125,0.24390243902439024,9.5238095238095233E-2,5.5555555555555552E-2]
[null,null,null,null,"Not sure",3.2258064516129031E-2,{"$f":"IF(AND(F13>0,F13<0.005),\"<1%\",TEXT(F13,\"0%\"))","v":"3%"},null,null,null,null,null,null," ",null,null,null,"Not sure",3.2258064516129031E-2,0,3.5714285714285712E-2,0,0.10344827586206896,0,0,4.878048780487805E-2,1.5873015873015872E-2,5.5555555555555552E-2]
[]
[]
[]
[]
[null,null,"Focus - Segment",null,null,null,null,null,null,null,null,null,null," "]
[null,null,null,null,"Base",{"$f":"INDEX($S5:$AB5,1,$A$1)","v":203},null,null,"FOR CHART",null,null,"Label",null," "]
[null,null,null,null,"Have attended training or education programs",{"$f":"INDEX($S6:$AB6,1,$A$1)","v":0.61083743842364535},{"$f":"IF(AND(F20>0,F20<0.005),\"<1%\",TEXT(F20,\"0%\"))","v":"61%"},null,{"$f":"E20","v":"Have attended training or education programs"},{"$f":"F20","v":0.61083743842364535},null,{"$f":"TEXT(F23+F24,\"##0%\")&\" reported an impact as a result of the training\"","v":"61% reported an impact as a result of the training"},null," "]
[null,null,null,null,null,null,null,null,null,null,null,{"$f":"TEXT(F25+F26,\"##0%\")&\" reported minimal or no impact\"","v":"35% reported minimal or no impact"},null," "]
[null,null,null,null,"Base:",{"$f":"INDEX($S8:$AB8,1,$A$1)","v":124},null,null,{"$f":"E23","v":"Significant impact"},{"$f":"F23","v":0.11290322580645161}]
[null,null,null,null,"Significant impact",0.11290322580645161,{"$f":"IF(AND(F23>0,F23<0.005),\"<1%\",TEXT(F23,\"0%\"))","v":"11%"},null,{"$f":"E24","v":"Some impact"},{"$f":"F24","v":0.5}]
[null,null,null,null,"Some impact",0.5,{"$f":"IF(AND(F24>0,F24<0.005),\"<1%\",TEXT(F24,\"0%\"))","v":"50%"},null,"Minimal impact",0.21774193548387097]
[null,null,null,null,"Minimal impact",0.21774193548387097,{"$f":"IF(AND(F25>0,F25<0.005),\"<1%\",TEXT(F25,\"0%\"))","v":"22%"},null,"No impact",0.13709677419354838]
[null,null,null,null,"No impact",0.13709677419354838,{"$f":"IF(AND(F26>0,F26<0.005),\"<1%\",TEXT(F26,\"0%\"))","v":"14%"},null,"Not sure",3.2258064516129031E-2]
[null,null,null,null,"Not sure",3.2258064516129031E-2,{"$f":"IF(AND(F27>0,F27<0.005),\"<1%\",TEXT(F27,\"0%\"))","v":"3%"}]

{"sheet":"Off-Farm Training","index":50,"n_rows":29,"n_cols":19,"rows_kept":29,"cut":false,"hidden":false,"merged":[[28,2,29,18],[0,4,3,16],[0,17,1,19],[4,4,5,16],[6,2,7,9],[6,11,7,18]]}
[null,null,null,null,"2017 Grower Survey",null,null,null,null,null,null,null,null,null,null,null,null,"Data in Focus:"]
[]
[]
[]
[null,null,null,null,"On-Farm Training and Labour Needs - Suitable Off-Farm Training"]
[]
[null,null,"Proportion of growers able to find suitable off-farm training \nfor themselves and staff in. . .",null,null,null,null,null,null,null,null,{"$f":"\"Results - \"&'Data - Off-Farm Training'!F1&\" growers\"","v":"Results - All cotton growers"}]
[]
[]
[]
[]
[]
[]
[]
[]
[]
[]
[]
[]
[]
[]
[]
[]
[]
[]
[]
[null,null,{"$f":"\"Base: all cotton growers; n = \"&'Data - Off-Farm Training'!F5&\".\"","v":"Base: all cotton growers; n = 203."},null,null,null,null,null,null,{"$f":"IF('HIDDEN - Backend'!Q17=1,\"Source: 2017 Grower Survey, CRDC\",\"\")","v":""},null,{"$f":"IF('Data - Off-Farm Training'!A1=1,\"\",\"Base: \"&'Data - Off-Farm Training'!F1&\" growers; n = \"&'Data - Off-Farm Training'!F17&\".\")","v":""},null,null,null,null,null,null,{"$f":"IF(AND('HIDDEN - Backend'!Q17=1,'HIDDEN - Backend'!Q3>1),\"Source: 2017 Grower Survey, CRDC\",\"\")","v":""}]
[]
[null,null,"Question: Are you able to find suitable off-farm training for you and your staff in. . . . ?\n^Multiple responses accepted. Results may not add to 100%."]

{"sheet":"Data - Off-Farm Training","index":51,"n_rows":23,"n_cols":28,"rows_kept":23,"cut":false,"hidden":true,"merged":[]}
[{"$f":"'HIDDEN - Backend'!Q3","v":1},null,null,null,"Segment",{"$f":"INDEX($S1:$AB1,1,$A$1)","v":"All cotton"},null,null,null,null,null,null,null," ",null,null,null,null,"All cotton","Central Queensland","Darling Downs","Macintyre - Balonne","Northern NSW","Macquarie","Southern NSW","Small farm","Medium farm","Large farm"]
[null,null,"CHARTS",null,null,null,null,null,null,null,null,null,null," ",null,null,"DATA"]
[null,null,null,null,null,null,null,null,null,null,null,null,null," "]
[null,null,"Focus - Overall",null,null,null,"Rank",null,null,"Re-order",null,"Label",null," ",null,null,null,null,"Overall","Central Queensland","Darling Downs","Macintyre - Balonne","Northern NSW","Macquarie","Southern NSW","Small (< 1,000 ha)","Medium (1,000 - 5,000 ha)","Large (> 5,000 ha)"]
[null,null,null,null,"Base",{"$f":"INDEX($S5:$AB5,1,1)","v":203},null,null,null,null,null,null,null," ",null,null,null,"Base",203,25,47,28,49,23,31,79,96,24]
[null,null,null,null,"Farm business management",{"$f":"INDEX($S6:$AB6,1,1)","v":0.63184079601990051},{"$f":"RANK(F6,$F$6:$F$11)","v":4},null,1,{"$f":"INDEX($E$6:$G$11,MATCH($I6,$G$6:$G$11,0),1)","v":"Chemical use"},{"$f":"INDEX($E$6:$G$11,MATCH($I6,$G$6:$G$11,0),2)","v":0.92610837438423643},{"$f":"IF(AND(K6>0,K6<0.005),\"<1%\",TEXT(K6,\"0%\"))","v":"93%"},null," ",null,null,null,"Farm business management",0.63184079601990051,0.52,0.57777777777777772,0.5714285714285714,0.73469387755102045,0.52173913043478259,0.77419354838709675,0.59493670886075944,0.62105263157894741,0.79166666666666663]
[null,null,null,null,"Leadership",0.53500000000000003,{"$f":"RANK(F7,$F$6:$F$11)+COUNTIF($G6:G$6,RANK(F7,$F$6:$F$11))","v":5},null,2,{"$f":"INDEX($E$6:$G$11,MATCH($I7,$G$6:$G$11,0),1)","v":"Farm work health and safety"},{"$f":"INDEX($E$6:$G$11,MATCH($I7,$G$6:$G$11,0),2)","v":0.75742574257425743},{"$f":"IF(AND(K7>0,K7<0.005),\"<1%\",TEXT(K7,\"0%\"))","v":"76%"},null," ",null,null,null,"Leadership",0.53500000000000003,0.56000000000000005,0.46666666666666667,0.5,0.51020408163265307,0.56521739130434778,0.66666666666666663,0.51898734177215189,0.52631578947368418,0.625]
[null,null,null,null,"Farm work health and safety",0.75742574257425743,{"$f":"RANK(F8,$F$6:$F$11)+COUNTIF($G$6:G7,RANK(F8,$F$6:$F$11))","v":2},null,3,"Water, soils and nutrition",0.71144278606965172,"71%",null,null,null,null,null,"Farm work health and safety",0.75742574257425743,0.8,0.68085106382978722,0.8571428571428571,0.73469387755102045,0.60869565217391308,0.9,0.73417721518987344,0.76041666666666663,0.83333333333333337]
[null,null,null,null,"Farm skills development",0.52736318407960203,{"$f":"RANK(F9,$F$6:$F$11)+COUNTIF($G$6:G8,RANK(F9,$F$6:$F$11))","v":6},null,4,"Farm business management",0.63184079601990051,"63%",null,null,null,null,null,"Farm skills development",0.52736318407960203,0.6,0.47826086956521741,0.4642857142857143,0.5714285714285714,0.47826086956521741,0.56666666666666665,0.53164556962025311,0.44791666666666669,0.83333333333333337]
[null,null,null,null,"Water, soils and nutrition",0.71144278606965172,{"$f":"RANK(F10,$F$6:$F$11)+COUNTIF($G$6:G9,RANK(F10,$F$6:$F$11))","v":3},null,5,"Leadership",0.53500000000000003,"54%",null,null,null,null,null,"Water, soils and nutrition",0.71144278606965172,0.8,0.64444444444444449,0.6428571428571429,0.73469387755102045,0.60869565217391308,0.83870967741935487,0.72151898734177211,0.69473684210526321,0.70833333333333337]
[null,null,null,null,"Chemical use",0.92610837438423643,{"$f":"RANK(F11,$F$6:$F$11)+COUNTIF($G$6:G10,RANK(F11,$F$6:$F$11))","v":1},null,6,"Farm skills development",0.52736318407960203,"53%",null,null,null,null,null,"Chemical use",0.92610837438423643,0.92,0.8936170212765957,0.9285714285714286,1,0.82608695652173914,0.93548387096774188,0.87341772151898733,0.94791666666666663,1]
[]
[]
[]
[]
[null,null,"Focus - Segment",null,null,null,null,null,null,"Re-order to same order as above",null,"Label",null," "]
[null,null,null,null,"Base",{"$f":"INDEX($S5:$AB5,1,$A$1)","v":203},null,null,null,null,null,null,null," "]
[null,null,null,null,"Farm business management",0.63184079601990051,{"$f":"IF(AND(F18>0,F18<0.005),\"<1%\",TEXT(F18,\"0%\"))","v":"63%"},null,null,{"$f":"INDEX($E$18:$G$23,MATCH($J6,$E$18:$E$23,0),1)","v":"Chemical use"},{"$f":"INDEX($E$18:$G$23,MATCH($J6,$E$18:$E$23,0),2)","v":0.92610837438423643},{"$f":"IF(AND(K18>0,K18<0.005),\"<1%\",TEXT(K18,\"0%\"))","v":"93%"},null," "]
[null,null,null,null,"Leadership",0.53500000000000003,{"$f":"IF(AND(F19>0,F19<0.005),\"<1%\",TEXT(F19,\"0%\"))","v":"54%"},null,null,"Farm work health and safety",0.75742574257425743,{"$f":"IF(AND(K19>0,K19<0.005),\"<1%\",TEXT(K19,\"0%\"))","v":"76%"},null," "]
[null,null,null,null,"Farm work health and safety",0.75742574257425743,"76%",null,null,"Water, soils and nutrition",0.71144278606965172,{"$f":"IF(AND(K20>0,K20<0.005),\"<1%\",TEXT(K20,\"0%\"))","v":"71%"}]
[null,null,null,null,"Farm skills development",0.52736318407960203,"53%",null,null,"Farm business management",0.63184079601990051,"63%"]
[null,null,null,null,"Water, soils and nutrition",0.71144278606965172,"71%",null,null,"Leadership",0.53500000000000003,"54%"]
[null,null,null,null,"Chemical use",0.92610837438423643,"93%",null,null,"Farm skills development",0.52736318407960203,"53%"]

{"sheet":"Labour Hire Companies","index":52,"n_rows":29,"n_cols":19,"rows_kept":29,"cut":false,"hidden":false,"merged":[[0,4,3,16],[0,17,1,19],[4,4,5,16],[6,7,7,13],[28,2,29,18]]}
[null,null,null,null,"2017 Grower Survey"]
[]
[]
[]
[null,null,null,null,"On-Farm Training and Labour Needs - Use of Labour Hire Companies"]
[]
[null,null,null,null,null,null,null,"Proportion of growers who used labour hire companies\nto source staff for the 2016-17 season"]
[]
[]
[]
[]
[]
[]
[]
[]
[]
[]
[]
[]
[]
[]
[]
[]
[]
[]
[]
[null,null,{"$f":"\"Base: all cotton growers; n = \"&'Data - Labour Hire Companies'!F5&\".\"","v":"Base: all cotton growers; n = 203."},null,null,null,null,null,null,null,null,null,null,null,null,null,null,null,{"$f":"IF('HIDDEN - Backend'!Q17=1,\"Source: 2017 Grower Survey, CRDC\",\"\")","v":""}]
[]
[null,null,"Question: Across the 2016-17 cotton growing season, did you use labour hire companies to source workers at any point?"]

{"sheet":"Data - Labour Hire Companies","index":53,"n_rows":13,"n_cols":28,"rows_kept":13,"cut":false,"hidden":true,"merged":[]}
[{"$f":"'HIDDEN - Backend'!Q3","v":1},null,null,null,"Segment",{"$f":"INDEX($S1:$AB1,1,$A$1)","v":"All cotton"},null,null,null,null,null,null,null," ",null,null,null,null,"All cotton","Central Queensland","Darling Downs","Macintyre - Balonne","Northern NSW","Macquarie","Southern NSW","Small farm","Medium farm","Large farm"]
[null,null,"CHARTS",null,null,null,null,null,null,null,null,null,null," ",null,null,"DATA"]
[null,null,null,null,null,null,null,null,null,null,null,null,null," "]
[null,null,"Focus - Overall",null,null,null,null,null,"Small (< 1,000 ha)","Medium (1,000 - 5,000 ha)","Large (> 5,000 ha)",null,null," ",null,null,null,null,"Overall","Central Queensland","Darling Downs","Macintyre - Balonne","Northern NSW","Macquarie","Southern NSW","Small (< 1,000 ha)","Medium (1,000 - 5,000 ha)","Large (> 5,000 ha)"]
[null,null,null,null,"Base",{"$f":"INDEX($S5:$AB5,1,1)","v":203},null,null,{"$f":"Z5","v":79},{"$f":"AA5","v":96},{"$f":"AB5","v":24},null,null," ",null,null,null,"Base",203,25,47,28,49,23,31,79,96,24]
[null,null,null,null,"Used labour hire companies",{"$f":"INDEX($S6:$AB6,1,1)","v":0.1625615763546798},{"$f":"IF(AND(F6>0,F6<0.005),\"<1%\",TEXT(F6,\"0%\"))","v":"16%"},{"$f":"90-(180*G6)","v":61.2},{"$f":"Z6","v":7.5949367088607597E-2},0.20833333333333334,0.29166666666666669,null,null," ",null,null,null,"Used labour hire companies",0.1625615763546798,0.04,4.2553191489361701E-2,0.25,0.16326530612244897,8.6956521739130432E-2,0.41935483870967744,7.5949367088607597E-2,0.20833333333333334,0.29166666666666669]
[null,null,null,null,"Did not use",{"$f":"1-F6","v":0.83743842364532017},{"$f":"IF(AND(F7>0,F7<0.005),\"<1%\",TEXT(F7,\"0%\"))","v":"84%"},null,null,null,null,null,null," "]
[null,null,null,null,null,null,null,null,null,null,null,null,null,null,null,null,null,"Base",33,1,2,7,8,2,13,6,20,7]
[null,null,null,null,null,null,null,null,null,null,null,null,null,null,null,null,null,"Check to see if labour hires are paid correctly",0.75757575757575757,1,0.5,0.7142857142857143,0.875,1,0.69230769230769229,0.66666666666666663,0.8,0.7142857142857143]
[]
[null,null,null,null,"Base",{"$f":"INDEX($S8:$AB8,1,1)","v":33}]
[null,null,null,null,"Check to see if labour hires are paid correctly",{"$f":"INDEX($S9:$AB9,1,1)","v":0.75757575757575757},{"$f":"IF(AND(F12>0,F12<0.005),\"<1%\",TEXT(F12,\"0%\"))","v":"76%"},{"$f":"90-(180*G12)","v":-46.800000000000011}]
[null,null,null,null,"Do not check",{"$f":"1-F12","v":0.24242424242424243},{"$f":"IF(AND(F13>0,F13<0.005),\"<1%\",TEXT(F13,\"0%\"))","v":"24%"}]

{"sheet":"Community Contribution","index":54,"n_rows":29,"n_cols":19,"rows_kept":29,"cut":false,"hidden":false,"merged":[[28,2,29,9],[28,11,29,18],[0,4,3,16],[0,17,1,19],[4,4,5,16],[6,2,7,9],[6,11,7,18]]}
[null,null,null,null,"2017 Grower Survey"]
[]
[]
[]
[null,null,null,null,"Community Contribution"]
[]
[null,null,"Where their business expenses went during the 2016-17 growing season",null,null,null,null,null,null,null,null,"Community activities they are involved in"]
[]
[]
[]
[]
[]
[]
[]
[]
[]
[]
[]
[]
[]
[]
[]
[]
[]
[]
[]
[null,null,{"$f":"\"Base: all cotton growers; n = \"&'Data - Community Contribution'!F5&\".\"","v":"Base: all cotton growers; n = 203."},null,null,null,null,null,null,{"$f":"IF('HIDDEN - Backend'!Q17=1,\"Source: 2017 Grower Survey, CRDC\",\"\")","v":""},null,{"$f":"\"Base: all cotton growers; n = \"&'Data - Community Contribution'!F12&\".\"","v":"Base: all cotton growers; n = 203."},null,null,null,null,null,null,{"$f":"IF('HIDDEN - Backend'!Q17=1,\"Source: 2017 Grower Survey, CRDC\",\"\")","v":""}]
[]
[null,null,"Question: Thinking of your total business expenses for the 2016-17 growing season, can you estimate what proportion would be spent. . .?",null,null,null,null,null,null,null,null,"Question: Which if any of the following local community activities are you involved in?\n^Multiple repsonses accepted. Results may not add to 100%."]

{"sheet":"Data - Community Contribution","index":55,"n_rows":20,"n_cols":28,"rows_kept":20,"cut":false,"hidden":true,"merged":[]}
[{"$f":"'HIDDEN - Backend'!Q3","v":1},null,null,null,"Segment",{"$f":"INDEX($S1:$AB1,1,$A$1)","v":"All cotton"},null,null,null,null,null,null,null," ",null,null,null,null,"All cotton","Central Queensland","Darling Downs","Macintyre - Balonne","Northern NSW","Macquarie","Southern NSW","Small farm","Medium farm","Large farm"]
[null,null,"CHARTS",null,null,null,null,null,null,null,null,null,null," ",null,null,"DATA"]
[null,null,null,null,null,null,null,null,null,null,null,null,null," "]
[null,null,"Focus - Overall",null,null,null,null,null,null,null,null,null,null," ",null,null,null,null,"Overall","Central Queensland","Darling Downs","Macintyre - Balonne","Northern NSW","Macquarie","Southern NSW","Small (< 1,000 ha)","Medium (1,000 - 5,000 ha)","Large (> 5,000 ha)"]
[null,null,null,null,"Base",{"$f":"INDEX($S5:$AB5,1,1)","v":203},null,null,null,null,null,null,null," ",null,null,null,"Base",203,25,47,28,49,23,31,79,96,24]
[null,null,null,null,"In the local area",{"$f":"INDEX($S6:$AB6,1,1)","v":0.79374384000000009},{"$f":"IF(AND(F6>0,F6<0.005),\"<1%\",TEXT(F6,\"0%\"))","v":"79%"},{"$f":"90-(180*G6)","v":-52.200000000000017},{"$f":"360+H6","v":307.79999999999995},null,null,null,null," ",null,null,null,"In the local area",0.79374384000000009,0.8256,0.78042553000000003,0.78892857000000005,0.81387754999999995,0.81913042999999996,0.74193548000000009,0.82316456000000005,0.77885417000000001,0.73041666999999999]
[null,null,null,null,"Outside the local area but in the state",0.13975248000000001,{"$f":"IF(AND(F7>0,F7<0.005),\"<1%\",TEXT(F7,\"0%\"))","v":"14%"},null,null,null,null,null,null," ",null,null,null,"Outside the local area but in the state",0.13975248000000001,0.1168,0.16297872000000002,0.14821429,0.11270833,0.13086956999999999,0.16387097,0.12063291,0.14479167000000001,0.19375000000000001]
[null,null,null,null,"Outside of the state but in Australia",5.0792080000000003E-2,{"$f":"IF(AND(F8>0,F8<0.005),\"<1%\",TEXT(F8,\"0%\"))","v":"5%"},null,null,null,null,null,null,null,null,null,null,"Outside of the state but in Australia",5.0792080000000003E-2,2.2400000000000003E-2,3.446809E-2,5.5357139999999999E-2,6.8333329999999998E-2,4.478261E-2,7.1612900000000007E-2,2.835443E-2,6.7812499999999998E-2,6.0833329999999998E-2]
[null,null,null,null,"Outside Australia",1.6732670000000002E-2,{"$f":"IF(AND(F9>0,F9<0.005),\"<1%\",TEXT(F9,\"0%\"))","v":"2%"},null,null,null,null,null,null,null,null,null,null,"Outside Australia",1.6732670000000002E-2,3.5200000000000002E-2,2.2127659999999997E-2,7.4999999999999997E-3,8.9583300000000005E-3,5.2173899999999997E-3,2.2580650000000001E-2,2.7848099999999997E-2,8.5416699999999995E-3,1.4999999999999999E-2]
[]
[null,null,null,null,null,null,"Rank",null,null,"Re-order",null,"Label"]
[null,null,null,null,"Base",{"$f":"INDEX($S12:$AB12,1,1)","v":203},null,null,null,null,null,null,null,null,null,null,null,"Base",203,25,47,28,49,23,31,79,96,24]
[null,null,null,null,"I’m actively involved in local community groups",{"$f":"INDEX($S13:$AB13,1,1)","v":0.66995099999999996},{"$f":"RANK(F13,$F$13:$F$18)","v":4},null,1,{"$f":"INDEX($E$13:$G$20,MATCH($I13,$G$13:$G$20,0),1)","v":"I regularly buy locally for our business needs"},{"$f":"INDEX($E$13:$G$20,MATCH($I13,$G$13:$G$20,0),2)","v":0.94088700000000003},{"$f":"IF(AND(K13>0,K13<0.005),\"<1%\",TEXT(K13,\"0%\"))","v":"94%"},null,null,null,null,null,"I’m actively involved in local community groups",0.66995099999999996,0.56000000000000005,0.57446799999999998,0.82142899999999996,0.71428599999999998,0.82608700000000002,0.58064499999999997,0.607595,0.6875,0.875]
[null,null,null,null,"I’m actively involved in local sports",0.55172399999999999,{"$f":"RANK(F14,$F$13:$F$18)+COUNTIF($G$13:G13,RANK(F14,$F$13:$F$18))","v":5},null,2,{"$f":"INDEX($E$13:$G$20,MATCH($I14,$G$13:$G$20,0),1)","v":"I regularly attend local events"},{"$f":"INDEX($E$13:$G$20,MATCH($I14,$G$13:$G$20,0),2)","v":0.73891600000000002},{"$f":"IF(AND(K14>0,K14<0.005),\"<1%\",TEXT(K14,\"0%\"))","v":"74%"},null,null,null,null,null,"I’m actively involved in local sports",0.55172399999999999,0.52,0.51063800000000004,0.60714299999999999,0.53061199999999997,0.69565200000000005,0.51612899999999995,0.43037999999999998,0.60416700000000001,0.70833299999999999]
[null,null,null,null,"I regularly attend local events",0.73891600000000002,{"$f":"RANK(F15,$F$13:$F$18)+COUNTIF($G$13:G14,RANK(F15,$F$13:$F$18))","v":2},null,3,"I regularly make donations or sponsor local charities or activities",0.70935999999999999,"71%",null,null,null,null,null,"I regularly attend local events",0.73891600000000002,0.64,0.63829800000000003,0.85714299999999999,0.77551000000000003,0.91304300000000005,0.67741899999999999,0.69620300000000002,0.76041700000000001,0.875]
[null,null,null,null,"I’m actively involved with the local schools (primary/secondary)",0.37438399999999999,{"$f":"RANK(F16,$F$13:$F$18)+COUNTIF($G$13:G15,RANK(F16,$F$13:$F$18))","v":6},null,4,"I’m actively involved in local community groups",0.66995099999999996,"67%",null,null,null,null,null,"I’m actively involved with the local schools (primary/secondary)",0.37438399999999999,0.52,0.29787200000000003,0.42857099999999998,0.32653100000000002,0.43478299999999998,0.35483900000000002,0.26582299999999998,0.4375,0.54166700000000001]
[null,null,null,null,"I regularly make donations or sponsor local charities or activities",0.70935999999999999,{"$f":"RANK(F17,$F$13:$F$18)+COUNTIF($G$13:G16,RANK(F17,$F$13:$F$18))","v":3},null,5,"I’m actively involved in local sports",0.55172399999999999,"55%",null,null,null,null,null,"I regularly make donations or sponsor local charities or activities",0.70935999999999999,0.6,0.63829800000000003,0.85714299999999999,0.75510200000000005,0.782609,0.64516099999999998,0.65822800000000004,0.73958299999999999,0.83333299999999999]
[null,null,null,null,"I regularly buy locally for our business needs",0.94088700000000003,{"$f":"RANK(F18,$F$13:$F$18)+COUNTIF($G$13:G17,RANK(F18,$F$13:$F$18))","v":1},null,6,"I’m actively involved with the local schools (primary/secondary)",0.37438399999999999,"37%",null,null,null,null,null,"I regularly buy locally for our business needs",0.94088700000000003,1,0.87234,0.96428599999999998,0.95918400000000004,0.95652199999999998,0.93548399999999998,0.92405099999999996,0.94791700000000001,1]
[null,null,null,null,"I’m involved in the community in other ways (please describe your involvement)",0.22167500000000001,7,null,7,"I’m involved in the community in other ways (please describe your involvement)",0.22167500000000001,"22%",null,null,null,null,null,"I’m involved in the community in other ways (please describe your involvement)",0.22167500000000001,0.08,0.25531900000000002,0.14285700000000001,0.26530599999999999,0.30434800000000001,0.22580600000000001,0.21518999999999999,0.21875,0.25]
[null,null,null,null,"I’m not actively involved with the community",4.9259999999999998E-3,8,null,8,"I’m not actively involved with the community",4.9259999999999998E-3,"<1%",null,null,null,null,null,"I’m not actively involved with the community",4.9259999999999998E-3,0,0,3.5714000000000003E-2,0,0,0,0,1.0416999999999999E-2,0]

{"sheet":"Membership of Local CGA","index":56,"n_rows":29,"n_cols":19,"rows_kept":29,"cut":false,"hidden":false,"merged":[[28,2,29,18],[0,4,3,16],[0,17,1,19],[4,4,5,16],[6,2,7,9],[6,11,7,18]]}
[null,null,null,null,"2017 Grower Survey",null,null,null,null,null,null,null,null,null,null,null,null,"Data in Focus:"]
[]
[]
[]
[null,null,null,null,"Cotton Grower Association - Membership of Local CGA"]
[]
[null,null,"Membership of a local Cotton Growers Association",null,null,null,null,null,null,null,null,{"$f":"\"Results - \"&'Data - Membership of Local CGA'!F1&\" growers\"","v":"Results - All cotton growers"}]
[]
[]
[]
[]
[]
[]
[]
[]
[]
[]
[]
[]
[]
[]
[]
[]
[]
[]
[]
[null,null,{"$f":"\"Base: all cotton growers; n = \"&'Data - Membership of Local CGA'!F5&\".\"","v":"Base: all cotton growers; n = 203."},null,null,null,null,null,null,{"$f":"IF('HIDDEN - Backend'!Q17=1,\"Source: 2017 Grower Survey, CRDC\",\"\")","v":""},null,{"$f":"IF('Data - Membership of Local CGA'!A1=1,\"\",\"Base: \"&'Data - Membership of Local CGA'!F1&\" growers; n = \"&'Data - Membership of Local CGA'!F14&\".\")","v":""},null,null,null,null,null,null,{"$f":"IF(AND('HIDDEN - Backend'!Q17=1,'HIDDEN - Backend'!Q3>1),\"Source: 2017 Grower Survey, CRDC\",\"\")","v":""}]
[]
[null,null,"Question: Are you a member of your local Cotton Grower Association (CGA)?"]

{"sheet":"Data - Membership of Local CGA","index":57,"n_rows":17,"n_cols":28,"rows_kept":17,"cut":false,"hidden":true,"merged":[]}
[{"$f":"'HIDDEN - Backend'!Q3","v":1},null,null,null,"Segment",{"$f":"INDEX($S1:$AB1,1,$A$1)","v":"All cotton"},null,null,null,null,null,null,null," ",null,null,null,null,"All cotton","Central Queensland","Darling Downs","Macintyre - Balonne","Northern NSW","Macquarie","Southern NSW","Small farm","Medium farm","Large farm"]
[null,null,"CHARTS",null,null,null,null,null,null,null,null,null,null," ",null,null,"DATA"]
[null,null,null,null,null,null,null,null,null,null,null,null,null," "]
[null,null,"Focus - Overall",null,null,null,null,null,null,null,null,null,null," ",null,null,null,null,"Overall","Central Queensland","Darling Downs","Macintyre - Balonne","Northern NSW","Macquarie","Southern NSW","Small (< 1,000 ha)","Medium (1,000 - 5,000 ha)","Large (> 5,000 ha)"]
[null,null,null,null,"Base",{"$f":"INDEX($S5:$AB5,1,1)","v":203},null,null,"Rotation:","Note: Rotation based on No category",null,null,null," ",null,null,null,"Base",203,25,47,28,49,23,31,79,96,24]
[null,null,null,null,"No",{"$f":"INDEX($S6:$AB6,1,1)","v":0.1625615763546798},{"$f":"IF(AND(F6>0,F6<0.005),\"<1%\",TEXT(F6,\"0%\"))","v":"16%"},null,{"$f":"IF(270-(180*F6)<0,360-ABS(270-(180*F6)),270-(180*F6))","v":240.73891625615764},null,null,null,null," ",null,null,null,"No",0.1625615763546798,0.28000000000000003,0.14893617021276595,0.14285714285714285,8.1632653061224483E-2,0.13043478260869565,0.25806451612903225,0.20253164556962025,0.125,0.125]
[null,null,null,null,"Not sure / don’t know",{"$f":"INDEX($S7:$AB7,1,1)","v":3.4482758620689655E-2},{"$f":"IF(AND(F7>0,F7<0.005),\"<1%\",TEXT(F7,\"0%\"))","v":"3%"},null,null,null,null,null,null," ",null,null,null,"Not sure / don’t know",3.4482758620689655E-2,0.04,6.3829787234042548E-2,0,2.0408163265306121E-2,0,6.4516129032258063E-2,6.3291139240506333E-2,1.0416666666666666E-2,4.1666666666666664E-2]
[null,null,null,null,"Yes",0.80295566502463056,{"$f":"IF(AND(F8>0,F8<0.005),\"<1%\",TEXT(F8,\"0%\"))","v":"80%"},null,null,null,null,null,null,null,null,null,null,"Yes",0.80295566502463056,0.68,0.78723404255319152,0.8571428571428571,0.89795918367346939,0.86956521739130432,0.67741935483870963,0.73417721518987344,0.86458333333333337,0.83333333333333337]
[]
[]
[]
[]
[null,null,"Focus - Segment",null,null,null,null,null,null,null,null,null,null," "]
[null,null,null,null,"Base",{"$f":"INDEX($S5:$AB5,1,$A$1)","v":203},null,null,"Rotation:",null,null,null,null," "]
[null,null,null,null,"No",{"$f":"INDEX($S6:$AB6,1,$A$1)","v":0.1625615763546798},{"$f":"IF(AND(F15>0,F15<0.005),\"<1%\",TEXT(F15,\"0%\"))","v":"16%"},null,{"$f":"IF(270-(180*F15)<0,360-ABS(270-(180*F15)),270-(180*F15))","v":240.73891625615764},null,null,null,null," "]
[null,null,null,null,"Not sure / don’t know",3.4482758620689655E-2,{"$f":"IF(AND(F16>0,F16<0.005),\"<1%\",TEXT(F16,\"0%\"))","v":"3%"},null,null,null,null,null,null," "]
[null,null,null,null,"Yes",0.80295566502463056,"80%",null,null,null,null,null,null," "]

{"sheet":"Information Sharing","index":58,"n_rows":29,"n_cols":19,"rows_kept":29,"cut":false,"hidden":false,"merged":[[28,2,29,9],[28,11,29,18],[0,4,3,16],[0,17,1,19],[4,4,5,16],[6,2,7,9],[6,11,7,18]]}
[null,null,null,null,"2017 Grower Survey"]
[]
[]
[]
[null,null,null,null,"Information Sharing"]
[]
[null,null,"Information they would be willing to share with others in the industry",null,null,null,null,null,null,null,null,"Growers they would share information with about farming practices"]
[]
[]
[]
[]
[]
[]
[]
[]
[]
[]
[]
[]
[]
[]
[]
[]
[]
[]
[]
[null,null,{"$f":"\"Base: all cotton growers; n = \"&'Data - Information Sharing'!F5&\".\"","v":"Base: all cotton growers; n = 202."},null,null,null,null,null,null,{"$f":"IF('HIDDEN - Backend'!Q17=1,\"Source: 2017 Grower Survey, CRDC\",\"\")","v":""},null,{"$f":"\"Base: all cotton growers; n = \"&'Data - Information Sharing'!F20&\".\"","v":"Base: all cotton growers; n = 199."},null,null,null,null,null,null,{"$f":"IF('HIDDEN - Backend'!Q17=1,\"Source: 2017 Grower Survey, CRDC\",\"\")","v":""}]
[]
[null,null,"Question: Which of the following information would you share with others in the industry?\n^Multiple responses accepted. Results may not add to 100%.",null,null,null,null,null,null,null,null,"Question: Would you be prepared to share information about your farming practices and cotton business with the following groups of growers?"]

{"sheet":"Data - Information Sharing","index":59,"n_rows":24,"n_cols":28,"rows_kept":24,"cut":false,"hidden":true,"merged":[]}
[{"$f":"'HIDDEN - Backend'!Q3","v":1},null,null,null,"Segment",{"$f":"INDEX($S1:$AB1,1,$A$1)","v":"All cotton"},null,null,null,null,null,null,null," ",null,null,null,null,"All cotton","Central Queensland","Darling Downs","Macintyre - Balonne","Northern NSW","Macquarie","Southern NSW","Small farm","Medium farm","Large farm"]
[null,null,"CHARTS",null,null,null,null,null,null,null,null,null,null," ",null,null,"DATA"]
[null,null,null,null,null,null,null,null,null,null,null,null,null," "]
[null,null,"Focus - Overall",null,null,null,"Rank",null,null,"Re-order",null,"Label",null," ",null,null,null,null,"Overall","Central Queensland","Darling Downs","Macintyre - Balonne","Northern NSW","Macquarie","Southern NSW","Small (< 1,000 ha)","Medium (1,000 - 5,000 ha)","Large (> 5,000 ha)"]
[null,null,null,null,"Base",{"$f":"INDEX($S5:$AB5,1,1)","v":202},null,null,null,null,null,null,null," ",null,null,null,"Base",202,25,47,28,48,23,31,79,96,24]
[null,null,null,null,"Details of farming inputs",{"$f":"INDEX($S6:$AB6,1,1)","v":0.93069299999999999},{"$f":"RANK(F6,$F$6:$F$12)","v":1},null,1,{"$f":"INDEX($E$6:$G$14,MATCH($I6,$G$6:$G$14,0),1)","v":"Details of farming inputs"},{"$f":"INDEX($E$6:$G$14,MATCH($I6,$G$6:$G$14,0),2)","v":0.93069299999999999},{"$f":"IF(AND(K6>0,K6<0.005),\"<1%\",TEXT(K6,\"0%\"))","v":"93%"},null," ",null,null,null,"Details of farming inputs",0.93069299999999999,0.96,0.91489399999999999,0.89285700000000001,0.97916700000000001,0.91304300000000005,0.90322599999999997,0.93670900000000001,0.92708299999999999,0.91666700000000001]
[null,null,null,null,"Details about your irrigation system",0.86633700000000002,{"$f":"RANK(F7,$F$6:$F$12)+COUNTIF($G$6:G6,RANK(F7,$F$6:$F$12))","v":4},null,2,{"$f":"INDEX($E$6:$G$14,MATCH($I7,$G$6:$G$14,0),1)","v":"Details about your weed and pest management practices"},{"$f":"INDEX($E$6:$G$14,MATCH($I7,$G$6:$G$14,0),2)","v":0.91089100000000001},{"$f":"IF(AND(K7>0,K7<0.005),\"<1%\",TEXT(K7,\"0%\"))","v":"91%"},null," ",null,null,null,"Details about your irrigation system",0.86633700000000002,0.92,0.78723399999999999,0.82142899999999996,0.875,0.91304300000000005,0.93548399999999998,0.88607599999999997,0.88541700000000001,0.79166700000000001]
[null,null,null,null,"Details about your weed and pest management practices",0.91089100000000001,{"$f":"RANK(F8,$F$6:$F$12)+COUNTIF($G$6:G7,RANK(F8,$F$6:$F$12))","v":2},null,3,"Details about yields across the farm",0.89108900000000002,"89%",null,null,null,null,null,"Details about your weed and pest management practices",0.91089100000000001,0.96,0.91489399999999999,0.85714299999999999,0.91666700000000001,0.95652199999999998,0.87096799999999996,0.91139199999999998,0.9375,0.83333299999999999]
[null,null,null,null,"Details about yields across the farm",0.89108900000000002,{"$f":"RANK(F9,$F$6:$F$12)+COUNTIF($G$6:G8,RANK(F9,$F$6:$F$12))","v":3},null,4,"Details about your irrigation system",0.86633700000000002,"87%",null,null,null,null,null,"Details about yields across the farm",0.89108900000000002,0.92,0.89361699999999999,0.85714299999999999,0.95833299999999999,0.73912999999999995,0.90322599999999997,0.91139199999999998,0.875,0.91666700000000001]
[null,null,null,null,"Details about your farm profitability",0.44554500000000002,{"$f":"RANK(F10,$F$6:$F$12)+COUNTIF($G$6:G9,RANK(F10,$F$6:$F$12))","v":7},null,5,"Details about how you manage staff",0.73762399999999995,"74%",null,null,null,null,null,"Details about your farm profitability",0.44554500000000002,0.4,0.46808499999999997,0.5,0.47916700000000001,0.39130399999999999,0.38709700000000002,0.45569599999999999,0.41666700000000001,0.54166700000000001]
[null,null,null,null,"Details about how you manage staff",0.73762399999999995,{"$f":"RANK(F11,$F$6:$F$12)+COUNTIF($G$6:G10,RANK(F11,$F$6:$F$12))","v":5},null,6,"Details about your future plans for the farm",0.62871299999999997,"63%",null,null,null,null,null,"Details about how you manage staff",0.73762399999999995,0.68,0.68085099999999998,0.75,0.79166700000000001,0.69565200000000005,0.80645199999999995,0.69620300000000002,0.73958299999999999,0.91666700000000001]
[null,null,null,null,"Details about your future plans for the farm",0.62871299999999997,{"$f":"RANK(F12,$F$6:$F$12)+COUNTIF($G$6:G11,RANK(F12,$F$6:$F$12))","v":6},null,7,"Details about your farm profitability",0.44554500000000002,"45%",null,null,null,null,null,"Details about your future plans for the farm",0.62871299999999997,0.64,0.51063800000000004,0.60714299999999999,0.70833299999999999,0.56521699999999997,0.74193500000000001,0.62025300000000005,0.625,0.75]
[null,null,null,null,"I’d be prepared to share other information (please outline what type of information this might include)",6.9306999999999994E-2,8,null,8,"I’d be prepared to share other information (please outline what type of information this might include)",6.9306999999999994E-2,"7%",null,null,null,null,null,"I’d be prepared to share other information (please outline what type of information this might include)",6.9306999999999994E-2,0.04,6.3829999999999998E-2,7.1429000000000006E-2,4.1667000000000003E-2,8.6957000000000007E-2,0.12903200000000001,7.5949000000000003E-2,7.2916999999999996E-2,4.1667000000000003E-2]
[null,null,null,null,"I wouldn’t be prepared to share any of this information",2.9703E-2,9,null,9,"I wouldn’t be prepared to share any of this information",2.9703E-2,"3%",null,null,null,null,null,"I wouldn’t be prepared to share any of this information",2.9703E-2,0.04,2.1277000000000001E-2,0.107143,0,0,3.2258000000000002E-2,2.5316000000000002E-2,2.0833000000000001E-2,8.3333000000000004E-2]
[]
[]
[]
[]
[null,null,null,null,null,null,null,null,"FOR CHART",null,null,null,null," ",null,null,null,null,"Overall","Central Queensland","Darling Downs","Macintyre - Balonne","Northern NSW","Macquarie","Southern NSW","Small (< 1,000 ha)","Medium (1,000 - 5,000 ha)","Large (> 5,000 ha)"]
[null,null,null,null,"Base",{"$f":"INDEX($S20:$AB20,1,1)","v":199},null,null,"Yes","No / Undecided",null,null,null," ",null,null,null,"Base",199,25,46,27,48,23,30,77,96,24]
[null,null,null,null,"Others in your valley",{"$f":"INDEX($S21:$AB21,1,1)","v":0.90049751243781095},{"$f":"IF(AND(F21>0,F21<0.005),\"<1%\",TEXT(F21,\"0%\"))","v":"90%"},null,{"$f":"F21","v":0.90049751243781095},{"$f":"1-I21","v":9.9502487562189046E-2},null,null,null," ",null,null,null,"Others in your valley",0.90049751243781095,0.96,0.93617021276595747,0.81481481481481477,0.875,0.86956521739130432,0.93548387096774188,0.9358974358974359,0.91666666666666663,0.70833333333333337]
[null,null,null,null,"Across Australian cotton industry",0.74874371859296485,{"$f":"IF(AND(F22>0,F22<0.005),\"<1%\",TEXT(F22,\"0%\"))","v":"75%"},null,{"$f":"F22","v":0.74874371859296485},{"$f":"1-I22","v":0.25125628140703515},null,null,null," ",null,null,null,"Across Australian cotton industry",0.74874371859296485,0.88,0.71739130434782605,0.70370370370370372,0.79166666666666663,0.69565217391304346,0.7,0.77922077922077926,0.72916666666666663,0.70833333333333337]
[null,null,null,null,"Developing countries",0.57788944723618085,"58%",null,{"$f":"F23","v":0.57788944723618085},{"$f":"1-I23","v":0.42211055276381915},null,null,null,null,null,null,null,"Developing countries",0.57788944723618085,0.68,0.63043478260869568,0.51851851851851849,0.625,0.34782608695652173,0.56666666666666665,0.7142857142857143,0.51041666666666663,0.41666666666666669]
[null,null,null,null,"Across global cotton industry",0.57999999999999996,"58%",null,{"$f":"F24","v":0.57999999999999996},{"$f":"1-I24","v":0.42000000000000004},null,null,null,null,null,null,null,"Across global cotton industry",0.57999999999999996,0.68,0.60869565217391308,0.6428571428571429,0.58333333333333337,0.39130434782608697,0.53333333333333333,0.69230769230769229,0.51041666666666663,0.5]

{"sheet":"Aboriginal Heritage","index":60,"n_rows":29,"n_cols":19,"rows_kept":29,"cut":false,"hidden":false,"merged":[[28,2,29,9],[28,11,29,18],[0,4,3,16],[0,17,1,19],[4,4,5,16],[6,2,7,9],[6,11,7,18]]}
[null,null,null,null,"2017 Grower Survey"]
[]
[]
[]
[null,null,null,null,"Aboriginal Heritage Site"]
[]
[null,null,"Those with an Aboriginal heritage site on their farm",null,null,null,null,null,null,null,null,"What they are doing to protect the site"]
[]
[]
[]
[]
[]
[]
[]
[]
[]
[]
[]
[]
[]
[]
[]
[]
[]
[]
[]
[null,null,{"$f":"\"Base: all cotton growers; n = \"&'Data - Aboriginal Heritage'!F5&\".\"","v":"Base: all cotton growers; n = 203."},null,null,null,null,null,null,{"$f":"IF('HIDDEN - Backend'!Q17=1,\"Source: 2017 Grower Survey, CRDC\",\"\")","v":""},null,{"$f":"\"Base: all cotton growers with an Aboriginal Heritage site; n = \"&'Data - Aboriginal Heritage'!F11&\".\"","v":"Base: all cotton growers with an Aboriginal Heritage site; n = 10."},null,null,null,null,null,null,{"$f":"IF('HIDDEN - Backend'!Q17=1,\"Source: 2017 Grower Survey, CRDC\",\"\")","v":""}]
[]
[null,null,"Question: Do you have an aboriginal heritage site on your farm?",null,null,null,null,null,null,null,null,"Question: Which of the following describes what you have in place to protect the site?\n^Multiple responses accepted. Results may not add to 100%."]

{"sheet":"Data - Aboriginal Heritage","index":61,"n_rows":18,"n_cols":28,"rows_kept":18,"cut":false,"hidden":true,"merged":[]}
[{"$f":"'HIDDEN - Backend'!Q3","v":1},null,null,null,"Segment",{"$f":"INDEX($S1:$AB1,1,$A$1)","v":"All cotton"},null,null,null,null,null,null,null," ",null,null,null,null,"All cotton","Central Queensland","Darling Downs","Macintyre - Balonne","Northern NSW","Macquarie","Southern NSW","Small farm","Medium farm","Large farm"]
[null,null,"CHARTS",null,null,null,null,null,null,null,null,null,null," ",null,null,"DATA"]
[null,null,null,null,null,null,null,null,null,null,null,null,null," "]
[null,null,"Focus - Overall",null,null,null,null,null,null,null,null,null,null," ",null,null,null,null,"Overall","Central Queensland","Darling Downs","Macintyre - Balonne","Northern NSW","Macquarie","Southern NSW","Small (< 1,000 ha)","Medium (1,000 - 5,000 ha)","Large (> 5,000 ha)"]
[null,null,null,null,"Base",{"$f":"INDEX($S5:$AB5,1,1)","v":203},null,null,null,null,null,null,null," ",null,null,null,"Base",203,25,47,28,49,23,31,79,96,24]
[null,null,null,null,"Yes",{"$f":"INDEX($S6:$AB6,1,1)","v":4.9261083743842367E-2},{"$f":"IF(AND(F6>0,F6<0.005),\"<1%\",TEXT(F6,\"0%\"))","v":"5%"},{"$f":"90-(180*G6)","v":81},null,null,null,null,null," ",null,null,null,"Yes",4.9261083743842367E-2,0.04,0,7.1428571428571425E-2,4.0816326530612242E-2,4.3478260869565216E-2,0.12903225806451613,1.2658227848101266E-2,5.2083333333333336E-2,0.16666666666666666]
[null,null,null,null,"No",0.90147783251231528,{"$f":"IF(AND(F7>0,F7<0.005),\"<1%\",TEXT(F7,\"0%\"))","v":"90%"},null,null,null,null,null,null," ",null,null,null,"No",0.90147783251231528,0.96,0.91489361702127658,0.8928571428571429,0.89795918367346939,0.86956521739130432,0.87096774193548387,0.94936708860759489,0.89583333333333337,0.79166666666666663]
[null,null,null,null,"Not sure",4.9261083743842367E-2,{"$f":"IF(AND(F8>0,F8<0.005),\"<1%\",TEXT(F8,\"0%\"))","v":"5%"},null,null,null,null,null,null,null,null,null,null,"Not sure/don’t know",4.9261083743842367E-2,0,8.5106382978723402E-2,3.5714285714285712E-2,6.1224489795918366E-2,8.6956521739130432E-2,0,3.7974683544303799E-2,5.2083333333333336E-2,4.1666666666666664E-2]
[]
[null,null,null,null,null,null,"Rank",null,null,"Re-order",null,"Label"]
[null,null,null,null,"Base",{"$f":"INDEX($S11:$AB11,1,1)","v":10},null,null,null,null,null,null,null,null,null,null,null,"Base",10,1,0,2,2,1,4,1,5,4]
[null,null,null,null,"We have measures in place to protect the site",{"$f":"INDEX($S12:$AB12,1,1)*$F$11","v":6},{"$f":"RANK(F12,$F$12:$F$14)","v":1},null,1,{"$f":"INDEX($E$12:$G$16,MATCH($I12,$G$12:$G$16,0),1)","v":"We have measures in place to protect the site"},{"$f":"INDEX($E$12:$G$16,MATCH($I12,$G$12:$G$16,0),2)","v":6},{"$f":"IF(AND(K12>0,K12<0.5),\"<1%\",TEXT(K12/$F$11,\"0%\"))","v":"60%"},null,null,null,null,null,"We have measures in place to protect the site",0.6,0,".",1,0.5,1,0.5,0,0.4,1]
[null,null,null,null,"We are working with the local aboriginal community to protect the site",{"$f":"INDEX($S13:$AB13,1,1)*$F$11","v":6},{"$f":"RANK(F13,$F$12:$F$14)+COUNTIF($G$12:G12,RANK(F13,$F$12:$F$14))","v":2},null,2,{"$f":"INDEX($E$12:$G$16,MATCH($I13,$G$12:$G$16,0),1)","v":"We are working with the local aboriginal community to protect the site"},{"$f":"INDEX($E$12:$G$16,MATCH($I13,$G$12:$G$16,0),2)","v":6},{"$f":"IF(AND(K13>0,K13<0.5),\"<1%\",TEXT(K13/$F$11,\"0%\"))","v":"60%"},null,null,null,null,null,"We are working with the local aboriginal community to protect the site",0.6,0,".",0.5,0.5,1,0.75,0,0.8,0.5]
[null,null,null,null,"We are planning to put measures in place to protect the site",{"$f":"INDEX($S14:$AB14,1,1)*$F$11","v":2},{"$f":"RANK(F14,$F$12:$F$14)+COUNTIF($G$12:G13,RANK(F14,$F$12:$F$14))","v":3},null,3,{"$f":"INDEX($E$12:$G$16,MATCH($I14,$G$12:$G$16,0),1)","v":"We are planning to put measures in place to protect the site"},{"$f":"INDEX($E$12:$G$16,MATCH($I14,$G$12:$G$16,0),2)","v":2},"20%",null,null,null,null,null,"We are planning to put measures in place to protect the site",0.2,1,".",0.5,0,0,0,0,0.2,0.25]
[null,null,null,null,"Other",{"$f":"INDEX($S15:$AB15,1,1)*$F$11","v":1},4,null,4,{"$f":"INDEX($E$12:$G$16,MATCH($I15,$G$12:$G$16,0),1)","v":"Other"},{"$f":"INDEX($E$12:$G$16,MATCH($I15,$G$12:$G$16,0),2)","v":1},"10%",null,null,null,null,null,"Other",0.1,0,".",0,0,0,0.25,1,0,0]
[null,null,null,null,"We have no plans to protect the site",{"$f":"INDEX($S16:$AB16,1,1)*$F$11","v":0},5,null,5,{"$f":"INDEX($E$12:$G$16,MATCH($I16,$G$12:$G$16,0),1)","v":"We have no plans to protect the site"},{"$f":"INDEX($E$12:$G$16,MATCH($I16,$G$12:$G$16,0),2)","v":0},"0%",null,null,null,null,null,"We have no plans to protect the site",0,0,".",0,0,0,0,0,0,0]
[]
[null,null,null,null,null,"NOTE: COUNTS"]